Workbook

Sheet Manual Inputs
B1: Company | D1: Kentucky Power Co.
B2: State/Jurisdiction | D2: Kentucky
B3: Customer Class | D3: Public School Service - Secondary
B4: Sample Year Begins | D4: 2016-03-01 | E4: =+D4+0/24 -> 2016-03-01
B5: Reporting Year Begins | D5: 2016-03-01 | E5: =+D5+0/24 -> 2016-03-01
B6: Days in Sample Year | D6: =DATE(YEAR(TYBegin)+1,MONTH(TYBegin),DAY(TYBegin))-TYBegin -> 365
A9: Test Year Inputs from Revenue Process
A10: Year | B10: Month | C10: kWh | D10: Customers | F10: SummaryID | G10: NCPTotal | H10: NCPOnPk | I10: NCPOffPk
A11: =YEAR(D5) -> 2016 | B11: =MONTH(D4) -> 3 | C11: 8314521 | D11: 161 | F11: KP PS CLASS RLW | G11: 267.8420126 | H11: 264.3744826 | I11: 210.0277432
A12: =IF(B12=1,A11+1,A11) -> 2016 | B12: =IF(B11=12,1,B11+1) -> 4 | C12: 8854833 | D12: 161
A13: =IF(B13=1,A12+1,A12) -> 2016 | B13: =IF(B12=12,1,B12+1) -> 5 | C13: 9483509 | D13: 161
A14: 2016 | B14: 6 | C14: 7995092 | D14: 161
A15: 2016 | B15: 7 | C15: 7511715 | D15: 161
A16: 2016 | B16: 8 | C16: 10189183 | D16: 161
A17: 2016 | B17: 9 | C17: 11720326 | D17: 161
A18: 2016 | B18: 10 | C18: 9280101 | D18: 161
A19: 2016 | B19: 11 | C19: 9871720 | D19: 161
A20: 2016 | B20: 12 | C20: 9000199 | D20: 161
A21: 2017 | B21: 1 | C21: 8383684 | D21: 161
A22: 2017 | B22: 2 | C22: 9107377 | D22: 161
C23: =SUM(C11:C22) -> 109712260 | D23: =SUM(D11:D22) -> 1932
A25: Coincident Peaks
A26: Year | B26: Month | C26: Day | D26: Hour Ended | E26: Concident Peak
A27: =YEAR(TYBegin) -> 2016 | B27: =MONTH(TYBegin) -> 3 | C27: 3 | D27: 8 | E27: =DATEVALUE(B27&"/"&C27&"/"&A27)+(D27-1)/24 -> 2016-03-03T07:00:00 | F27: Thursday
A28: =IF(B28=1,A27+1,A27) -> 2016 | B28: =IF(B27=12,1,B27+1) -> 4 | C28: 10 | D28: 9 | E28: =DATEVALUE(B28&"/"&C28&"/"&A28)+(D28-1)/24 -> 2016-04-10T08:00:00 | F28: Sunday
A29: =IF(B29=1,A28+1,A28) -> 2016 | B29: =IF(B28=12,1,B28+1) -> 5 | C29: 31 | D29: 17 | E29: 2016-05-31T16:00:00 | F29: Tuesday
A30: 2016 | B30: 6 | C30: 16 | D30: 17 | E30: 2016-06-16T16:00:00 | F30: Thursday
A31: 2016 | B31: 7 | C31: 25 | D31: 15 | E31: 2016-07-25T14:00:00 | F31: Monday
A32: 2016 | B32: 8 | C32: 9 | D32: 17 | E32: 2016-08-09T16:00:00 | F32: Tuesday
A33: 2016 | B33: 9 | C33: 8 | D33: 17 | E33: 2016-09-08T16:00:00 | F33: Thursday
A34: 2016 | B34: 10 | C34: 19 | D34: 17 | E34: 2016-10-19T16:00:00 | F34: Wednesday
A35: 2016 | B35: 11 | C35: 22 | D35: 8 | E35: 2016-11-22T07:00:00 | F35: Tuesday
A36: 2016 | B36: 12 | C36: 16 | D36: 8 | E36: 2016-12-16T07:00:00 | F36: Friday
A37: 2017 | B37: 1 | C37: 9 | D37: 8 | E37: 2017-01-09T07:00:00 | F37: Monday
A38: 2017 | B38: 2 | C38: 4 | D38: 9 | E38: 2017-02-04T08:00:00 | F38: Saturday

Sheet TOD Inputs
A1: Peak Times for TOD Tariffs | F1: Holidays
B2: Hour | C2: Formatted | F2: Description | G2: Date
A3: Peak Start Hour | B3: 7 | C3: =TEXT(B3/24,"h:mm AM/PM") -> 7:00 AM | F3: New Year's Day
A4: Peak End Hour | B4: 21 | C4: =TEXT(B4/24,"h:mm AM/PM") -> 9:00 PM | F4: President's Day
F5: Memorial Day
F6: Independence Day
A7: Daylight Savings Time | F7: Labor Day
A8: Starts | B8: 2016-03-13 | F8: Thanksgiving Day
A9: Ends | B9: 2016-11-06 | F9: Christmas Day
A19: DST Dates
B20: 2011 | C20: 2012 | D20: 2013 | E20: 2014
A21: Starts | B21: 2011-03-13 | C21: 2012-03-11 | D21: 2013-03-10 | E21: 2014-03-09
A22: Ends | B22: 2011-11-06 | C22: 2012-11-04 | D22: 2013-11-03 | E22: 2014-11-02
B24: 2015 | C24: 2016
B25: 2015-03-08 | C25: 2016-03-13
B26: 2015-11-01 | C26: 2016-11-06

Sheet LR Monthly
A1: STATISTICID | B1: CNAME | C1: YEAR | D1: MONTH | E1: ENERGY_MPU | F1: NCP | G1: NCP_ON | H1: NCP_OFF | I1: ClassPeak_Mont | J1: CLASS_PEAK_ON | K1: CLASS_PEAK_OFF
A2: LRKPPS | B2: KPC PS CLASS RLW | C2: 2016 | D2: 3 | E2: 57082.46212 | F2: 207.1554297 | G2: 203.2594247 | H2: 159.0670164 | I2: 164.9191273 | J2: 164.9191273 | K2: 124.3649836
A3: LRKPPS | B3: KPC PS CLASS RLW | C3: 2016 | D3: 4 | E3: 49705.0928 | F3: 180.2383556 | G3: 179.128564 | H3: 120.6235424 | I3: 145.0506049 | J3: 145.0506049 | K3: 90.54120568
A4: LRKPPS | B4: KPC PS CLASS RLW | C4: 2016 | D4: 5 | E4: 53706.66771 | F4: 172.709719 | G4: 172.1934505 | H4: 115.4709647 | I4: 154.045142 | J4: 154.045142 | K4: 84.06509028
A5: LRKPPS | B5: KPC PS CLASS RLW | C5: 2016 | D5: 6 | E5: 47529.41193 | F5: 121.3514151 | G5: 121.1954203 | H5: 98.10711717 | I5: 101.3573243 | J5: 101.3573243 | K5: 77.04659674
A6: LRKPPS | B6: KPC PS CLASS RLW | C6: 2016 | D6: 7 | E6: 53563.45297 | F6: 138.4163308 | G6: 138.4163308 | H6: 114.1882395 | I6: 119.817119 | J6: 119.817119 | K6: 88.96411034
A7: LRKPPS | B7: KPC PS CLASS RLW | C7: 2016 | D7: 8 | E7: 74530.66053 | F7: 210.2148527 | G7: 210.2148527 | H7: 137.0173519 | I7: 194.9189513 | J7: 194.9189513 | K7: 115.1375927
A8: LRKPPS | B8: KPC PS CLASS RLW | C8: 2016 | D8: 9 | E8: 65835.33739 | F8: 197.8189463 | G8: 197.8189463 | H8: 123.8532503 | I8: 182.5149837 | J8: 182.5149837 | K8: 110.7463762
A9: LRKPPS | B9: KPC PS CLASS RLW | C9: 2016 | D9: 10 | E9: 52991.99455 | F9: 179.0305978 | G9: 179.0305978 | H9: 108.4151096 | I9: 159.0595452 | J9: 159.0595452 | K9: 86.80269789
A10: LRKPPS | B10: KPC PS CLASS RLW | C10: 2016 | D10: 11 | E10: 53951.38338 | F10: 214.6316438 | G10: 211.9217912 | H10: 153.9051549 | I10: 163.3750588 | J10: 163.3750588 | K10: 120.2830047
A11: LRKPPS | B11: KPC PS CLASS RLW | C11: 2016 | D11: 12 | E11: 62185.51121 | F11: 217.100984 | G11: 214.3250193 | H11: 167.7912172 | I11: 177.3794086 | J11: 177.3794086 | K11: 137.7319209
A12: LRKPPS | B12: KPC PS CLASS RLW | C12: 2017 | D12: 1 | E12: 63103.69649 | F12: 216.5178128 | G12: 211.1290396 | H12: 172.728055 | I12: 168.6596426 | J12: 168.6596426 | K12: 141.6723546
A13: LRKPPS | B13: KPC PS CLASS RLW | C13: 2017 | D13: 2 | E13: 54484.49396 | F13: 211.6599892 | G13: 199.1643644 | H13: 162.0913393 | I13: 164.8529928 | J13: 164.8529928 | K13: 125.8553226
F17: What are these?
F19: secondary

Sheet Sheet1
B3: Column Labels
A4: Values | B4: 010917 | C4: 020417 | D4: 030316 | E4: 041016 | F4: 053116 | G4: 061616 | H4: 072516 | I4: 080916 | J4: 090816 | K4: 101916 | L4: 112216 | M4: 121616 | N4: Grand Total
A5: Sum of 1:00 | B5: 113.6355229 | C5: 85.23789918 | D5: 75.09029116 | E5: 57.51450036 | F5: 53.05974567 | G5: 57.99070397 | H5: 71.19967208 | I5: 66.39486304 | J5: 67.32394496 | K5: 55.65505292 | L5: 74.29118569 | M5: 100.8547459 | N5: 878.2481278
A6: Sum of 2:00 | B6: 112.009196 | C6: 85.1525772 | D6: 75.79103358 | E6: 58.56283879 | F6: 53.21244542 | G6: 57.86396465 | H6: 70.17333345 | I6: 63.96157663 | J6: 65.94803693 | K6: 54.77828473 | L6: 75.21076134 | M6: 103.7418144 | N6: 876.4058631
A7: Sum of 3:00 | B7: 113.1987583 | C7: 87.62323997 | D7: 76.19899379 | E7: 59.91084245 | F7: 52.80014294 | G7: 56.59601753 | H7: 68.83700464 | I7: 63.58414276 | J7: 64.66963671 | K7: 53.26089734 | L7: 87.54705302 | M7: 103.9735958 | N7: 888.2003252
A8: Sum of 4:00 | B8: 114.5426593 | C8: 101.5834126 | D8: 81.68043702 | E8: 59.86857976 | F8: 52.20375693 | G8: 57.3954395 | H8: 65.92143224 | I8: 62.73842038 | J8: 65.59427968 | K8: 53.94737758 | L8: 79.73838116 | M8: 105.2009411 | N8: 900.4151172
A9: Sum of 5:00 | B9: 115.1466673 | C9: 95.32604238 | D9: 90.16036579 | E9: 61.2571365 | F9: 52.41912229 | G9: 57.23854675 | H9: 67.22709369 | I9: 65.10394497 | J9: 65.18093696 | K9: 56.19378011 | L9: 81.40228485 | M9: 107.6204999 | N9: 914.2764216
A10: Sum of 6:00 | B10: 127.1231152 | C10: 91.81399955 | D10: 115.7557511 | E10: 62.27289599 | F10: 54.37773875 | G10: 57.05399986 | H10: 68.26142171 | I10: 70.52562481 | J10: 75.26721898 | K10: 63.461193 | L10: 109.521501 | M10: 118.7771524 | N10: 1014.211612
A11: Sum of 7:00 | B11: 141.6723546 | C11: 96.86672907 | D11: 124.3649836 | E11: 62.59469779 | F11: 59.78867503 | G11: 59.8996368 | H11: 78.69109239 | I11: 86.35712432 | J11: 104.0259657 | K11: 85.65350765 | L11: 120.2830047 | M11: 137.7319209 | N11: 1157.929693
A12: Sum of 8:00 | B12: 156.8515072 | C12: 101.1347039 | D12: 142.4419279 | E12: 65.08491302 | F12: 70.19575956 | G12: 68.66560152 | H12: 90.93889582 | I12: 106.8971699 | J12: 127.9701865 | K12: 104.4258005 | L12: 133.0491369 | M12: 156.0491648 | N12: 1323.704768
A13: Sum of 9:00 | B13: 166.9388005 | C13: 100.0688178 | D13: 164.9191273 | E13: 61.96787766 | F13: 80.38648566 | G13: 79.09503198 | H13: 99.74533172 | I13: 121.4698357 | J13: 159.6633573 | K13: 138.9050525 | L13: 147.4836537 | M13: 175.328921 | N13: 1495.972293
A14: Sum of 10:00 | B14: 167.6972531 | C14: 99.55072012 | D14: 159.5559298 | E14: 58.7890573 | F14: 87.24435747 | G14: 87.60145486 | H14: 105.6106266 | I14: 133.9631855 | J14: 165.7871292 | K14: 145.313332 | L14: 146.8844185 | M14: 171.1294166 | N14: 1529.126881
A15: Sum of 11:00 | B15: 166.8614263 | C15: 96.48230128 | D15: 151.7218777 | E15: 56.80414385 | F15: 94.89481794 | G15: 94.75872885 | H15: 112.6826311 | I15: 143.5748517 | J15: 173.6519361 | K15: 147.9332735 | L15: 140.7773816 | M15: 164.140024 | N15: 1544.283394
A16: Sum of 12:00 | B16: 168.6596426 | C16: 93.14963583 | D16: 154.6975365 | E16: 52.59830305 | F16: 98.09227902 | G16: 99.25483429 | H16: 117.7410796 | I16: 152.6961236 | J16: 182.5149837 | K16: 159.0595452 | L16: 135.0499025 | M16: 165.6015728 | N16: 1579.115439
A17: Sum of 13:00 | B17: 154.6238854 | C17: 87.88408012 | D17: 146.6642396 | E17: 48.52974351 | F17: 100.440018 | G17: 100.3885525 | H17: 117.7349483 | I17: 154.7523158 | J17: 180.5157357 | K17: 158.945961 | L17: 123.0985633 | M17: 154.0656631 | N17: 1527.643706
A18: Sum of 14:00 | B18: 144.1649443 | C18: 82.02601798 | D18: 131.2188352 | E18: 47.3499703 | F18: 99.0072698 | G18: 99.77813471 | H18: 118.0425799 | I18: 157.3333516 | J18: 172.6555503 | K18: 148.9336094 | L18: 107.1150279 | M18: 138.827879 | N18: 1446.45317
A19: Sum of 15:00 | B19: 131.7296983 | C19: 75.89301156 | D19: 121.1360048 | E19: 47.71609283 | F19: 95.45947406 | G19: 96.47250066 | H19: 119.817119 | I19: 155.6953866 | J19: 170.7249648 | K19: 145.8329428 | L19: 98.81023194 | M19: 134.5044749 | N19: 1393.791902
A20: Sum of 16:00 | B20: 125.8353888 | C20: 74.87780488 | D20: 104.2376192 | E20: 47.7346001 | F20: 88.69083005 | G20: 93.41879738 | H20: 111.7718181 | I20: 142.5971741 | J20: 154.2491108 | K20: 128.4955609 | L20: 87.90065721 | M20: 121.2231369 | N20: 1281.032499
A21: Sum of 17:00 | B21: 117.6283938 | C21: 73.95788538 | D21: 93.75975219 | E21: 47.59494381 | F21: 85.20996495 | G21: 95.77858423 | H21: 101.1511814 | I21: 129.1339751 | J21: 133.3536447 | K21: 112.3128453 | L21: 78.39512102 | M21: 108.3585608 | N21: 1176.634853
A22: Sum of 18:00 | B22: 111.1956092 | C22: 74.23613037 | D22: 102.2718218 | E22: 46.13815099 | F22: 78.96279253 | G22: 91.65700447 | H22: 94.71920544 | I22: 120.5512568 | J22: 122.5277497 | K22: 99.52631328 | L22: 73.42326547 | M22: 101.3653844 | N22: 1116.574684
A23: Sum of 19:00 | B23: 108.194542 | C23: 78.62952482 | D23: 89.54683743 | E23: 46.42005864 | F23: 78.06249116 | G23: 88.76571706 | H23: 92.33180423 | I23: 111.1372016 | J23: 113.7257599 | K23: 90.53427299 | L23: 73.76905492 | M23: 98.24886749 | N23: 1069.366132
A24: Sum of 20:00 | B24: 107.4862224 | C24: 81.94480696 | D24: 90.07474831 | E24: 47.60733028 | F24: 72.85298769 | G24: 79.72506896 | H24: 86.19158613 | I24: 101.8780412 | J24: 110.3854104 | K24: 85.57198159 | L24: 72.92961591 | M24: 93.01743698 | N24: 1029.665237
A25: Sum of 21:00 | B25: 103.1152606 | C25: 81.37377547 | D25: 82.59197624 | E25: 49.65525072 | F25: 67.97330319 | G25: 74.04893545 | H25: 80.60627213 | I25: 97.58381448 | J25: 101.785936 | K25: 78.28014147 | L25: 69.1834219 | M25: 89.20352652 | N25: 975.4016141
A26: Sum of 22:00 | B26: 103.7717225 | C26: 83.09094858 | D26: 81.05626096 | E26: 50.78616854 | F26: 65.51551314 | G26: 72.53382877 | H26: 78.66806824 | I26: 92.27180773 | J26: 92.14752812 | K26: 71.3467369 | L26: 68.60390933 | M26: 86.45384192 | N26: 946.2463347
A27: Sum of 23:00 | B27: 100.603175 | C27: 82.49581039 | D27: 79.15960837 | E27: 51.06720111 | F27: 63.29362883 | G27: 69.95318104 | H27: 74.10295734 | I27: 82.6920871 | J27: 80.90907611 | K27: 65.65997077 | L27: 65.60004976 | M27: 79.00576583 | N27: 894.5425117
A28: Sum of 24:00:00 | B28: 97.69710044 | C28: 81.23938957 | D28: 75.06080926 | E28: 50.63015502 | F28: 60.75395951 | G28: 65.25523044 | H28: 70.16415893 | I28: 78.23946859 | J28: 76.29232384 | K28: 60.69593998 | L28: 66.23700698 | M28: 74.82126393 | N28: 857.0868065

Sheet LR 8760 Loads
A1: ClassID | B1: Date | C1: tab1 | D1: tab2 | E1: IN | F1: UM | G1: CH | H1: TYP | I1: 01:00:00 | J1: 02:00:00 | K1: 03:00:00 | L1: 04:00:00 | M1: 05:00:00 | N1: 06:00:00 | O1: 07:00:00 | P1: 08:00:00 | Q1: 09:00:00 | R1: 10:00:00 | S1: 11:00:00 | T1: 12:00:00 | U1: 13:00:00 | V1: 14:00:00 | W1: 15:00:00 | X1: 16:00:00 | Y1: 17:00:00 | Z1: 18:00:00 | AA1: 19:00:00 | AB1: 20:00:00 | AC1: 21:00:00 | AD1: 22:00:00 | AE1: 23:00:00 | AF1: 1
A2: LRKPPS | B2: 030116 | C2: 1 | D2: 2400 | E2: 60 | F2: 1 | G2: 1 | H2: KW | I2: 59.33338109 | J2: 60.42305476 | K2: 62.3907939 | L2: 67.75102251 | M2: 74.66906516 | N2: 86.10676637 | O2: 106.7540202 | P2: 123.441518 | Q2: 138.6842828 | R2: 134.7535641 | S2: 130.8549958 | T2: 134.900034 | U2: 129.4067901 | V2: 116.8465703 | W2: 108.6608089 | X2: 91.93783769 | Y2: 80.51832395 | Z2: 74.85223951 | AA2: 73.51064117 | AB2: 71.63672989 | AC2: 66.95887366 | AD2: 64.48732707 | AE2: 62.6284488 | AF2: 60.19100924
A3: LRKPPS | B3: 030216 | C3: 1 | D3: 2400 | E3: 60 | F3: 1 | G3: 1 | H3: KW | I3: 59.50343357 | J3: 60.85851021 | K3: 61.21289212 | L3: 65.99103018 | M3: 71.95570986 | N3: 81.19235558 | O3: 103.5607835 | P3: 123.2875396 | Q3: 147.500177 | R3: 149.0557742 | S3: 142.8968362 | T3: 146.9987985 | U3: 138.3996297 | V3: 126.7060379 | W3: 121.6416979 | X3: 102.7971223 | Y3: 88.19695845 | Z3: 82.20611529 | AA3: 80.83125195 | AB3: 84.34008617 | AC3: 81.80571068 | AD3: 78.61612518 | AE3: 75.60823015 | AF3: 74.66664619
A4: LRKPPS | B4: 030316 | C4: 1 | D4: 2400 | E4: 60 | F4: 1 | G4: 1 | H4: KW | I4: 75.09029116 | J4: 75.79103358 | K4: 76.19899379 | L4: 81.68043702 | M4: 90.16036579 | N4: 115.7557511 | O4: 124.3649836 | P4: 142.4419279 | Q4: 164.9191273 | R4: 159.5559298 | S4: 151.7218777 | T4: 154.6975365 | U4: 146.6642396 | V4: 131.2188352 | W4: 121.1360048 | X4: 104.2376192 | Y4: 93.75975219 | Z4: 102.2718218 | AA4: 89.54683743 | AB4: 90.07474831 | AC4: 82.59197624 | AD4: 81.05626096 | AE4: 79.15960837 | AF4: 75.06080926
A5: LRKPPS | B5: 030416 | C5: 1 | D5: 2400 | E5: 60 | F5: 1 | G5: 1 | H5: KW | I5: 74.79042651 | J5: 73.85464179 | K5: 74.71188012 | L5: 79.10748118 | M5: 85.83827529 | N5: 86.02469905 | O5: 106.0915912 | P5: 117.6127546 | Q5: 126.7987333 | R5: 128.2454729 | S5: 124.2099055 | T5: 129.1914938 | U5: 125.4699237 | V5: 109.4368867 | W5: 104.5802922 | X5: 93.47404573 | Y5: 83.98983759 | Z5: 82.89456173 | AA5: 78.82536754 | AB5: 79.49171507 | AC5: 77.54542813 | AD5: 74.09613797 | AE5: 73.67262003 | AF5: 73.05402678
A6: LRKPPS | B6: 030516 | C6: 1 | D6: 2400 | E6: 60 | F6: 1 | G6: 1 | H6: KW | I6: 72.1798088 | J6: 73.3806779 | K6: 73.5988724 | L6: 73.46546449 | M6: 73.47545444 | N6: 73.40166368 | O6: 74.38789747 | P6: 75.13031175 | Q6: 75.88479839 | R6: 75.50498088 | S6: 72.38979273 | T6: 70.08626601 | U6: 68.44028961 | V6: 70.01810844 | W6: 69.26441404 | X6: 67.31925848 | Y6: 67.7001314 | Z6: 69.45434741 | AA6: 70.61457986 | AB6: 73.75499921 | AC6: 71.64877359 | AD6: 71.78459417 | AE6: 71.62136389 | AF6: 69.11835263
A7: LRKPPS | B7: 030616 | C7: 1 | D7: 2400 | E7: 60 | F7: 1 | G7: 1 | H7: KW | I7: 70.96813663 | J7: 69.63757609 | K7: 67.7102129 | L7: 70.52733796 | M7: 69.61632687 | N7: 70.85677929 | O7: 71.55769867 | P7: 72.40315899 | Q7: 71.45893658 | R7: 70.11987524 | S7: 66.47990855 | T7: 65.65991263 | U7: 62.78122439 | V7: 60.11457381 | W7: 58.36797486 | X7: 58.79152221 | Y7: 58.98662789 | Z7: 59.0458294 | AA7: 60.13842525 | AB7: 64.91894339 | AC7: 66.82465883 | AD7: 65.48111551 | AE7: 67.82669959 | AF7: 68.21552507
A8: LRKPPS | B8: 030716 | C8: 1 | D8: 2400 | E8: 60 | F8: 1 | G8: 1 | H8: KW | I8: 69.14145422 | J8: 73.10715999 | K8: 73.83760294 | L8: 80.50499731 | M8: 93.72785693 | N8: 112.1740704 | O8: 116.31099 | P8: 134.9827132 | Q8: 151.8840015 | R8: 144.0251763 | S8: 139.2564795 | T8: 139.3828374 | U8: 128.8634196 | V8: 118.5173073 | W8: 111.3868917 | X8: 95.11200499 | Y8: 79.91786329 | Z8: 74.05141254 | AA8: 73.62478461 | AB8: 72.50232598 | AC8: 70.1529552 | AD8: 64.50519133 | AE8: 61.39117497 | AF8: 60.5843302
A9: LRKPPS | B9: 030816 | C9: 1 | D9: 2400 | E9: 60 | F9: 1 | G9: 1 | H9: KW | I9: 59.60108421 | J9: 59.79639115 | K9: 60.22950997 | L9: 60.66440124 | M9: 67.81172314 | N9: 80.8788103 | O9: 95.80296874 | P9: 115.9728614 | Q9: 136.5907343 | R9: 130.8887928 | S9: 122.7879993 | T9: 125.0568488 | U9: 121.5079163 | V9: 110.450324 | W9: 106.3996794 | X9: 92.67114652 | Y9: 80.21754842 | Z9: 72.73161473 | AA9: 69.01578464 | AB9: 67.01617025 | AC9: 61.79144752 | AD9: 58.60706892 | AE9: 57.32776485 | AF9: 54.32620958
A10: LRKPPS | B10: 030916 | C10: 1 | D10: 2400 | E10: 60 | F10: 1 | G10: 1 | H10: KW | I10: 53.37582084 | J10: 53.55310658 | K10: 53.60629994 | L10: 57.69247324 | M10: 56.79879943 | N10: 68.65656325 | O10: 88.35314623 | P10: 101.9687575 | Q10: 121.7256999 | R10: 123.1588107 | S10: 119.3701686 | T10: 124.0647411 | U10: 120.8582992 | V10: 109.9401893 | W10: 105.0235224 | X10: 92.31421753 | Y10: 78.55263461 | Z10: 72.22309014 | AA10: 68.97162387 | AB10: 66.46625442 | AC10: 61.89522467 | AD10: 57.82040741 | AE10: 55.42443615 | AF10: 52.84868886
A11: LRKPPS | B11: 031016 | C11: 1 | D11: 2400 | E11: 60 | F11: 1 | G11: 1 | H11: KW | I11: 50.99752183 | J11: 50.73114586 | K11: 50.10409935 | L11: 52.7525605 | M11: 53.02068428 | N11: 67.06172588 | O11: 81.67350403 | P11: 97.63089108 | Q11: 120.4671605 | R11: 121.5469525 | S11: 124.1984276 | T11: 127.8200731 | U11: 124.6004197 | V11: 116.3365698 | W11: 113.0327001 | X11: 93.46978755 | Y11: 79.50923959 | Z11: 75.30394049 | AA11: 71.22500253 | AB11: 66.59064235 | AC11: 63.05187981 | AD11: 58.3084198 | AE11: 55.23268413 | AF11: 52.15285468
A12: LRKPPS | B12: 031116 | C12: 1 | D12: 2400 | E12: 60 | F12: 1 | G12: 1 | H12: KW | I12: 49.980441 | J12: 49.40652949 | K12: 49.2357996 | L12: 50.54575722 | M12: 51.66666255 | N12: 62.37653014 | O12: 81.56136801 | P12: 96.22000751 | Q12: 118.2731396 | R12: 123.8630332 | S12: 121.9312211 | T12: 123.0575101 | U12: 107.6581159 | V12: 98.78185682 | W12: 93.05909388 | X12: 81.76963928 | Y12: 77.34583085 | Z12: 69.36298475 | AA12: 64.25655162 | AB12: 61.86242951 | AC12: 58.83537395 | AD12: 56.56870006 | AE12: 54.30648607 | AF12: 49.91788422
A13: LRKPPS | B13: 031216 | C13: 1 | D13: 2400 | E13: 60 | F13: 1 | G13: 1 | H13: KW | I13: 49.58979108 | J13: 49.47466381 | K13: 49.75914914 | L13: 49.66358597 | M13: 49.77291967 | N13: 49.34557894 | O13: 49.05127266 | P13: 48.46294761 | Q13: 48.11905413 | R13: 48.69408795 | S13: 48.81267174 | T13: 48.72045314 | U13: 48.56745036 | V13: 50.09273279 | W13: 50.45024223 | X13: 49.43530651 | Y13: 48.93439249 | Z13: 49.57607997 | AA13: 51.66960913 | AB13: 52.42658373 | AC13: 51.66496747 | AD13: 51.14479833 | AE13: 50.30318895 | AF13: 49.76341393
A14: LRKPPS | B14: 031316 | C14: 1 | D14: 2400 | E14: 60 | F14: 1 | G14: 1 | H14: KW | I14: 49.44044711 | J14: 49.49767364 | K14: 0 | L14: 49.23146552 | M14: 49.21989332 | N14: 49.94018157 | O14: 50.17410352 | P14: 51.15878993 | Q14: 48.83403819 | R14: 48.31441386 | S14: 48.14713434 | T14: 47.84462575 | U14: 47.87360505 | V14: 50.1402964 | W14: 51.46042404 | X14: 50.85994866 | Y14: 50.42648142 | Z14: 50.08035896 | AA14: 49.37608019 | AB14: 50.66433919 | AC14: 52.16309997 | AD14: 51.15018136 | AE14: 51.43426014 | AF14: 50.90967841
A15: LRKPPS | B15: 031416 | C15: 1 | D15: 2400 | E15: 60 | F15: 1 | G15: 1 | H15: KW | I15: 49.360669 | J15: 48.09127715 | K15: 47.26961646 | L15: 50.12540698 | M15: 51.53779442 | N15: 65.54545167 | O15: 81.74305982 | P15: 96.8913485 | Q15: 120.8868465 | R15: 121.5567516 | S15: 124.8428833 | T15: 127.4862271 | U15: 123.9626464 | V15: 114.9030467 | W15: 109.3067463 | X15: 94.90489491 | Y15: 79.1795162 | Z15: 71.57028111 | AA15: 66.61450839 | AB15: 64.80813831 | AC15: 63.02522631 | AD15: 59.81878876 | AE15: 54.88818336 | AF15: 50.78747918
A16: LRKPPS | B16: 031516 | C16: 1 | D16: 2400 | E16: 60 | F16: 1 | G16: 1 | H16: KW | I16: 48.84712253 | J16: 48.7560979 | K16: 48.43875771 | L16: 49.83175846 | M16: 49.99329415 | N16: 61.90424555 | O16: 78.81014381 | P16: 97.29945247 | Q16: 121.0506203 | R16: 124.5018426 | S16: 122.8300118 | T16: 130.4495981 | U16: 124.9093084 | V16: 117.3010112 | W16: 113.4476244 | X16: 97.66787902 | Y16: 84.16624793 | Z16: 79.09723057 | AA16: 71.36780196 | AB16: 68.5533033 | AC16: 63.94454808 | AD16: 60.43016 | AE16: 55.77936467 | AF16: 51.76368462
A17: LRKPPS | B17: 031616 | C17: 1 | D17: 2400 | E17: 60 | F17: 1 | G17: 1 | H17: KW | I17: 50.4242975 | J17: 50.03673055 | K17: 49.18349654 | L17: 51.3375833 | M17: 50.10005186 | N17: 61.37389112 | O17: 76.02553564 | P17: 97.63344977 | Q17: 120.445809 | R17: 121.874865 | S17: 119.8879583 | T17: 124.0921291 | U17: 120.1716532 | V17: 116.8990713 | W17: 110.1208682 | X17: 91.99096706 | Y17: 78.65068302 | Z17: 73.16127134 | AA17: 67.31917975 | AB17: 64.10770186 | AC17: 61.66409562 | AD17: 57.1587602 | AE17: 55.11990374 | AF17: 51.02033941
A18: LRKPPS | B18: 031716 | C18: 1 | D18: 2400 | E18: 60 | F18: 1 | G18: 1 | H18: KW | I18: 49.92005275 | J18: 49.84993246 | K18: 49.84290596 | L18: 51.8407087 | M18: 50.64127835 | N18: 60.47121014 | O18: 78.83941586 | P18: 97.36860218 | Q18: 118.2888788 | R18: 117.46546 | S18: 115.7294708 | T18: 119.152333 | U18: 114.5677199 | V18: 106.5212537 | W18: 101.9140788 | X18: 88.45985072 | Y18: 76.76776896 | Z18: 69.99457724 | AA18: 64.59990902 | AB18: 63.39033219 | AC18: 60.61861301 | AD18: 55.46890082 | AE18: 53.26050019 | AF18: 51.21076217
A19: LRKPPS | B19: 031816 | C19: 1 | D19: 2400 | E19: 60 | F19: 1 | G19: 1 | H19: KW | I19: 50.60069481 | J19: 50.68873493 | K19: 51.09433521 | L19: 53.27522542 | M19: 53.58804336 | N19: 64.92985104 | O19: 81.88353706 | P19: 99.7124228 | Q19: 123.2833626 | R19: 122.8941062 | S19: 115.9026155 | T19: 115.1162736 | U19: 111.2552365 | V19: 104.8647174 | W19: 99.14764435 | X19: 83.2666908 | Y19: 68.00221774 | Z19: 63.51971563 | AA19: 61.5946515 | AB19: 60.42765935 | AC19: 59.22975798 | AD19: 54.28846794 | AE19: 52.53347102 | AF19: 51.38123934
A20: LRKPPS | B20: 031916 | C20: 1 | D20: 2400 | E20: 60 | F20: 1 | G20: 1 | H20: KW | I20: 50.28630427 | J20: 48.95744947 | K20: 48.62332651 | L20: 48.81407745 | M20: 47.87319463 | N20: 48.49203365 | O20: 50.29623255 | P20: 52.77843764 | Q20: 52.22649141 | R20: 52.18881015 | S20: 52.1195028 | T20: 51.16908911 | U20: 51.69396356 | V20: 50.88741539 | W20: 51.71058734 | X20: 51.65557415 | Y20: 51.14805403 | Z20: 51.17135304 | AA20: 51.53413613 | AB20: 52.89587127 | AC20: 54.7171366 | AD20: 53.18397809 | AE20: 54.04210921 | AF20: 52.57138961
A21: LRKPPS | B21: 032016 | C21: 1 | D21: 2400 | E21: 60 | F21: 1 | G21: 1 | H21: KW | I21: 51.90280871 | J21: 52.34082545 | K21: 52.4808588 | L21: 54.47696433 | M21: 55.21899283 | N21: 55.38041318 | O21: 57.42036211 | P21: 58.47764787 | Q21: 56.92212837 | R21: 55.03975941 | S21: 52.53910942 | T21: 50.35012043 | U21: 50.06191947 | V21: 50.32680569 | W21: 49.2365214 | X21: 48.97985505 | Y21: 48.55604524 | Z21: 50.07363587 | AA21: 48.86541491 | AB21: 49.69166766 | AC21: 53.83148326 | AD21: 53.03140008 | AE21: 54.86088037 | AF21: 55.2234875
A22: LRKPPS | B22: 032116 | C22: 1 | D22: 2400 | E22: 60 | F22: 1 | G22: 1 | H22: KW | I22: 53.97261273 | J22: 54.46625876 | K22: 56.36236465 | L22: 60.26214797 | M22: 68.53144285 | N22: 84.18169317 | O22: 95.68691655 | P22: 120.553801 | Q22: 150.1494068 | R22: 143.9368139 | S22: 135.2060195 | T22: 136.0861968 | U22: 130.0575678 | V22: 114.8887447 | W22: 105.2636377 | X22: 91.48711929 | Y22: 78.20090978 | Z22: 70.88728341 | AA22: 67.0572629 | AB22: 66.06964603 | AC22: 65.44498831 | AD22: 63.1212882 | AE22: 60.68176443 | AF22: 58.39834417
A23: LRKPPS | B23: 032216 | C23: 1 | D23: 2400 | E23: 60 | F23: 1 | G23: 1 | H23: KW | I23: 57.88399749 | J23: 59.26511897 | K23: 58.67228743 | L23: 65.67641571 | M23: 69.82762579 | N23: 80.95021345 | O23: 99.59284156 | P23: 122.9061333 | Q23: 147.8133688 | R23: 141.5951959 | S23: 133.4834807 | T23: 136.4880112 | U23: 126.9733262 | V23: 115.0153669 | W23: 107.7008983 | X23: 90.33717185 | Y23: 76.0698627 | Z23: 71.19181492 | AA23: 66.76180516 | AB23: 64.58761456 | AC23: 64.93616074 | AD23: 59.47361081 | AE23: 54.74142874 | AF23: 51.08838547
A24: LRKPPS | B24: 032316 | C24: 1 | D24: 2400 | E24: 60 | F24: 1 | G24: 1 | H24: KW | I24: 50.39916161 | J24: 49.98769131 | K24: 49.26206613 | L24: 52.31974776 | M24: 53.08413934 | N24: 65.88790476 | O24: 85.32038215 | P24: 103.9982206 | Q24: 124.5563805 | R24: 124.9843298 | S24: 124.9829554 | T24: 126.0917035 | U24: 119.7830374 | V24: 110.0175956 | W24: 108.3849539 | X24: 88.65918484 | Y24: 74.5725926 | Z24: 70.19265592 | AA24: 64.60727646 | AB24: 62.09712915 | AC24: 59.57469368 | AD24: 55.65629931 | AE24: 51.53804895 | AF24: 49.24429691
A25: LRKPPS | B25: 032416 | C25: 1 | D25: 2400 | E25: 60 | F25: 1 | G25: 1 | H25: KW | I25: 47.57924783 | J25: 47.12160466 | K25: 47.30928802 | L25: 50.02786752 | M25: 49.16648609 | N25: 62.60208669 | O25: 79.3976975 | P25: 99.08943278 | Q25: 122.606385 | R25: 125.1520479 | S25: 121.6835817 | T25: 124.4485996 | U25: 123.1004167 | V25: 113.2756723 | W25: 110.696926 | X25: 95.52165211 | Y25: 81.24421531 | Z25: 74.23120825 | AA25: 67.32367395 | AB25: 64.46827756 | AC25: 62.30811479 | AD25: 57.92154904 | AE25: 53.67880825 | AF25: 50.71626437
A26: LRKPPS | B26: 032516 | C26: 1 | D26: 2400 | E26: 60 | F26: 1 | G26: 1 | H26: KW | I26: 49.06052319 | J26: 48.19919542 | K26: 48.81095492 | L26: 49.18522517 | M26: 49.32736918 | N26: 60.40086163 | O26: 78.60379042 | P26: 93.06566392 | Q26: 115.6017733 | R26: 118.5015587 | S26: 118.8291904 | T26: 120.373309 | U26: 114.1275899 | V26: 106.1776451 | W26: 98.23634557 | X26: 83.11737365 | Y26: 71.65965774 | Z26: 66.70591582 | AA26: 61.47096568 | AB26: 59.52108899 | AC26: 58.16488722 | AD26: 54.55310404 | AE26: 52.28336069 | AF26: 49.2124324
A27: LRKPPS | B27: 032616 | C27: 1 | D27: 2400 | E27: 60 | F27: 1 | G27: 1 | H27: KW | I27: 47.70523838 | J27: 48.26775823 | K27: 48.13080962 | L27: 47.65357357 | M27: 49.20038128 | N27: 50.73598172 | O27: 52.77336829 | P27: 55.00154756 | Q27: 53.81726711 | R27: 50.97316349 | S27: 48.89895399 | T27: 46.9372945 | U27: 48.95774775 | V27: 47.3442781 | W27: 47.10456635 | X27: 47.09839651 | Y27: 46.49973857 | Z27: 46.6470738 | AA27: 45.86761637 | AB27: 45.67662961 | AC27: 46.86811685 | AD27: 46.04717084 | AE27: 46.39396643 | AF27: 46.19299654
A28: LRKPPS | B28: 032716 | C28: 1 | D28: 2400 | E28: 60 | F28: 1 | G28: 1 | H28: KW | I28: 45.36625029 | J28: 45.3380446 | K28: 45.51287461 | L28: 45.34390561 | M28: 45.52825657 | N28: 46.98395214 | O28: 47.39533777 | P28: 47.41188926 | Q28: 45.15072149 | R28: 43.83027978 | S28: 42.53780832 | T28: 42.14799594 | U28: 42.25860601 | V28: 42.3864068 | W28: 42.84558021 | X28: 43.15736352 | Y28: 43.79403354 | Z28: 43.76496748 | AA28: 43.08365083 | AB28: 44.92685559 | AC28: 45.79546875 | AD28: 45.4920647 | AE28: 46.74948488 | AF28: 47.30711919
A29: LRKPPS | B29: 032816 | C29: 1 | D29: 2400 | E29: 60 | F29: 1 | G29: 1 | H29: KW | I29: 45.99285125 | J29: 45.45663065 | K29: 45.03609778 | L29: 49.63919976 | M29: 50.56458018 | N29: 62.17244455 | O29: 76.69073407 | P29: 93.94657438 | Q29: 115.2609706 | R29: 116.7360492 | S29: 115.8649019 | T29: 118.4750376 | U29: 113.8373531 | V29: 104.5358148 | W29: 101.593709 | X29: 88.1479569 | Y29: 73.68153542 | Z29: 68.82448726 | AA29: 64.49588056 | AB29: 60.51692927 | AC29: 59.52167415 | AD29: 56.36015975 | AE29: 54.11293173 | AF29: 52.15121005
A30: LRKPPS | B30: 032916 | C30: 1 | D30: 2400 | E30: 60 | F30: 1 | G30: 1 | H30: KW | I30: 49.12634627 | J30: 48.44686665 | K30: 49.15923253 | L30: 52.11549082 | M30: 52.4101215 | N30: 66.55557599 | O30: 81.59061173 | P30: 101.1750736 | Q30: 122.7384311 | R30: 121.779941 | S30: 118.0034851 | T30: 125.6311586 | U30: 115.9942389 | V30: 105.2097676 | W30: 99.53969303 | X30: 86.61360284 | Y30: 74.27279342 | Z30: 68.13678663 | AA30: 64.19459229 | AB30: 61.96614549 | AC30: 63.91172368 | AD30: 60.0612545 | AE30: 55.58344896 | AF30: 52.15406282
A31: LRKPPS | B31: 033016 | C31: 1 | D31: 2400 | E31: 60 | F31: 1 | G31: 1 | H31: KW | I31: 50.7627959 | J31: 50.13895803 | K31: 50.69516032 | L31: 55.96187461 | M31: 56.40239176 | N31: 70.56677027 | O31: 91.08277333 | P31: 109.80443 | Q31: 133.3711649 | R31: 130.1401013 | S31: 120.5282909 | T31: 125.018542 | U31: 118.8853483 | V31: 107.5246237 | W31: 102.985639 | X31: 89.28648451 | Y31: 76.29882345 | Z31: 71.05124298 | AA31: 65.35064507 | AB31: 62.28841693 | AC31: 60.97224293 | AD31: 56.57092972 | AE31: 53.29384018 | AF31: 51.64390107
A32: LRKPPS | B32: 033116 | C32: 1 | D32: 2400 | E32: 60 | F32: 1 | G32: 1 | H32: KW | I32: 50.31929985 | J32: 49.36048438 | K32: 48.76818925 | L32: 50.90685185 | M32: 50.05430328 | N32: 61.68368839 | O32: 77.95769233 | P32: 92.67971155 | Q32: 115.7224842 | R32: 117.1246726 | S32: 116.9377272 | T32: 123.9044683 | U32: 118.3578263 | V32: 108.7184273 | W32: 103.3838707 | X32: 89.54008938 | Y32: 76.83226249 | Z32: 71.05584035 | AA32: 66.34567891 | AB32: 62.20249259 | AC32: 59.97870011 | AD32: 57.76187122 | AE32: 55.30588002 | AF32: 54.40134665
A33: LRKPPS | B33: 040116 | C33: 1 | D33: 2400 | E33: 60 | F33: 1 | G33: 1 | H33: KW | I33: 50.57843242 | J33: 49.25212832 | K33: 48.24198399 | L33: 48.81841461 | M33: 49.61272594 | N33: 59.51528944 | O33: 79.42314234 | P33: 94.08299437 | Q33: 115.136614 | R33: 120.4600558 | S33: 119.110097 | T33: 123.5192399 | U33: 120.0405366 | V33: 111.4765842 | W33: 103.9373049 | X33: 87.00080683 | Y33: 70.9420585 | Z33: 65.49199316 | AA33: 60.25980646 | AB33: 57.39041664 | AC33: 57.14053498 | AD33: 53.34462406 | AE33: 50.02637107 | AF33: 46.95339455
A34: LRKPPS | B34: 040216 | C34: 1 | D34: 2400 | E34: 60 | F34: 1 | G34: 1 | H34: KW | I34: 45.16463339 | J34: 44.90272238 | K34: 44.83286147 | L34: 44.98656868 | M34: 44.26334158 | N34: 44.17921321 | O34: 44.60183985 | P34: 43.45621976 | Q34: 42.15532601 | R34: 41.6831453 | S34: 42.90413892 | T34: 42.47957728 | U34: 42.71529625 | V34: 41.65464714 | W34: 41.9538156 | X34: 45.04285545 | Y34: 43.53706357 | Z34: 42.5932927 | AA34: 43.44065714 | AB34: 43.26069018 | AC34: 45.26855495 | AD34: 45.49077885 | AE34: 45.5993551 | AF34: 45.5612772
A35: LRKPPS | B35: 040316 | C35: 1 | D35: 2400 | E35: 60 | F35: 1 | G35: 1 | H35: KW | I35: 44.53984014 | J35: 44.60121078 | K35: 45.91149665 | L35: 46.75079862 | M35: 48.1669143 | N35: 48.7449571 | O35: 50.06651186 | P35: 50.72886457 | Q35: 48.77842681 | R35: 46.48915491 | S35: 44.67470766 | T35: 44.15306904 | U35: 43.58874669 | V35: 42.78425899 | W35: 42.74096058 | X35: 45.05190096 | Y35: 43.82908283 | Z35: 41.92834478 | AA35: 41.18350999 | AB35: 42.51338764 | AC35: 44.0419284 | AD35: 43.93121507 | AE35: 44.91025292 | AF35: 44.63724643
A36: LRKPPS | B36: 040416 | C36: 1 | D36: 2400 | E36: 60 | F36: 1 | G36: 1 | H36: KW | I36: 44.63054853 | J36: 42.9235413 | K36: 43.11017229 | L36: 42.5960609 | M36: 42.78268502 | N36: 47.2550945 | O36: 56.64832672 | P36: 64.44011926 | Q36: 73.98813489 | R36: 74.49448543 | S36: 73.1941741 | T36: 74.31214872 | U36: 73.15093378 | V36: 68.13732875 | W36: 66.46612858 | X36: 60.40834227 | Y36: 55.87113725 | Z36: 51.48027012 | AA36: 50.57490976 | AB36: 49.79184532 | AC36: 50.60389303 | AD36: 49.60919738 | AE36: 48.3863151 | AF36: 46.91748879
A37: LRKPPS | B37: 040516 | C37: 1 | D37: 2400 | E37: 60 | F37: 1 | G37: 1 | H37: KW | I37: 45.6909252 | J37: 45.8639267 | K37: 46.59181865 | L37: 46.93634229 | M37: 48.35703209 | N37: 54.47141969 | O37: 63.5684814 | P37: 70.01147929 | Q37: 81.15316101 | R37: 80.09438094 | S37: 79.92698233 | T37: 78.47576404 | U37: 74.80793003 | V37: 70.85147294 | W37: 66.45437707 | X37: 59.59684588 | Y37: 56.15737232 | Z37: 53.82269784 | AA37: 52.16856583 | AB37: 54.56203625 | AC37: 55.84709334 | AD37: 51.48875395 | AE37: 50.01735896 | AF37: 49.9047923
A38: LRKPPS | B38: 040616 | C38: 1 | D38: 2400 | E38: 60 | F38: 1 | G38: 1 | H38: KW | I38: 48.72704485 | J38: 49.36250458 | K38: 51.64679109 | L38: 53.24700274 | M38: 54.19783141 | N38: 59.66014343 | O38: 67.72145517 | P38: 75.73837909 | Q38: 82.20907105 | R38: 80.30587568 | S38: 75.4061041 | T38: 75.98100673 | U38: 74.98442423 | V38: 69.5665438 | W38: 64.68284129 | X38: 58.1051698 | Y38: 55.23396863 | Z38: 53.70719157 | AA38: 50.7774238 | AB38: 50.58803878 | AC38: 51.75704386 | AD38: 49.00244454 | AE38: 47.49212482 | AF38: 46.3660138
A39: LRKPPS | B39: 040716 | C39: 1 | D39: 2400 | E39: 60 | F39: 1 | G39: 1 | H39: KW | I39: 44.14979366 | J39: 43.67635815 | K39: 44.06681965 | L39: 44.39064411 | M39: 43.9018711 | N39: 46.66664327 | O39: 52.58097148 | P39: 56.90609641 | Q39: 64.02992483 | R39: 66.38019058 | S39: 67.86287663 | T39: 68.3450604 | U39: 67.20575586 | V39: 63.31036394 | W39: 60.86018875 | X39: 55.27643841 | Y39: 52.10702871 | Z39: 51.42903548 | AA39: 51.55436983 | AB39: 52.34216505 | AC39: 54.82415774 | AD39: 51.65257313 | AE39: 49.87347382 | AF39: 48.9698301
A40: LRKPPS | B40: 040816 | C40: 1 | D40: 2400 | E40: 60 | F40: 1 | G40: 1 | H40: KW | I40: 47.53823677 | J40: 48.00016683 | K40: 48.9270426 | L40: 50.22471224 | M40: 48.82404051 | N40: 53.92633017 | O40: 60.32903629 | P40: 65.68415818 | Q40: 70.71233981 | R40: 72.4598494 | S40: 70.5122128 | T40: 69.83016392 | U40: 66.27852932 | V40: 62.86146469 | W40: 60.93048961 | X40: 55.1421138 | Y40: 51.14683251 | Z40: 49.56961535 | AA40: 47.75305299 | AB40: 49.88370986 | AC40: 51.91565094 | AD40: 51.31301642 | AE40: 52.37538334 | AF40: 51.14388465
A41: LRKPPS | B41: 040916 | C41: 1 | D41: 2400 | E41: 60 | F41: 1 | G41: 1 | H41: KW | I41: 51.21831304 | J41: 53.20530011 | K41: 52.17032263 | L41: 53.97631084 | M41: 57.65243026 | N41: 60.01495896 | O41: 60.91146402 | P41: 61.57996677 | Q41: 61.16895076 | R41: 61.31216631 | S41: 60.83283548 | T41: 57.53724589 | U41: 55.2103524 | V41: 54.49390231 | W41: 53.15166415 | X41: 51.33011088 | Y41: 50.52674894 | Z41: 49.40200866 | AA41: 49.27442053 | AB41: 50.02353966 | AC41: 53.81734299 | AD41: 55.02038263 | AE41: 57.02297914 | AF41: 57.84787243
A42: LRKPPS | B42: 041016 | C42: 1 | D42: 2400 | E42: 60 | F42: 1 | G42: 1 | H42: KW | I42: 57.51450036 | J42: 58.56283879 | K42: 59.91084245 | L42: 59.86857976 | M42: 61.2571365 | N42: 62.27289599 | O42: 62.59469779 | P42: 65.08491302 | Q42: 61.96787766 | R42: 58.7890573 | S42: 56.80414385 | T42: 52.59830305 | U42: 48.52974351 | V42: 47.3499703 | W42: 47.71609283 | X42: 47.7346001 | Y42: 47.59494381 | Z42: 46.13815099 | AA42: 46.42005864 | AB42: 47.60733028 | AC42: 49.65525072 | AD42: 50.78616854 | AE42: 51.06720111 | AF42: 50.63015502
A43: LRKPPS | B43: 041116 | C43: 1 | D43: 2400 | E43: 60 | F43: 1 | G43: 1 | H43: KW | I43: 50.24012229 | J43: 49.7447184 | K43: 49.32355653 | L43: 53.98798832 | M43: 62.69578653 | N43: 69.50632614 | O43: 85.62181808 | P43: 108.4578889 | Q43: 131.566332 | R43: 133.1811317 | S43: 128.4790832 | T43: 131.0124026 | U43: 122.4293804 | V43: 111.0131158 | W43: 104.2212225 | X43: 91.19827347 | Y43: 75.43208125 | Z43: 69.57322098 | AA43: 66.21761261 | AB43: 64.50551655 | AC43: 63.28432786 | AD43: 58.29453609 | AE43: 53.76240503 | AF43: 50.86921875
A44: LRKPPS | B44: 041216 | C44: 1 | D44: 2400 | E44: 60 | F44: 1 | G44: 1 | H44: KW | I44: 49.77165999 | J44: 49.92692731 | K44: 48.99970674 | L44: 51.65962692 | M44: 51.73318923 | N44: 61.78044619 | O44: 80.29850996 | P44: 97.8268084 | Q44: 117.9189956 | R44: 122.7203655 | S44: 118.5450921 | T44: 127.7397156 | U44: 119.4246107 | V44: 107.9398515 | W44: 101.8660582 | X44: 87.23840485 | Y44: 74.86379375 | Z44: 71.21715684 | AA44: 67.12504957 | AB44: 62.51308499 | AC44: 61.0547959 | AD44: 56.97127666 | AE44: 54.6063402 | AF44: 52.52913787
A45: LRKPPS | B45: 041316 | C45: 1 | D45: 2400 | E45: 60 | F45: 1 | G45: 1 | H45: KW | I45: 50.84904777 | J45: 51.16124121 | K45: 52.45897326 | L45: 57.58492788 | M45: 60.15826563 | N45: 74.858498 | O45: 90.54120568 | P45: 105.9727724 | Q45: 131.2459153 | R45: 127.1896729 | S45: 121.6575489 | T45: 125.8578166 | U45: 119.4736417 | V45: 110.5287083 | W45: 104.1726869 | X45: 89.08750775 | Y45: 74.94320889 | Z45: 69.74288697 | AA45: 64.0699692 | AB45: 58.67423045 | AC45: 57.81593779 | AD45: 54.57929919 | AE45: 51.23041534 | AF45: 48.80862158
A46: LRKPPS | B46: 041416 | C46: 1 | D46: 2400 | E46: 60 | F46: 1 | G46: 1 | H46: KW | I46: 48.40901127 | J46: 48.5711249 | K46: 47.92519849 | L46: 51.22369561 | M46: 51.40759355 | N46: 64.67316715 | O46: 83.83710699 | P46: 100.2706885 | Q46: 120.8080048 | R46: 121.6577693 | S46: 117.5596608 | T46: 122.6869217 | U46: 119.1019709 | V46: 109.8711796 | W46: 104.1654105 | X46: 92.61227135 | Y46: 79.05402069 | Z46: 73.7035618 | AA46: 70.10427953 | AB46: 65.1587184 | AC46: 65.02728358 | AD46: 60.43234757 | AE46: 55.36221709 | AF46: 51.72408072
A47: LRKPPS | B47: 041516 | C47: 1 | D47: 2400 | E47: 60 | F47: 1 | G47: 1 | H47: KW | I47: 49.04783053 | J47: 48.60796314 | K47: 48.95914284 | L47: 50.15769285 | M47: 50.57920471 | N47: 62.34486493 | O47: 79.27282451 | P47: 92.65531027 | Q47: 115.3375842 | R47: 119.9699962 | S47: 118.4316999 | T47: 124.4021377 | U47: 118.6730241 | V47: 114.4363433 | W47: 109.1503602 | X47: 92.38666012 | Y47: 80.38824751 | Z47: 75.4773766 | AA47: 70.63698632 | AB47: 65.33698683 | AC47: 63.75222406 | AD47: 57.33839894 | AE47: 51.73850053 | AF47: 49.50902003
A48: LRKPPS | B48: 041616 | C48: 1 | D48: 2400 | E48: 60 | F48: 1 | G48: 1 | H48: KW | I48: 46.5587303 | J48: 46.54711903 | K48: 46.24906112 | L48: 45.1290288 | M48: 44.431977 | N48: 45.21309968 | O48: 45.38132674 | P48: 45.63482476 | Q48: 47.18549699 | R48: 47.30940863 | S48: 46.60429541 | T48: 49.8368653 | U48: 48.19398842 | V48: 49.03734703 | W48: 49.49059362 | X48: 48.03991561 | Y48: 48.57058037 | Z48: 49.09246611 | AA48: 50.43906772 | AB48: 50.46890519 | AC48: 49.94271876 | AD48: 50.62200645 | AE48: 50.51241538 | AF48: 48.91122275
A49: LRKPPS | B49: 041716 | C49: 1 | D49: 2400 | E49: 60 | F49: 1 | G49: 1 | H49: KW | I49: 48.32675414 | J49: 47.38322038 | K49: 47.1270397 | L49: 46.8631629 | M49: 46.09283687 | N49: 46.84520801 | O49: 47.76627576 | P49: 46.85398871 | Q49: 45.15225596 | R49: 43.96511712 | S49: 43.58402754 | T49: 44.09378704 | U49: 47.33900718 | V49: 49.09284118 | W49: 51.21770323 | X49: 51.61359931 | Y49: 54.64382757 | Z49: 53.1209783 | AA49: 52.89514576 | AB49: 52.1895191 | AC49: 51.01143984 | AD49: 51.26833128 | AE49: 51.37273602 | AF49: 49.49238966
A50: LRKPPS | B50: 041816 | C50: 1 | D50: 2400 | E50: 60 | F50: 1 | G50: 1 | H50: KW | I50: 47.48479444 | J50: 47.31003785 | K50: 46.68136467 | L50: 49.4075311 | M50: 48.95246217 | N50: 59.41124225 | O50: 76.67122095 | P50: 93.5127696 | Q50: 116.7418539 | R50: 122.1564373 | S50: 124.942701 | T50: 132.8692733 | U50: 132.0337408 | V50: 126.9960408 | W50: 121.6208256 | X50: 107.8844443 | Y50: 91.83157793 | Z50: 86.33025103 | AA50: 77.3387474 | AB50: 70.77214729 | AC50: 67.04704846 | AD50: 59.86175202 | AE50: 54.19857966 | AF50: 51.60361419
A51: LRKPPS | B51: 041916 | C51: 1 | D51: 2400 | E51: 60 | F51: 1 | G51: 1 | H51: KW | I51: 49.80258389 | J51: 48.79090822 | K51: 48.73697226 | L51: 49.11881871 | M51: 48.70014857 | N51: 58.27462748 | O51: 72.86179503 | P51: 89.40442725 | Q51: 119.4577781 | R51: 122.6217051 | S51: 127.6650194 | T51: 136.5730434 | U51: 135.2221359 | V51: 126.9061193 | W51: 127.3201133 | X51: 112.2074261 | Y51: 99.2018969 | Z51: 89.59613398 | AA51: 80.47949041 | AB51: 73.81069403 | AC51: 72.5372635 | AD51: 63.96695357 | AE51: 60.03037262 | AF51: 55.41358116
A52: LRKPPS | B52: 042016 | C52: 1 | D52: 2400 | E52: 60 | F52: 1 | G52: 1 | H52: KW | I52: 56.28665237 | J52: 55.6294433 | K52: 54.67680152 | L52: 55.0234471 | M52: 52.88704746 | N52: 62.29355065 | O52: 80.18878087 | P52: 95.93811804 | Q52: 118.8111208 | R52: 121.9956241 | S52: 126.976951 | T52: 136.5544511 | U52: 136.4823937 | V52: 130.995431 | W52: 126.9584654 | X52: 110.7636249 | Y52: 95.3185102 | Z52: 87.46039836 | AA52: 80.32453574 | AB52: 75.28812621 | AC52: 68.59624247 | AD52: 62.43503809 | AE52: 58.82201447 | AF52: 54.25936181
A53: LRKPPS | B53: 042116 | C53: 1 | D53: 2400 | E53: 60 | F53: 1 | G53: 1 | H53: KW | I53: 51.21904398 | J53: 52.16240681 | K53: 52.16314596 | L53: 51.75597851 | M53: 51.53010135 | N53: 62.15447092 | O53: 79.95036168 | P53: 95.68617282 | Q53: 124.7398572 | R53: 127.7273892 | S53: 130.2626897 | T53: 135.6769364 | U53: 132.3089614 | V53: 126.3654577 | W53: 121.7358314 | X53: 106.4946957 | Y53: 92.12439925 | Z53: 85.98224455 | AA53: 78.05536297 | AB53: 72.95838712 | AC53: 69.48132113 | AD53: 64.06577622 | AE53: 59.34148416 | AF53: 55.6167434
A54: LRKPPS | B54: 042216 | C54: 1 | D54: 2400 | E54: 60 | F54: 1 | G54: 1 | H54: KW | I54: 53.4146853 | J54: 53.3803932 | K54: 53.61904634 | L54: 54.79969742 | M54: 53.22463158 | N54: 63.7365483 | O54: 79.63893232 | P54: 97.32510961 | Q54: 122.3583547 | R54: 125.6991554 | S54: 127.4740226 | T54: 133.0067851 | U54: 129.5444836 | V54: 119.2059587 | W54: 114.7352829 | X54: 100.2318092 | Y54: 82.7031694 | Z54: 74.86840361 | AA54: 68.64286188 | AB54: 64.11382067 | AC54: 60.96261924 | AD54: 57.6311102 | AE54: 55.59515688 | AF54: 51.05744958
A55: LRKPPS | B55: 042316 | C55: 1 | D55: 2400 | E55: 60 | F55: 1 | G55: 1 | H55: KW | I55: 48.93670198 | J55: 48.22898861 | K55: 49.09514783 | L55: 47.22494056 | M55: 47.49590689 | N55: 47.11741807 | O55: 47.81326848 | P55: 47.27864922 | Q55: 47.59643535 | R55: 46.77247363 | S55: 46.89211119 | T55: 46.60699471 | U55: 46.50619868 | V55: 46.20130048 | W55: 46.02316647 | X55: 47.37736912 | Y55: 48.30135063 | Z55: 49.65117252 | AA55: 49.44493583 | AB55: 47.47789585 | AC55: 48.60435293 | AD55: 49.95853419 | AE55: 49.72399292 | AF55: 47.69997226
A56: LRKPPS | B56: 042416 | C56: 1 | D56: 2400 | E56: 60 | F56: 1 | G56: 1 | H56: KW | I56: 46.16737159 | J56: 45.76779034 | K56: 45.72602632 | L56: 45.32305181 | M56: 45.21239357 | N56: 45.72416217 | O56: 46.29995812 | P56: 45.50373966 | Q56: 44.80484548 | R56: 44.64493365 | S56: 44.02251902 | T56: 44.24179967 | U56: 45.13361822 | V56: 45.81769119 | W56: 45.81966328 | X56: 50.02959582 | Y56: 50.11865476 | Z56: 52.16583974 | AA56: 51.79601305 | AB56: 50.15063848 | AC56: 49.45139721 | AD56: 49.31995547 | AE56: 49.20089164 | AF56: 47.28565858
A57: LRKPPS | B57: 042516 | C57: 1 | D57: 2400 | E57: 60 | F57: 1 | G57: 1 | H57: KW | I57: 46.10053054 | J57: 46.06422372 | K57: 44.97697874 | L57: 46.92106119 | M57: 48.21348712 | N57: 60.50105988 | O57: 74.96192406 | P57: 90.11400403 | Q57: 116.3551862 | R57: 124.7360053 | S57: 126.9423219 | T57: 132.666259 | U57: 129.9265623 | V57: 123.1849586 | W57: 118.9654647 | X57: 106.3108462 | Y57: 91.76633647 | Z57: 84.47708819 | AA57: 77.78053028 | AB57: 71.27396108 | AC57: 67.31262591 | AD57: 62.29513039 | AE57: 57.91900176 | AF57: 52.29817874
A58: LRKPPS | B58: 042616 | C58: 1 | D58: 2400 | E58: 60 | F58: 1 | G58: 1 | H58: KW | I58: 50.10769533 | J58: 49.00108375 | K58: 48.93905882 | L58: 48.65803399 | M58: 47.97117678 | N58: 58.47509692 | O58: 76.34941174 | P58: 95.33769879 | Q58: 122.2813086 | R58: 130.1975113 | S58: 133.5813592 | T58: 139.7773546 | U58: 142.6372383 | V58: 133.8879 | W58: 129.3299643 | X58: 114.2197289 | Y58: 100.654175 | Z58: 91.93279689 | AA58: 83.57457504 | AB58: 76.03467479 | AC58: 74.89362598 | AD58: 68.19090896 | AE58: 62.11250117 | AF58: 58.88922521
A59: LRKPPS | B59: 042716 | C59: 1 | D59: 2400 | E59: 60 | F59: 1 | G59: 1 | H59: KW | I59: 54.88676425 | J59: 53.7284033 | K59: 53.38969019 | L59: 53.19673736 | M59: 54.98018674 | N59: 64.89647485 | O59: 82.53992262 | P59: 101.604372 | Q59: 129.9129431 | R59: 135.8758611 | S59: 135.1017679 | T59: 140.7276057 | U59: 140.2983361 | V59: 133.1175533 | W59: 123.5499607 | X59: 106.9092278 | Y59: 93.49133975 | Z59: 84.71070968 | AA59: 76.47010079 | AB59: 69.52447008 | AC59: 66.04126206 | AD59: 62.05992692 | AE59: 59.30265809 | AF59: 56.73575386
A60: LRKPPS | B60: 042816 | C60: 1 | D60: 2400 | E60: 60 | F60: 1 | G60: 1 | H60: KW | I60: 53.1191163 | J60: 51.70076971 | K60: 51.14836756 | L60: 50.11216159 | M60: 52.17197937 | N60: 64.2576483 | O60: 79.68241677 | P60: 98.85298654 | Q60: 125.7384472 | R60: 135.046898 | S60: 140.630558 | T60: 145.0506049 | U60: 141.9004173 | V60: 134.3250835 | W60: 129.5642767 | X60: 113.1986324 | Y60: 95.89585139 | Z60: 89.40801039 | AA60: 80.91185006 | AB60: 74.08507545 | AC60: 70.96728032 | AD60: 66.3282241 | AE60: 61.77022146 | AF60: 57.63499292
A61: LRKPPS | B61: 042916 | C61: 1 | D61: 2400 | E61: 60 | F61: 1 | G61: 1 | H61: KW | I61: 53.83003494 | J61: 52.6024934 | K61: 51.2282633 | L61: 50.19232612 | M61: 52.4086369 | N61: 59.11507909 | O61: 76.43350336 | P61: 94.11947881 | Q61: 119.0605996 | R61: 127.6532394 | S61: 133.4598181 | T61: 136.5720982 | U61: 131.7609154 | V61: 127.7846107 | W61: 123.6091324 | X61: 105.6770685 | Y61: 88.03296499 | Z61: 81.94444903 | AA61: 74.52593402 | AB61: 70.2720589 | AC61: 66.38359727 | AD61: 60.69414755 | AE61: 56.2179511 | AF61: 53.65922344
A62: LRKPPS | B62: 043016 | C62: 1 | D62: 2400 | E62: 60 | F62: 1 | G62: 1 | H62: KW | I62: 50.72426398 | J62: 50.00103273 | K62: 49.02968547 | L62: 47.45789514 | M62: 47.75409258 | N62: 48.14577923 | O62: 48.92598152 | P62: 48.24462953 | Q62: 48.51142237 | R62: 48.11295514 | S62: 47.31332567 | T62: 48.31563365 | U62: 48.69665593 | V62: 49.8966542 | W62: 50.56760504 | X62: 51.68756281 | Y62: 52.0796988 | Z62: 52.24780297 | AA62: 51.89393683 | AB62: 50.12606281 | AC62: 51.65498061 | AD62: 51.23596233 | AE62: 51.35997968 | AF62: 50.31141551
A63: LRKPPS | B63: 050116 | C63: 1 | D63: 2400 | E63: 60 | F63: 1 | G63: 1 | H63: KW | I63: 49.71195613 | J63: 49.00852129 | K63: 49.36383933 | L63: 48.9130062 | M63: 47.8355336 | N63: 47.46375657 | O63: 47.52035787 | P63: 48.04273272 | Q63: 47.78028196 | R63: 48.16773691 | S63: 48.4606981 | T63: 49.89087849 | U63: 52.86865279 | V63: 55.34052184 | W63: 60.02385993 | X63: 61.86631229 | Y63: 64.32876417 | Z63: 59.93663623 | AA63: 57.9523739 | AB63: 51.74397884 | AC63: 51.55003218 | AD63: 52.42358406 | AE63: 53.29502952 | AF63: 52.04275546
A64: LRKPPS | B64: 050216 | C64: 1 | D64: 2400 | E64: 60 | F64: 1 | G64: 1 | H64: KW | I64: 48.45564366 | J64: 48.23529315 | K64: 47.78020161 | L64: 47.44982989 | M64: 50.1292486 | N64: 61.28028644 | O64: 76.4462933 | P64: 94.20488179 | Q64: 125.8867383 | R64: 130.6516978 | S64: 140.251816 | T64: 147.4251383 | U64: 145.4368771 | V64: 132.6086971 | W64: 126.4469089 | X64: 105.2494816 | Y64: 87.71427026 | Z64: 77.81975292 | AA64: 70.95151488 | AB64: 65.63884577 | AC64: 64.75028229 | AD64: 61.71581064 | AE64: 57.56553538 | AF64: 54.89170808
A65: LRKPPS | B65: 050316 | C65: 1 | D65: 2400 | E65: 60 | F65: 1 | G65: 1 | H65: KW | I65: 52.72332793 | J65: 51.25476601 | K65: 49.4000151 | L65: 49.49901095 | M65: 51.02786477 | N65: 62.05508803 | O65: 79.54239667 | P65: 96.34060278 | Q65: 125.8919329 | R65: 126.8053903 | S65: 127.784565 | T65: 131.7637638 | U65: 127.5228787 | V65: 116.6081678 | W65: 113.5472188 | X65: 96.63856858 | Y65: 81.52678276 | Z65: 75.67405687 | AA65: 71.77154972 | AB65: 66.78939314 | AC65: 63.48321322 | AD65: 58.52653513 | AE65: 55.95635021 | AF65: 52.623937
A66: LRKPPS | B66: 050416 | C66: 1 | D66: 2400 | E66: 60 | F66: 1 | G66: 1 | H66: KW | I66: 50.52717009 | J66: 49.94086949 | K66: 49.91369719 | L66: 48.66847124 | M66: 51.04513916 | N66: 60.8128964 | O66: 75.8276276 | P66: 94.24339998 | Q66: 120.0050009 | R66: 124.9994106 | S66: 123.9800132 | T66: 129.2826057 | U66: 124.8085078 | V66: 114.3549829 | W66: 109.636282 | X66: 92.76386772 | Y66: 78.80470996 | Z66: 70.74440624 | AA66: 64.7205144 | AB66: 63.11123183 | AC66: 59.56680314 | AD66: 57.16129106 | AE66: 55.18586259 | AF66: 51.65222743
A67: LRKPPS | B67: 050516 | C67: 1 | D67: 2400 | E67: 60 | F67: 1 | G67: 1 | H67: KW | I67: 48.9331639 | J67: 49.1654829 | K67: 48.85323024 | L67: 49.16136504 | M67: 50.8885469 | N67: 61.6176238 | O67: 75.91816408 | P67: 96.1087939 | Q67: 119.2279633 | R67: 124.6820756 | S67: 122.969666 | T67: 123.8583517 | U67: 119.1966026 | V67: 110.6656608 | W67: 105.1960073 | X67: 89.97930895 | Y67: 75.60681213 | Z67: 69.89082504 | AA67: 66.59881811 | AB67: 64.91358623 | AC67: 61.192321 | AD67: 55.30643512 | AE67: 51.3315516 | AF67: 49.29201024
A68: LRKPPS | B68: 050616 | C68: 1 | D68: 2400 | E68: 60 | F68: 1 | G68: 1 | H68: KW | I68: 48.13056989 | J68: 47.75885194 | K68: 47.49614164 | L68: 51.93572851 | M68: 50.22602253 | N68: 63.55643004 | O68: 80.38967346 | P68: 94.24189817 | Q68: 120.1720514 | R68: 123.6622722 | S68: 124.6540903 | T68: 127.1144249 | U68: 122.6423042 | V68: 112.1230987 | W68: 106.03519 | X68: 89.75607847 | Y68: 76.86575044 | Z68: 71.8335652 | AA68: 66.32796649 | AB68: 61.91258424 | AC68: 60.83368193 | AD68: 55.18307592 | AE68: 51.92455603 | AF68: 50.37690447
A69: LRKPPS | B69: 050716 | C69: 1 | D69: 2400 | E69: 60 | F69: 1 | G69: 1 | H69: KW | I69: 47.26764622 | J69: 47.3173621 | K69: 46.51170551 | L69: 46.36197466 | M69: 46.54834395 | N69: 46.03620992 | O69: 45.6345291 | P69: 46.21827592 | Q69: 47.25871409 | R69: 49.6143392 | S69: 50.22446211 | T69: 50.31204466 | U69: 50.18633525 | V69: 48.85646954 | W69: 49.89653758 | X69: 50.55880676 | Y69: 50.43036869 | Z69: 51.75080811 | AA69: 50.98539882 | AB69: 52.86976618 | AC69: 54.06224432 | AD69: 51.0650797 | AE69: 50.24165442 | AF69: 49.04429981
A70: LRKPPS | B70: 050816 | C70: 1 | D70: 2400 | E70: 60 | F70: 1 | G70: 1 | H70: KW | I70: 48.03772171 | J70: 46.53502487 | K70: 46.93038464 | L70: 46.987123 | M70: 46.39710671 | N70: 46.58210814 | O70: 47.19419692 | P70: 47.84746795 | Q70: 46.48724403 | R70: 46.544921 | S70: 47.06504031 | T70: 48.94948404 | U70: 47.41350325 | V70: 48.35839507 | W70: 48.22494547 | X70: 47.33103374 | Y70: 46.0393743 | Z70: 46.18116037 | AA70: 47.21497567 | AB70: 48.49445798 | AC70: 48.5833001 | AD70: 49.59944354 | AE70: 49.94977213 | AF70: 48.97211253
A71: LRKPPS | B71: 050916 | C71: 1 | D71: 2400 | E71: 60 | F71: 1 | G71: 1 | H71: KW | I71: 47.42829862 | J71: 47.53737486 | K71: 47.02188521 | L71: 49.09800104 | M71: 49.79579971 | N71: 61.33440263 | O71: 78.2262289 | P71: 93.36813757 | Q71: 119.9220452 | R71: 124.4825935 | S71: 126.1932737 | T71: 130.8568524 | U71: 129.0208656 | V71: 119.4660404 | W71: 117.5015528 | X71: 103.716233 | Y71: 90.46828928 | Z71: 83.11731572 | AA71: 74.50602719 | AB71: 68.48824678 | AC71: 66.35149136 | AD71: 62.52159348 | AE71: 59.43883727 | AF71: 56.99477418
A72: LRKPPS | B72: 051016 | C72: 1 | D72: 2400 | E72: 60 | F72: 1 | G72: 1 | H72: KW | I72: 56.14900231 | J72: 55.19586411 | K72: 54.24416068 | L72: 53.71421416 | M72: 54.13499819 | N72: 66.43626147 | O72: 80.43790938 | P72: 101.0853934 | Q72: 126.9035028 | R72: 134.6260291 | S72: 137.5917522 | T72: 142.7374642 | U72: 138.4797681 | V72: 128.2704684 | W72: 121.2823994 | X72: 107.9617207 | Y72: 96.12801273 | Z72: 89.20344221 | AA72: 82.66085927 | AB72: 73.82856277 | AC72: 68.13185957 | AD72: 64.56001475 | AE72: 61.79104789 | AF72: 57.95784889
A73: LRKPPS | B73: 051116 | C73: 1 | D73: 2400 | E73: 60 | F73: 1 | G73: 1 | H73: KW | I73: 55.3494365 | J73: 54.66504271 | K73: 52.76427529 | L73: 50.82525713 | M73: 53.47102394 | N73: 65.39668347 | O73: 81.6767833 | P73: 100.7715023 | Q73: 127.2374158 | R73: 133.2271392 | S73: 138.4236212 | T73: 144.4754986 | U73: 139.6500829 | V73: 132.4369458 | W73: 130.5589392 | X73: 114.6082704 | Y73: 101.0830188 | Z73: 93.82396082 | AA73: 89.87345717 | AB73: 81.385522 | AC73: 75.60778664 | AD73: 71.78987223 | AE73: 66.82830243 | AF73: 61.38949369
A74: LRKPPS | B74: 051216 | C74: 1 | D74: 2400 | E74: 60 | F74: 1 | G74: 1 | H74: KW | I74: 56.63993873 | J74: 55.86282886 | K74: 55.20256986 | L74: 54.4498668 | M74: 56.83725135 | N74: 67.86965526 | O74: 83.09443399 | P74: 104.7997177 | Q74: 136.8975128 | R74: 144.402765 | S74: 147.7217285 | T74: 154.045142 | U74: 152.2393446 | V74: 144.5436383 | W74: 139.0794853 | X74: 121.7843133 | Y74: 107.3543806 | Z74: 99.23230912 | AA74: 92.1829389 | AB74: 82.3686114 | AC74: 76.71927173 | AD74: 71.25297097 | AE74: 66.27757463 | AF74: 61.4610477
A75: LRKPPS | B75: 051316 | C75: 1 | D75: 2400 | E75: 60 | F75: 1 | G75: 1 | H75: KW | I75: 57.80337092 | J75: 58.38108732 | K75: 55.69024878 | L75: 54.143045 | M75: 56.34155073 | N75: 67.13211986 | O75: 84.06509028 | P75: 103.5933942 | Q75: 129.8561081 | R75: 133.9857861 | S75: 134.0892913 | T75: 138.6146726 | U75: 134.2002778 | V75: 127.3436039 | W75: 119.9935395 | X75: 104.450144 | Y75: 89.41214404 | Z75: 81.75585748 | AA75: 77.55684072 | AB75: 71.27977798 | AC75: 65.6585486 | AD75: 60.76196534 | AE75: 55.79309555 | AF75: 53.09571575
A76: LRKPPS | B76: 051416 | C76: 1 | D76: 2400 | E76: 60 | F76: 1 | G76: 1 | H76: KW | I76: 51.59223932 | J76: 50.98980276 | K76: 50.7064879 | L76: 50.39022018 | M76: 49.21371483 | N76: 48.69685125 | O76: 47.41580176 | P76: 46.67723419 | Q76: 47.58613003 | R76: 47.70033124 | S76: 47.88523985 | T76: 47.72635189 | U76: 47.75806683 | V76: 49.21242429 | W76: 48.14239166 | X76: 47.59168141 | Y76: 47.72482288 | Z76: 47.75077903 | AA76: 49.27603682 | AB76: 48.95917978 | AC76: 49.33689834 | AD76: 50.48368279 | AE76: 50.34377261 | AF76: 48.70276916
A77: LRKPPS | B77: 051516 | C77: 1 | D77: 2400 | E77: 60 | F77: 1 | G77: 1 | H77: KW | I77: 48.1544426 | J77: 47.3617129 | K77: 46.30983199 | L77: 46.33575703 | M77: 46.46264556 | N77: 46.22361248 | O77: 46.52340057 | P77: 46.15761627 | Q77: 45.48622162 | R77: 45.71648265 | S77: 46.73465707 | T77: 45.91561858 | U77: 45.95883672 | V77: 46.70844582 | W77: 46.70745419 | X77: 46.04187391 | Y77: 47.16666393 | Z77: 46.13255395 | AA77: 46.38312292 | AB77: 46.53473416 | AC77: 47.60668338 | AD77: 49.44286469 | AE77: 50.45574369 | AF77: 49.56597536
A78: LRKPPS | B78: 051616 | C78: 1 | D78: 2400 | E78: 60 | F78: 1 | G78: 1 | H78: KW | I78: 47.55031042 | J78: 47.00414254 | K78: 46.71857975 | L78: 51.59317872 | M78: 56.2487832 | N78: 64.13011747 | O78: 79.43434644 | P78: 94.6500542 | Q78: 117.2406747 | R78: 118.6729689 | S78: 120.6940879 | T78: 122.0750489 | U78: 114.151797 | V78: 104.4087869 | W78: 99.88978791 | X78: 86.03598949 | Y78: 72.91370268 | Z78: 68.35085216 | AA78: 63.67641047 | AB78: 60.34789013 | AC78: 56.85665974 | AD78: 54.83591661 | AE78: 52.64125932 | AF78: 50.54288269
A79: LRKPPS | B79: 051716 | C79: 1 | D79: 2400 | E79: 60 | F79: 1 | G79: 1 | H79: KW | I79: 48.70888735 | J79: 48.69634209 | K79: 47.47631307 | L79: 51.57893588 | M79: 48.97960576 | N79: 52.27809291 | O79: 55.75577301 | P79: 58.53418515 | Q79: 64.36916534 | R79: 65.97311873 | S79: 68.03477394 | T79: 67.39598289 | U79: 65.25166195 | V79: 66.74995622 | W79: 68.11170331 | X79: 62.00270808 | Y79: 58.19731092 | Z79: 55.57909291 | AA79: 55.53214945 | AB79: 54.32612499 | AC79: 52.58571547 | AD79: 51.9055957 | AE79: 52.40739068 | AF79: 51.40851918
A80: LRKPPS | B80: 051816 | C80: 1 | D80: 2400 | E80: 60 | F80: 1 | G80: 1 | H80: KW | I80: 50.97705313 | J80: 49.57370911 | K80: 48.12813681 | L80: 51.23722227 | M80: 50.20026734 | N80: 62.00955197 | O80: 73.60806214 | P80: 88.94470987 | Q80: 115.0157878 | R80: 116.590359 | S80: 115.811028 | T80: 119.9347687 | U80: 111.7549635 | V80: 104.3070916 | W80: 100.3591232 | X80: 86.66435034 | Y80: 74.32218959 | Z80: 66.41393778 | AA80: 61.63297042 | AB80: 59.95706204 | AC80: 58.28207463 | AD80: 57.20658139 | AE80: 52.99132333 | AF80: 51.27536355
A81: LRKPPS | B81: 051916 | C81: 1 | D81: 2400 | E81: 60 | F81: 1 | G81: 1 | H81: KW | I81: 50.99356907 | J81: 49.66718797 | K81: 49.36705914 | L81: 52.17734974 | M81: 51.32664018 | N81: 61.11228968 | O81: 77.25507565 | P81: 91.2321386 | Q81: 112.1806099 | R81: 114.4874524 | S81: 117.7368409 | T81: 122.1737309 | U81: 117.3393379 | V81: 112.0994733 | W81: 108.4560916 | X81: 97.32849424 | Y81: 84.23867395 | Z81: 78.23583358 | AA81: 74.15705086 | AB81: 68.78764223 | AC81: 62.97573757 | AD81: 60.37122738 | AE81: 57.43949451 | AF81: 53.90533907
A82: LRKPPS | B82: 052016 | C82: 1 | D82: 2400 | E82: 60 | F82: 1 | G82: 1 | H82: KW | I82: 51.99053291 | J82: 50.65513228 | K82: 50.31914785 | L82: 53.78182928 | M82: 53.81678617 | N82: 62.89234981 | O82: 75.83158131 | P82: 89.07653069 | Q82: 110.150005 | R82: 113.2682338 | S82: 113.6401386 | T82: 119.6530724 | U82: 119.2112776 | V82: 113.8913145 | W82: 110.6065201 | X82: 97.35004622 | Y82: 81.48703385 | Z82: 74.81199239 | AA82: 73.51848009 | AB82: 73.75967943 | AC82: 71.00416724 | AD82: 65.23324744 | AE82: 56.79492502 | AF82: 52.16720663
A83: LRKPPS | B83: 052116 | C83: 1 | D83: 2400 | E83: 60 | F83: 1 | G83: 1 | H83: KW | I83: 49.75287626 | J83: 48.3848622 | K83: 48.63597661 | L83: 48.62744419 | M83: 47.46127458 | N83: 47.64763386 | O83: 46.81337171 | P83: 46.9499353 | Q83: 46.89473393 | R83: 48.05392339 | S83: 48.01132152 | T83: 48.00411576 | U83: 49.08730907 | V83: 49.99972117 | W83: 51.54168842 | X83: 51.29711821 | Y83: 50.60323359 | Z83: 50.4633318 | AA83: 52.09730409 | AB83: 51.33390684 | AC83: 50.32992297 | AD83: 49.86907196 | AE83: 49.69631548 | AF83: 48.09420415
A84: LRKPPS | B84: 052216 | C84: 1 | D84: 2400 | E84: 60 | F84: 1 | G84: 1 | H84: KW | I84: 47.55463656 | J84: 47.55397773 | K84: 47.11153366 | L84: 46.9823734 | M84: 46.55396123 | N84: 46.28760069 | O84: 45.06693674 | P84: 44.85596328 | Q84: 44.2531316 | R84: 43.41274482 | S84: 43.90581292 | T84: 45.2864372 | U84: 46.14084728 | V84: 48.03116755 | W84: 50.12950329 | X84: 51.07748295 | Y84: 50.29599401 | Z84: 54.60333645 | AA84: 51.9620929 | AB84: 51.08728717 | AC84: 51.74800224 | AD84: 51.52121382 | AE84: 52.37614248 | AF84: 50.82355665
A85: LRKPPS | B85: 052316 | C85: 1 | D85: 2400 | E85: 60 | F85: 1 | G85: 1 | H85: KW | I85: 49.15361234 | J85: 48.49073567 | K85: 47.97026478 | L85: 50.68255069 | M85: 53.10618144 | N85: 60.65665511 | O85: 73.85265997 | P85: 87.0982148 | Q85: 109.0911725 | R85: 114.7675249 | S85: 118.2035022 | T85: 123.5915732 | U85: 120.793886 | V85: 115.7006899 | W85: 111.298387 | X85: 100.626683 | Y85: 84.06303253 | Z85: 76.52792163 | AA85: 70.98485655 | AB85: 65.18827258 | AC85: 60.94496826 | AD85: 57.45585369 | AE85: 56.50111051 | AF85: 53.65159873
A86: LRKPPS | B86: 052416 | C86: 1 | D86: 2400 | E86: 60 | F86: 1 | G86: 1 | H86: KW | I86: 51.87577377 | J86: 50.33760024 | K86: 49.88580649 | L86: 50.91342546 | M86: 49.21065511 | N86: 56.89907842 | O86: 67.86462447 | P86: 84.57373376 | Q86: 105.4187312 | R86: 116.1978986 | S86: 117.9274755 | T86: 119.2238981 | U86: 117.1632751 | V86: 113.7715452 | W86: 110.8667996 | X86: 99.39923473 | Y86: 88.26119724 | Z86: 82.81675758 | AA86: 76.7144802 | AB86: 71.28490375 | AC86: 65.83986795 | AD86: 61.89268318 | AE86: 60.99988512 | AF86: 57.4409131
A87: LRKPPS | B87: 052516 | C87: 1 | D87: 2400 | E87: 60 | F87: 1 | G87: 1 | H87: KW | I87: 54.1585459 | J87: 52.86795018 | K87: 52.91668162 | L87: 52.56232279 | M87: 51.34213458 | N87: 59.96965473 | O87: 68.28405737 | P87: 84.30142061 | Q87: 105.6144674 | R87: 113.6544463 | S87: 116.9950841 | T87: 119.702525 | U87: 115.9398757 | V87: 114.2504156 | W87: 112.7949953 | X87: 100.5347667 | Y87: 87.97152099 | Z87: 84.9245443 | AA87: 79.8712543 | AB87: 72.03907612 | AC87: 70.82870645 | AD87: 67.60264437 | AE87: 64.3346463 | AF87: 60.21106481
A88: LRKPPS | B88: 052616 | C88: 1 | D88: 2400 | E88: 60 | F88: 1 | G88: 1 | H88: KW | I88: 56.89358645 | J88: 57.71674559 | K88: 56.62590583 | L88: 56.96271176 | M88: 56.93919891 | N88: 63.44185935 | O88: 73.69543079 | P88: 90.17113634 | Q88: 110.221076 | R88: 116.463556 | S88: 117.5535397 | T88: 118.5446862 | U88: 113.6417528 | V88: 111.2142213 | W88: 109.0541589 | X88: 100.2814136 | Y88: 87.50837767 | Z88: 84.2384212 | AA88: 83.53967262 | AB88: 77.44208393 | AC88: 71.90144157 | AD88: 65.23377384 | AE88: 61.99822833 | AF88: 60.28440753
A89: LRKPPS | B89: 052716 | C89: 1 | D89: 2400 | E89: 60 | F89: 1 | G89: 1 | H89: KW | I89: 57.02672844 | J89: 55.67972784 | K89: 58.19021257 | L89: 55.7011515 | M89: 54.97736486 | N89: 58.59152707 | O89: 66.27543679 | P89: 77.70612783 | Q89: 92.53659036 | R89: 103.2599579 | S89: 109.7050766 | T89: 110.8552794 | U89: 108.8002869 | V89: 106.9323738 | W89: 101.2580349 | X89: 92.93866482 | Y89: 83.91467675 | Z89: 79.77370496 | AA89: 78.03199978 | AB89: 75.92504689 | AC89: 72.02049765 | AD89: 68.69217946 | AE89: 64.79908294 | AF89: 62.19646168
A90: LRKPPS | B90: 052816 | C90: 1 | D90: 2400 | E90: 60 | F90: 1 | G90: 1 | H90: KW | I90: 58.87916122 | J90: 57.49624496 | K90: 56.7897993 | L90: 56.64413399 | M90: 55.54293001 | N90: 54.9858964 | O90: 53.51866021 | P90: 55.8028915 | Q90: 56.67951043 | R90: 60.30083935 | S90: 63.11295137 | T90: 64.49466323 | U90: 65.54099098 | V90: 69.10934098 | W90: 69.78030783 | X90: 69.12235144 | Y90: 69.78493249 | Z90: 70.56637561 | AA90: 71.57927205 | AB90: 69.73570652 | AC90: 67.13814095 | AD90: 65.78368117 | AE90: 64.23615967 | AF90: 61.36726237
A91: LRKPPS | B91: 052916 | C91: 1 | D91: 2400 | E91: 60 | F91: 1 | G91: 1 | H91: KW | I91: 59.24146363 | J91: 58.13499836 | K91: 56.91731033 | L91: 56.53054774 | M91: 55.78897729 | N91: 55.16396936 | O91: 54.79956977 | P91: 54.91375302 | Q91: 54.42943781 | R91: 57.1626849 | S91: 59.76126124 | T91: 62.79780337 | U91: 64.15524647 | V91: 66.23426206 | W91: 68.08606943 | X91: 68.65189102 | Y91: 65.00039683 | Z91: 63.08692191 | AA91: 64.02386283 | AB91: 64.19893291 | AC91: 61.45620554 | AD91: 60.48032587 | AE91: 59.84015873 | AF91: 56.36496781
A92: LRKPPS | B92: 053016 | C92: 1 | D92: 2400 | E92: 60 | F92: 1 | G92: 1 | H92: KW | I92: 54.11114263 | J92: 53.40660067 | K92: 52.49442272 | L92: 52.10324351 | M92: 54.22724118 | N92: 54.76591176 | O92: 61.09638358 | P92: 65.27406162 | Q92: 69.41654316 | R92: 71.67695169 | S92: 72.97203148 | T92: 74.16743893 | U92: 76.4573138 | V92: 76.90605814 | W92: 76.95842696 | X92: 74.73302874 | Y92: 73.50133365 | Z92: 72.30864983 | AA92: 70.96983455 | AB92: 67.44958301 | AC92: 64.35305771 | AD92: 62.29518442 | AE92: 60.08939504 | AF92: 57.81527638
A93: LRKPPS | B93: 053116 | C93: 1 | D93: 2400 | E93: 60 | F93: 1 | G93: 1 | H93: KW | I93: 53.05974567 | J93: 53.21244542 | K93: 52.80014294 | L93: 52.20375693 | M93: 52.41912229 | N93: 54.37773875 | O93: 59.78867503 | P93: 70.19575956 | Q93: 80.38648566 | R93: 87.24435747 | S93: 94.89481794 | T93: 98.09227902 | U93: 100.440018 | V93: 99.0072698 | W93: 95.45947406 | X93: 88.69083005 | Y93: 85.20996495 | Z93: 78.96279253 | AA93: 78.06249116 | AB93: 72.85298769 | AC93: 67.97330319 | AD93: 65.51551314 | AE93: 63.29362883 | AF93: 60.75395951
A94: LRKPPS | B94: 060116 | C94: 1 | D94: 2400 | E94: 60 | F94: 1 | G94: 1 | H94: KW | I94: 57.18284616 | J94: 55.94537267 | K94: 54.54015084 | L94: 53.51332073 | M94: 54.21770569 | N94: 55.36425425 | O94: 59.35685537 | P94: 69.83993611 | Q94: 81.42438568 | R94: 90.34359678 | S94: 96.37252455 | T94: 101.3573243 | U94: 100.475086 | V94: 97.98443214 | W94: 96.70291183 | X94: 88.44710834 | Y94: 85.00448917 | Z94: 82.53444888 | AA94: 78.72143334 | AB94: 77.63121697 | AC94: 73.88442997 | AD94: 73.05265829 | AE94: 66.40191296 | AF94: 62.41361944
A95: LRKPPS | B95: 060216 | C95: 1 | D95: 2400 | E95: 60 | F95: 1 | G95: 1 | H95: KW | I95: 57.80866876 | J95: 55.96986389 | K95: 54.68008183 | L95: 55.2129534 | M95: 55.96505133 | N95: 57.54275907 | O95: 64.09672888 | P95: 73.05998951 | Q95: 86.4215294 | R95: 90.65456943 | S95: 92.86605024 | T95: 95.46221586 | U95: 96.5045984 | V95: 96.110472 | W95: 91.7509334 | X95: 80.85864103 | Y95: 78.64303871 | Z95: 79.90957443 | AA95: 75.37790444 | AB95: 70.94976805 | AC95: 68.67377561 | AD95: 67.20395301 | AE95: 64.47962691 | AF95: 59.7035228
A96: LRKPPS | B96: 060316 | C96: 1 | D96: 2400 | E96: 60 | F96: 1 | G96: 1 | H96: KW | I96: 56.27343367 | J96: 54.76566043 | K96: 55.00064221 | L96: 54.62691234 | M96: 55.73910468 | N96: 58.12309987 | O96: 61.77471639 | P96: 72.66366042 | Q96: 81.35915497 | R96: 86.19330848 | S96: 92.75068484 | T96: 94.51559649 | U96: 92.33173713 | V96: 92.17612766 | W96: 86.27938524 | X96: 79.43982858 | Y96: 76.52215443 | Z96: 72.21234288 | AA96: 69.64599677 | AB96: 68.45148379 | AC96: 66.15039453 | AD96: 64.51721503 | AE96: 61.9555575 | AF96: 59.93225807
A97: LRKPPS | B97: 060416 | C97: 1 | D97: 2400 | E97: 60 | F97: 1 | G97: 1 | H97: KW | I97: 56.63406108 | J97: 55.14565679 | K97: 54.97651579 | L97: 54.64456997 | M97: 53.39667943 | N97: 53.43187727 | O97: 54.57543801 | P97: 56.90453039 | Q97: 57.87476473 | R97: 59.95617619 | S97: 63.21711582 | T97: 64.45522292 | U97: 63.67745078 | V97: 66.39736217 | W97: 69.03401228 | X97: 68.66997994 | Y97: 66.80906313 | Z97: 63.02943935 | AA97: 59.1340287 | AB97: 59.25305645 | AC97: 57.79538591 | AD97: 58.85365648 | AE97: 57.9807238 | AF97: 56.55659672
A98: LRKPPS | B98: 060516 | C98: 1 | D98: 2400 | E98: 60 | F98: 1 | G98: 1 | H98: KW | I98: 53.95530404 | J98: 54.90115943 | K98: 53.56084234 | L98: 53.79893552 | M98: 52.76605835 | N98: 52.71338808 | O98: 52.24273742 | P98: 52.43731517 | Q98: 51.74204327 | R98: 50.43593884 | S98: 51.67358304 | T98: 51.34690576 | U98: 53.09414246 | V98: 53.65393509 | W98: 56.48015144 | X98: 58.50354997 | Y98: 59.61458316 | Z98: 60.73001558 | AA98: 62.62404889 | AB98: 60.27943723 | AC98: 59.09282872 | AD98: 59.00428562 | AE98: 58.40948151 | AF98: 55.65174304
A99: LRKPPS | B99: 060616 | C99: 1 | D99: 2400 | E99: 60 | F99: 1 | G99: 1 | H99: KW | I99: 52.64860999 | J99: 51.24671934 | K99: 50.628652 | L99: 50.09299154 | M99: 51.9655192 | N99: 53.36888276 | O99: 56.99537286 | P99: 66.36896113 | Q99: 73.14269767 | R99: 80.12851425 | S99: 85.22631603 | T99: 86.65426175 | U99: 87.96725704 | V99: 90.3118419 | W99: 85.86666965 | X99: 81.40880697 | Y99: 76.07150892 | Z99: 76.81449468 | AA99: 76.06893025 | AB99: 72.78322638 | AC99: 68.79485731 | AD99: 64.83743377 | AE99: 61.77552729 | AF99: 59.41265011
A100: LRKPPS | B100: 060716 | C100: 1 | D100: 2400 | E100: 60 | F100: 1 | G100: 1 | H100: KW | I100: 55.71469818 | J100: 54.26401926 | K100: 52.94267295 | L100: 52.81486299 | M100: 52.97190006 | N100: 54.81196812 | O100: 58.84464141 | P100: 66.24882451 | Q100: 78.54698145 | R100: 85.0008966 | S100: 87.52016482 | T100: 87.45186281 | U100: 88.84106367 | V100: 84.56270905 | W100: 79.65166103 | X100: 72.08844757 | Y100: 69.43251634 | Z100: 68.34186876 | AA100: 67.83524976 | AB100: 69.01328841 | AC100: 64.14647398 | AD100: 58.67259059 | AE100: 55.63078528 | AF100: 52.82924565
A101: LRKPPS | B101: 060816 | C101: 1 | D101: 2400 | E101: 60 | F101: 1 | G101: 1 | H101: KW | I101: 51.02965964 | J101: 49.49359456 | K101: 47.52665611 | L101: 46.43919216 | M101: 47.65705562 | N101: 48.02168597 | O101: 51.35233726 | P101: 59.71627023 | Q101: 66.98879352 | R101: 70.15238348 | S101: 72.75286199 | T101: 75.30330543 | U101: 75.75240969 | V101: 74.8645446 | W101: 72.31329685 | X101: 67.99001824 | Y101: 65.16250127 | Z101: 63.93159042 | AA101: 64.75266031 | AB101: 63.03311968 | AC101: 59.02447591 | AD101: 59.10763581 | AE101: 56.12525439 | AF101: 50.94024003
A102: LRKPPS | B102: 060916 | C102: 1 | D102: 2400 | E102: 60 | F102: 1 | G102: 1 | H102: KW | I102: 46.73570865 | J102: 46.57937726 | K102: 45.30928672 | L102: 44.35480632 | M102: 46.65117053 | N102: 47.84598644 | O102: 49.6368231 | P102: 54.32845635 | Q102: 63.60741391 | R102: 66.97538361 | S102: 72.02634382 | T102: 74.269334 | U102: 75.89872217 | V102: 73.72769807 | W102: 69.59652032 | X102: 65.98738933 | Y102: 63.98071492 | Z102: 64.87751297 | AA102: 66.42245538 | AB102: 63.17276154 | AC102: 60.15592224 | AD102: 60.21524218 | AE102: 57.00813261 | AF102: 53.89591646
A103: LRKPPS | B103: 061016 | C103: 1 | D103: 2400 | E103: 60 | F103: 1 | G103: 1 | H103: KW | I103: 50.08305774 | J103: 49.96964892 | K103: 49.32368407 | L103: 48.46233156 | M103: 50.4154545 | N103: 50.96386247 | O103: 51.73376351 | P103: 60.73831012 | Q103: 66.9528067 | R103: 72.53340957 | S103: 76.69813944 | T103: 80.11676062 | U103: 80.97305123 | V103: 75.68228786 | W103: 71.8501891 | X103: 67.31860196 | Y103: 65.68060038 | Z103: 67.54544976 | AA103: 67.36570606 | AB103: 65.27896285 | AC103: 62.24897587 | AD103: 60.18546863 | AE103: 58.52939615 | AF103: 55.73369812
A104: LRKPPS | B104: 061116 | C104: 1 | D104: 2400 | E104: 60 | F104: 1 | G104: 1 | H104: KW | I104: 53.99644052 | J104: 52.68663348 | K104: 51.7196718 | L104: 51.39300707 | M104: 50.72776561 | N104: 49.84382827 | O104: 49.1576093 | P104: 51.32635199 | Q104: 53.25305204 | R104: 55.16701483 | S104: 60.01719407 | T104: 63.2944882 | U104: 65.18431731 | V104: 66.54159295 | W104: 69.66014336 | X104: 70.00470032 | Y104: 70.69114855 | Z104: 72.56348075 | AA104: 72.58965541 | AB104: 71.1208956 | AC104: 65.30560256 | AD104: 64.93716806 | AE104: 62.29208503 | AF104: 59.40571735
A105: LRKPPS | B105: 061216 | C105: 1 | D105: 2400 | E105: 60 | F105: 1 | G105: 1 | H105: KW | I105: 56.97533913 | J105: 56.10849537 | K105: 55.25636048 | L105: 54.24320232 | M105: 53.48895683 | N105: 52.98775809 | O105: 51.54640456 | P105: 54.18326769 | Q105: 55.52835842 | R105: 57.99330075 | S105: 62.10287148 | T105: 65.8470372 | U105: 68.27110291 | V105: 69.64285417 | W105: 71.59077799 | X105: 72.00866039 | Y105: 75.5047462 | Z105: 72.34372828 | AA105: 73.62411748 | AB105: 71.20362388 | AC105: 67.11919601 | AD105: 65.4772171 | AE105: 61.64676244 | AF105: 59.3311625
A106: LRKPPS | B106: 061316 | C106: 1 | D106: 2400 | E106: 60 | F106: 1 | G106: 1 | H106: KW | I106: 55.3791737 | J106: 53.83173962 | K106: 52.51833939 | L106: 51.65979214 | M106: 53.35224203 | N106: 52.40291414 | O106: 54.99166336 | P106: 63.90930334 | Q106: 70.47235667 | R106: 75.61859273 | S106: 81.35294588 | T106: 84.17673919 | U106: 82.90830236 | V106: 83.11770176 | W106: 79.31015459 | X106: 74.38899876 | Y106: 76.23895641 | Z106: 76.32303892 | AA106: 75.02777177 | AB106: 69.87926124 | AC106: 63.99144078 | AD106: 61.47027039 | AE106: 58.96631201 | AF106: 55.6067138
A107: LRKPPS | B107: 061416 | C107: 1 | D107: 2400 | E107: 60 | F107: 1 | G107: 1 | H107: KW | I107: 52.47938159 | J107: 50.5940553 | K107: 50.06277945 | L107: 51.60266569 | M107: 50.01832681 | N107: 50.4673486 | O107: 52.48824024 | P107: 60.44125599 | Q107: 69.00313343 | R107: 74.54642633 | S107: 80.47037689 | T107: 85.03505332 | U107: 87.48208981 | V107: 85.44892432 | W107: 81.11241733 | X107: 80.18193025 | Y107: 85.03949016 | Z107: 85.43854253 | AA107: 83.41526081 | AB107: 80.25551301 | AC107: 73.59376859 | AD107: 70.77649147 | AE107: 66.32562898 | AF107: 62.58923449
A108: LRKPPS | B108: 061516 | C108: 1 | D108: 2400 | E108: 60 | F108: 1 | G108: 1 | H108: KW | I108: 58.32936595 | J108: 56.90721866 | K108: 56.84440715 | L108: 57.14637252 | M108: 57.00382013 | N108: 58.87795594 | O108: 61.81519795 | P108: 70.27518333 | Q108: 78.46867292 | R108: 83.49162513 | S108: 90.16328712 | T108: 95.85872979 | U108: 97.20587228 | V108: 94.0523885 | W108: 87.0507232 | X108: 84.61887185 | Y108: 85.79416507 | Z108: 87.26180907 | AA108: 84.13950794 | AB108: 76.10779671 | AC108: 70.87714789 | AD108: 68.84153128 | AE108: 67.38007088 | AF108: 63.06668303
A109: LRKPPS | B109: 061616 | C109: 1 | D109: 2400 | E109: 60 | F109: 1 | G109: 1 | H109: KW | I109: 57.99070397 | J109: 57.86396465 | K109: 56.59601753 | L109: 57.3954395 | M109: 57.23854675 | N109: 57.05399986 | O109: 59.8996368 | P109: 68.66560152 | Q109: 79.09503198 | R109: 87.60145486 | S109: 94.75872885 | T109: 99.25483429 | U109: 100.3885525 | V109: 99.77813471 | W109: 96.47250066 | X109: 93.41879738 | Y109: 95.77858423 | Z109: 91.65700447 | AA109: 88.76571706 | AB109: 79.72506896 | AC109: 74.04893545 | AD109: 72.53382877 | AE109: 69.95318104 | AF109: 65.25523044
A110: LRKPPS | B110: 061716 | C110: 1 | D110: 2400 | E110: 60 | F110: 1 | G110: 1 | H110: KW | I110: 60.66964163 | J110: 59.30913863 | K110: 58.03888692 | L110: 57.87391297 | M110: 58.77491183 | N110: 60.0481423 | O110: 62.61153151 | P110: 67.8990134 | Q110: 74.80697098 | R110: 76.47983817 | S110: 79.87742903 | T110: 81.02856952 | U110: 79.30871622 | V110: 76.78938883 | W110: 73.37992828 | X110: 71.14784729 | Y110: 68.5191959 | Z110: 71.24001134 | AA110: 68.0072661 | AB110: 65.84856916 | AC110: 63.43913324 | AD110: 63.89670374 | AE110: 61.60315576 | AF110: 59.03311325
A111: LRKPPS | B111: 061816 | C111: 1 | D111: 2400 | E111: 60 | F111: 1 | G111: 1 | H111: KW | I111: 56.34230593 | J111: 55.28648657 | K111: 54.44717627 | L111: 53.51029253 | M111: 52.6640862 | N111: 52.2618413 | O111: 50.33573364 | P111: 51.09710018 | Q111: 50.89238379 | R111: 52.61523786 | S111: 57.45152427 | T111: 58.21125378 | U111: 59.83197912 | V111: 62.23482858 | W111: 65.27994013 | X111: 67.14849884 | Y111: 69.00366922 | Z111: 69.03841462 | AA111: 68.48850071 | AB111: 67.71942335 | AC111: 65.01830438 | AD111: 63.34879489 | AE111: 59.74031992 | AF111: 57.04882449
A112: LRKPPS | B112: 061916 | C112: 1 | D112: 2400 | E112: 60 | F112: 1 | G112: 1 | H112: KW | I112: 55.64130317 | J112: 54.42262271 | K112: 53.72293541 | L112: 52.26890883 | M112: 51.40881211 | N112: 50.04088972 | O112: 49.36687828 | P112: 50.85276613 | Q112: 52.62779552 | R112: 54.33226788 | S112: 55.97672953 | T112: 56.96533034 | U112: 59.60759134 | V112: 61.89696642 | W112: 64.27688725 | X112: 66.11053506 | Y112: 67.05023302 | Z112: 67.68899977 | AA112: 66.81582717 | AB112: 64.7439439 | AC112: 63.61840317 | AD112: 61.88972641 | AE112: 60.35112845 | AF112: 57.22062004
A113: LRKPPS | B113: 062016 | C113: 1 | D113: 2400 | E113: 60 | F113: 1 | G113: 1 | H113: KW | I113: 53.46180059 | J113: 53.56256048 | K113: 52.62869867 | L113: 52.33429514 | M113: 52.65697352 | N113: 51.92756307 | O113: 56.0411269 | P113: 64.26644278 | Q113: 72.89003882 | R113: 77.43848834 | S113: 81.52790109 | T113: 85.76207812 | U113: 87.37270882 | V113: 90.02440783 | W113: 87.54381201 | X113: 85.93584634 | Y113: 82.48664533 | Z113: 81.28529244 | AA113: 78.26972765 | AB113: 76.04740959 | AC113: 72.70228071 | AD113: 71.01250359 | AE113: 67.22377586 | AF113: 64.78133834
A114: LRKPPS | B114: 062116 | C114: 1 | D114: 2400 | E114: 60 | F114: 1 | G114: 1 | H114: KW | I114: 61.15101175 | J114: 60.17150775 | K114: 58.97046395 | L114: 57.89502982 | M114: 58.34594839 | N114: 58.73302594 | O114: 62.36884921 | P114: 71.43541388 | Q114: 79.17865558 | R114: 82.96290599 | S114: 87.96342251 | T114: 92.59753492 | U114: 94.28083084 | V114: 93.39696178 | W114: 87.35734438 | X114: 78.06536756 | Y114: 73.11678081 | Z114: 72.33945339 | AA114: 71.29528011 | AB114: 70.23837618 | AC114: 67.80187596 | AD114: 66.70299183 | AE114: 64.22984 | AF114: 61.40063273
A115: LRKPPS | B115: 062216 | C115: 1 | D115: 2400 | E115: 60 | F115: 1 | G115: 1 | H115: KW | I115: 57.39554267 | J115: 55.20346099 | K115: 55.50335356 | L115: 53.94084179 | M115: 53.27956263 | N115: 55.84362038 | O115: 58.28561277 | P115: 65.40356406 | Q115: 70.41809614 | R115: 73.96114398 | S115: 75.76420181 | T115: 76.43656516 | U115: 75.04970208 | V115: 74.85714437 | W115: 72.07130513 | X115: 65.95076201 | Y115: 63.31845482 | Z115: 63.7955047 | AA115: 64.91595646 | AB115: 63.28401595 | AC115: 61.39042533 | AD115: 61.95199505 | AE115: 60.39070122 | AF115: 57.72675423
A116: LRKPPS | B116: 062316 | C116: 1 | D116: 2400 | E116: 60 | F116: 1 | G116: 1 | H116: KW | I116: 53.7754065 | J116: 53.93649821 | K116: 53.77876395 | L116: 53.2319846 | M116: 52.34371961 | N116: 54.53109792 | O116: 58.95585075 | P116: 64.19019912 | Q116: 70.20740634 | R116: 73.24014136 | S116: 83.46033425 | T116: 84.67844861 | U116: 89.21000429 | V116: 92.06573986 | W116: 88.20336992 | X116: 83.29305892 | Y116: 75.337953 | Z116: 72.26516223 | AA116: 68.14292082 | AB116: 65.77165724 | AC116: 62.9358622 | AD116: 60.67285319 | AE116: 60.17579274 | AF116: 57.20037695
A117: LRKPPS | B117: 062416 | C117: 1 | D117: 2400 | E117: 60 | F117: 1 | G117: 1 | H117: KW | I117: 53.66228683 | J117: 54.72820126 | K117: 55.56348659 | L117: 54.05436325 | M117: 53.86849953 | N117: 52.84924169 | O117: 57.21661798 | P117: 65.91609367 | Q117: 71.04320902 | R117: 71.41482697 | S117: 73.20258996 | T117: 73.23476074 | U117: 73.16497729 | V117: 72.74175393 | W117: 71.37542909 | X117: 67.69331184 | Y117: 67.56380675 | Z117: 67.84992556 | AA117: 69.09963398 | AB117: 68.68137856 | AC117: 64.21895009 | AD117: 63.52887869 | AE117: 60.66572036 | AF117: 57.88601326
A118: LRKPPS | B118: 062516 | C118: 1 | D118: 2400 | E118: 60 | F118: 1 | G118: 1 | H118: KW | I118: 55.82794169 | J118: 55.19795941 | K118: 53.51990899 | L118: 53.83707965 | M118: 53.7410292 | N118: 52.26565498 | O118: 51.20810539 | P118: 51.95721064 | Q118: 52.4361148 | R118: 55.98485047 | S118: 59.25584206 | T118: 62.34928073 | U118: 64.71236601 | V118: 66.32180359 | W118: 67.95856505 | X118: 68.36248753 | Y118: 68.99768962 | Z118: 70.48492581 | AA118: 70.16105322 | AB118: 70.57880547 | AC118: 68.17195499 | AD118: 66.4406816 | AE118: 63.48824655 | AF118: 61.48355358
A119: LRKPPS | B119: 062616 | C119: 1 | D119: 2400 | E119: 60 | F119: 1 | G119: 1 | H119: KW | I119: 58.71862266 | J119: 57.97660488 | K119: 57.27748994 | L119: 56.59101642 | M119: 55.06811042 | N119: 54.70752268 | O119: 53.68605285 | P119: 54.55880998 | Q119: 56.01328442 | R119: 58.75068103 | S119: 62.24901173 | T119: 66.59508374 | U119: 68.82383852 | V119: 71.00511043 | W119: 73.26485381 | X119: 73.82066911 | Y119: 75.07414787 | Z119: 75.4095052 | AA119: 77.04659674 | AB119: 75.85687202 | AC119: 72.76556369 | AD119: 71.40648323 | AE119: 68.77259624 | AF119: 65.45543542
A120: LRKPPS | B120: 062716 | C120: 1 | D120: 2400 | E120: 60 | F120: 1 | G120: 1 | H120: KW | I120: 60.83676389 | J120: 60.26294293 | K120: 59.52305548 | L120: 57.6953466 | M120: 57.80690229 | N120: 58.67997161 | O120: 62.72494308 | P120: 71.4561822 | Q120: 75.84220813 | R120: 81.10055752 | S120: 82.07142928 | T120: 84.02284846 | U120: 85.89055841 | V120: 84.5685837 | W120: 77.12334917 | X120: 70.32746102 | Y120: 67.72166571 | Z120: 67.24676746 | AA120: 65.28041278 | AB120: 63.493608 | AC120: 63.60784266 | AD120: 63.76230138 | AE120: 62.64441793 | AF120: 60.24636693
A121: LRKPPS | B121: 062816 | C121: 1 | D121: 2400 | E121: 60 | F121: 1 | G121: 1 | H121: KW | I121: 56.58181888 | J121: 55.75079555 | K121: 55.43960814 | L121: 55.04900631 | M121: 54.37234674 | N121: 54.33530691 | O121: 58.34832276 | P121: 65.00434622 | Q121: 72.62133469 | R121: 77.74300409 | S121: 81.08663482 | T121: 82.61044518 | U121: 84.72672438 | V121: 85.14130835 | W121: 84.09527064 | X121: 75.95992306 | Y121: 74.35461158 | Z121: 75.19390232 | AA121: 74.26156248 | AB121: 72.455096 | AC121: 68.95319262 | AD121: 66.75944678 | AE121: 64.99597684 | AF121: 62.41431152
A122: LRKPPS | B122: 062916 | C122: 1 | D122: 2400 | E122: 60 | F122: 1 | G122: 1 | H122: KW | I122: 57.57787059 | J122: 56.28244617 | K122: 54.94068788 | L122: 53.93669378 | M122: 53.15530354 | N122: 53.40250766 | O122: 57.16480716 | P122: 62.52163143 | Q122: 68.38931138 | R122: 71.00473511 | S122: 73.78220626 | T122: 76.33899049 | U122: 76.89416672 | V122: 78.87670258 | W122: 77.41080166 | X122: 72.90408364 | Y122: 70.483881 | Z122: 69.52581699 | AA122: 69.98158947 | AB122: 66.86566867 | AC122: 63.27473054 | AD122: 61.38907468 | AE122: 60.6355784 | AF122: 57.45431665
A123: LRKPPS | B123: 063016 | C123: 1 | D123: 2400 | E123: 60 | F123: 1 | G123: 1 | H123: KW | I123: 53.82933403 | J123: 52.46573099 | K123: 51.27552952 | L123: 51.03442357 | M123: 50.62539404 | N123: 51.14179521 | O123: 53.02975697 | P123: 57.08506002 | Q123: 60.62525035 | R123: 64.05740279 | S123: 67.18485815 | T123: 68.84396566 | U123: 66.88832713 | V123: 66.0214921 | W123: 66.50967042 | X123: 66.50117576 | Y123: 67.33729223 | Z123: 66.25528448 | AA123: 63.73993503 | AB123: 62.92611028 | AC123: 59.75089772 | AD123: 58.83249555 | AE123: 57.97329789 | AF123: 55.35519935
A124: LRKPPS | B124: 070116 | C124: 1 | D124: 2400 | E124: 60 | F124: 1 | G124: 1 | H124: KW | I124: 51.64409475 | J124: 50.18533754 | K124: 50.13439012 | L124: 49.34714962 | M124: 49.57370912 | N124: 50.91228874 | O124: 52.36333943 | P124: 56.81940156 | Q124: 59.48913401 | R124: 64.05057095 | S124: 66.94541176 | T124: 70.64262023 | U124: 68.87015761 | V124: 68.58446221 | W124: 67.24298916 | X124: 66.32373005 | Y124: 66.51105334 | Z124: 65.98526294 | AA124: 64.42589773 | AB124: 62.90616111 | AC124: 60.73200355 | AD124: 60.77452704 | AE124: 58.99638585 | AF124: 57.45713732
A125: LRKPPS | B125: 070216 | C125: 1 | D125: 2400 | E125: 60 | F125: 1 | G125: 1 | H125: KW | I125: 55.40348793 | J125: 55.05481598 | K125: 54.29518042 | L125: 52.451596 | M125: 52.92546991 | N125: 51.92025036 | O125: 50.65677714 | P125: 51.20252339 | Q125: 50.92964465 | R125: 53.58347684 | S125: 55.22268961 | T125: 57.65163718 | U125: 59.00524589 | V125: 60.07672888 | W125: 61.5762979 | X125: 63.638471 | Y125: 65.12045284 | Z125: 63.5790465 | AA125: 62.3230647 | AB125: 60.49688066 | AC125: 59.03037602 | AD125: 59.88920504 | AE125: 58.90517543 | AF125: 56.90101196
A126: LRKPPS | B126: 070316 | C126: 1 | D126: 2400 | E126: 60 | F126: 1 | G126: 1 | H126: KW | I126: 55.23869642 | J126: 55.09423519 | K126: 53.80235236 | L126: 53.33687272 | M126: 53.1197615 | N126: 53.42145158 | O126: 51.55648643 | P126: 51.7392966 | Q126: 50.62248375 | R126: 50.91766003 | S126: 51.25794932 | T126: 50.69920916 | U126: 51.51108405 | V126: 52.04007028 | W126: 52.64517501 | X126: 53.06690166 | Y126: 53.6363661 | Z126: 53.80935787 | AA126: 54.7275815 | AB126: 53.39726035 | AC126: 53.008616 | AD126: 54.16572485 | AE126: 54.25319114 | AF126: 52.62088526
A127: LRKPPS | B127: 070416 | C127: 1 | D127: 2400 | E127: 60 | F127: 1 | G127: 1 | H127: KW | I127: 49.40856156 | J127: 49.42644064 | K127: 49.33502315 | L127: 48.75156587 | M127: 48.1971839 | N127: 49.69463998 | O127: 52.74736086 | P127: 58.8511898 | Q127: 56.83127291 | R127: 56.4983798 | S127: 59.36889012 | T127: 61.71448369 | U127: 63.99560582 | V127: 65.95263457 | W127: 64.39714766 | X127: 61.67471739 | Y127: 61.12658401 | Z127: 60.69066039 | AA127: 57.48742982 | AB127: 56.03758429 | AC127: 54.96944447 | AD127: 55.66043843 | AE127: 54.40197412 | AF127: 53.44510249
A128: LRKPPS | B128: 070516 | C128: 1 | D128: 2400 | E128: 60 | F128: 1 | G128: 1 | H128: KW | I128: 50.87283764 | J128: 50.42897268 | K128: 50.10794045 | L128: 49.70128594 | M128: 49.70323772 | N128: 51.88003938 | O128: 55.52737204 | P128: 65.55648929 | Q128: 69.86400186 | R128: 72.18903929 | S128: 74.91463925 | T128: 76.12246615 | U128: 76.82397775 | V128: 78.65420049 | W128: 76.1413958 | X128: 71.77924012 | Y128: 69.10280658 | Z128: 67.57622592 | AA128: 70.46199671 | AB128: 67.68085388 | AC128: 65.19281338 | AD128: 63.84021607 | AE128: 62.71644468 | AF128: 59.782306
A129: LRKPPS | B129: 070616 | C129: 1 | D129: 2400 | E129: 60 | F129: 1 | G129: 1 | H129: KW | I129: 55.92183541 | J129: 55.19773049 | K129: 54.45566264 | L129: 53.47220003 | M129: 52.91412984 | N129: 55.37629478 | O129: 58.44939731 | P129: 62.73250395 | Q129: 69.81347318 | R129: 74.15923488 | S129: 75.32220986 | T129: 79.46533294 | U129: 84.74323043 | V129: 86.28442273 | W129: 83.72640268 | X129: 79.20571183 | Y129: 77.77891325 | Z129: 79.79292996 | AA129: 77.83622185 | AB129: 76.42577102 | AC129: 71.96025448 | AD129: 69.17533836 | AE129: 67.11587613 | AF129: 63.7368832
A130: LRKPPS | B130: 070716 | C130: 1 | D130: 2400 | E130: 60 | F130: 1 | G130: 1 | H130: KW | I130: 58.01105755 | J130: 56.72101052 | K130: 55.90189589 | L130: 55.26638953 | M130: 54.07149479 | N130: 56.35961564 | O130: 60.41908813 | P130: 66.60353478 | Q130: 70.94500563 | R130: 71.72009548 | S130: 74.97285771 | T130: 73.72812116 | U130: 75.36252223 | V130: 76.33947636 | W130: 75.06054975 | X130: 71.43248118 | Y130: 70.4273576 | Z130: 68.57016879 | AA130: 68.12370334 | AB130: 69.54401415 | AC130: 65.77858662 | AD130: 65.46463668 | AE130: 63.746798 | AF130: 61.56709822
A131: LRKPPS | B131: 070816 | C131: 1 | D131: 2400 | E131: 60 | F131: 1 | G131: 1 | H131: KW | I131: 56.93039499 | J131: 56.204073 | K131: 55.91451395 | L131: 55.37076908 | M131: 55.08456187 | N131: 55.91222809 | O131: 61.74564019 | P131: 66.57903228 | Q131: 72.80375566 | R131: 76.86865809 | S131: 79.68466539 | T131: 81.47398284 | U131: 83.82020927 | V131: 84.93814995 | W131: 74.25845376 | X131: 66.8553184 | Y131: 63.98881277 | Z131: 59.82864226 | AA131: 57.15595113 | AB131: 49.15343165 | AC131: 47.95189128 | AD131: 49.13686 | AE131: 52.27714608 | AF131: 55.35081996
A132: LRKPPS | B132: 070916 | C132: 1 | D132: 2400 | E132: 60 | F132: 1 | G132: 1 | H132: KW | I132: 52.35657585 | J132: 52.43474168 | K132: 52.15819101 | L132: 51.69842777 | M132: 51.79470321 | N132: 51.16971499 | O132: 51.40450055 | P132: 52.16411251 | Q132: 53.34376898 | R132: 58.02287637 | S132: 60.05670513 | T132: 60.99754208 | U132: 61.87415049 | V132: 62.26908924 | W132: 64.46455281 | X132: 65.50344247 | Y132: 65.70998986 | Z132: 64.75486723 | AA132: 65.11798589 | AB132: 63.7645271 | AC132: 61.70541245 | AD132: 61.48034378 | AE132: 60.40780231 | AF132: 57.75262274
A133: LRKPPS | B133: 071016 | C133: 1 | D133: 2400 | E133: 60 | F133: 1 | G133: 1 | H133: KW | I133: 54.81391394 | J133: 53.85734723 | K133: 53.50649603 | L133: 52.71462576 | M133: 51.7187578 | N133: 50.86841045 | O133: 50.25931027 | P133: 51.27402872 | Q133: 52.02663135 | R133: 54.09012208 | S133: 57.36473389 | T133: 58.10230865 | U133: 59.8341773 | V133: 61.8373881 | W133: 63.80858254 | X133: 65.44212225 | Y133: 68.69832766 | Z133: 67.55598211 | AA133: 67.57411508 | AB133: 66.44908881 | AC133: 63.56794781 | AD133: 62.53203834 | AE133: 60.60876332 | AF133: 57.22487884
A134: LRKPPS | B134: 071116 | C134: 1 | D134: 2400 | E134: 60 | F134: 1 | G134: 1 | H134: KW | I134: 54.16378118 | J134: 53.34079911 | K134: 52.9569314 | L134: 51.84309832 | M134: 51.24570972 | N134: 53.14224212 | O134: 57.18464113 | P134: 67.70249543 | Q134: 72.45861204 | R134: 75.91649096 | S134: 82.54238683 | T134: 85.02669816 | U134: 86.35153901 | V134: 90.45994472 | W134: 88.16628289 | X134: 83.99230605 | Y134: 82.41727465 | Z134: 81.19743804 | AA134: 80.19281458 | AB134: 77.89513705 | AC134: 75.26634261 | AD134: 73.6204676 | AE134: 70.6628533 | AF134: 67.37791816
A135: LRKPPS | B135: 071216 | C135: 1 | D135: 2400 | E135: 60 | F135: 1 | G135: 1 | H135: KW | I135: 62.95182806 | J135: 61.68872172 | K135: 60.07109248 | L135: 59.36831666 | M135: 58.43997596 | N135: 59.41655579 | O135: 62.6021784 | P135: 69.75670195 | Q135: 77.48825786 | R135: 82.55264882 | S135: 86.53451764 | T135: 91.78298457 | U135: 93.78315091 | V135: 95.19704576 | W135: 92.75266998 | X135: 85.64580531 | Y135: 85.46990887 | Z135: 82.94838499 | AA135: 76.98450754 | AB135: 76.81235485 | AC135: 72.93399767 | AD135: 71.88057152 | AE135: 70.61193917 | AF135: 68.03717012
A136: LRKPPS | B136: 071316 | C136: 1 | D136: 2400 | E136: 60 | F136: 1 | G136: 1 | H136: KW | I136: 63.8067556 | J136: 63.31755407 | K136: 62.28907627 | L136: 61.62646781 | M136: 60.01543757 | N136: 62.21167379 | O136: 68.94200851 | P136: 73.9911842 | Q136: 83.56878887 | R136: 87.98210588 | S136: 94.53043009 | T136: 97.78583492 | U136: 99.99816355 | V136: 102.6699789 | W136: 99.43568019 | X136: 94.0773688 | Y136: 93.44491743 | Z136: 90.92912308 | AA136: 87.99134783 | AB136: 84.78356944 | AC136: 81.13510069 | AD136: 78.07211755 | AE136: 74.7399808 | AF136: 71.87676922
A137: LRKPPS | B137: 071416 | C137: 1 | D137: 2400 | E137: 60 | F137: 1 | G137: 1 | H137: KW | I137: 66.52936326 | J137: 65.25452714 | K137: 63.70418376 | L137: 62.96380299 | M137: 61.55181303 | N137: 63.95607374 | O137: 71.48727955 | P137: 79.41931852 | Q137: 89.4860304 | R137: 94.8720235 | S137: 101.4865064 | T137: 103.2377016 | U137: 105.1604942 | V137: 104.8994566 | W137: 100.0970843 | X137: 94.21647905 | Y137: 88.97605582 | Z137: 81.30561101 | AA137: 78.67184125 | AB137: 77.47695517 | AC137: 74.98214136 | AD137: 73.26696759 | AE137: 69.20175549 | AF137: 65.41627434
A138: LRKPPS | B138: 071516 | C138: 1 | D138: 2400 | E138: 60 | F138: 1 | G138: 1 | H138: KW | I138: 62.78806185 | J138: 62.77832404 | K138: 61.48852813 | L138: 59.4045281 | M138: 59.30214423 | N138: 62.64407768 | O138: 67.4654611 | P138: 71.75628967 | Q138: 79.99013799 | R138: 80.75520281 | S138: 84.46258919 | T138: 85.89117403 | U138: 89.06180811 | V138: 91.97136955 | W138: 90.67420876 | X138: 85.97131596 | Y138: 84.33754817 | Z138: 86.49279277 | AA138: 83.62053687 | AB138: 80.51345771 | AC138: 71.48260806 | AD138: 70.04290084 | AE138: 66.79705394 | AF138: 64.62915062
A139: LRKPPS | B139: 071616 | C139: 1 | D139: 2400 | E139: 60 | F139: 1 | G139: 1 | H139: KW | I139: 60.9102548 | J139: 59.87292372 | K139: 58.76133918 | L139: 58.04866337 | M139: 57.5811918 | N139: 58.13369173 | O139: 57.87750824 | P139: 57.91182626 | Q139: 57.35817259 | R139: 59.48184537 | S139: 61.09956185 | T139: 63.06924244 | U139: 64.10637747 | V139: 67.15492979 | W139: 69.21959052 | X139: 71.43423843 | Y139: 72.96429034 | Z139: 75.11436215 | AA139: 73.73514799 | AB139: 72.07529394 | AC139: 71.23787287 | AD139: 68.83640993 | AE139: 65.84293714 | AF139: 63.23927038
A140: LRKPPS | B140: 071716 | C140: 1 | D140: 2400 | E140: 60 | F140: 1 | G140: 1 | H140: KW | I140: 60.54650531 | J140: 59.00576492 | K140: 58.7505729 | L140: 58.22724695 | M140: 57.79811291 | N140: 57.09757268 | O140: 56.21656467 | P140: 57.65121083 | Q140: 57.79595084 | R140: 61.94190224 | S140: 65.64995713 | T140: 69.26110397 | U140: 71.58955138 | V140: 73.98410599 | W140: 76.62574706 | X140: 78.03416606 | Y140: 80.3249562 | Z140: 80.62534953 | AA140: 81.74229652 | AB140: 79.67041752 | AC140: 76.80536074 | AD140: 73.40043622 | AE140: 71.63603734 | AF140: 67.19504933
A141: LRKPPS | B141: 071816 | C141: 1 | D141: 2400 | E141: 60 | F141: 1 | G141: 1 | H141: KW | I141: 63.34786331 | J141: 62.48381484 | K141: 61.38011688 | L141: 59.92518241 | M141: 59.86855489 | N141: 61.81597183 | O141: 66.71635205 | P141: 75.1107563 | Q141: 82.78534225 | R141: 90.32004982 | S141: 99.03082384 | T141: 100.8198078 | U141: 100.0974783 | V141: 96.0642235 | W141: 92.09082029 | X141: 89.82799442 | Y141: 89.60436609 | Z141: 86.70429455 | AA141: 87.4245353 | AB141: 81.14811002 | AC141: 79.52312274 | AD141: 76.58797565 | AE141: 73.35426499 | AF141: 69.32134859
A142: LRKPPS | B142: 071916 | C142: 1 | D142: 2400 | E142: 60 | F142: 1 | G142: 1 | H142: KW | I142: 65.74065004 | J142: 64.02369326 | K142: 62.90609463 | L142: 62.54442989 | M142: 61.68745253 | N142: 63.11287305 | O142: 68.86293266 | P142: 75.29541649 | Q142: 82.49663802 | R142: 90.13050592 | S142: 95.21353671 | T142: 103.7481142 | U142: 102.7526514 | V142: 105.9849846 | W142: 103.9360996 | X142: 101.5934296 | Y142: 99.66279716 | Z142: 96.19268545 | AA142: 92.61354805 | AB142: 86.6885297 | AC142: 82.94809542 | AD142: 81.31704884 | AE142: 77.16810938 | AF142: 70.95141025
A143: LRKPPS | B143: 072016 | C143: 1 | D143: 2400 | E143: 60 | F143: 1 | G143: 1 | H143: KW | I143: 65.69821242 | J143: 65.10326357 | K143: 62.74611873 | L143: 62.78815896 | M143: 62.30879953 | N143: 64.30681314 | O143: 70.01017825 | P143: 74.89984824 | Q143: 83.39318417 | R143: 89.43976289 | S143: 94.93384875 | T143: 98.81314925 | U143: 101.9557468 | V143: 101.7380981 | W143: 100.13663 | X143: 95.58741352 | Y143: 97.5933408 | Z143: 94.38558373 | AA143: 91.13250052 | AB143: 85.59962459 | AC143: 81.25386495 | AD143: 74.73903203 | AE143: 71.08810412 | AF143: 67.24483159
A144: LRKPPS | B144: 072116 | C144: 1 | D144: 2400 | E144: 60 | F144: 1 | G144: 1 | H144: KW | I144: 62.72751016 | J144: 61.0727069 | K144: 60.58471242 | L144: 59.51435966 | M144: 59.82770985 | N144: 60.37001006 | O144: 66.12678294 | P144: 70.93548352 | Q144: 79.11932952 | R144: 84.48906758 | S144: 90.87540613 | T144: 95.82396776 | U144: 99.79778453 | V144: 98.52726936 | W144: 99.30195996 | X144: 96.24380185 | Y144: 96.01290456 | Z144: 90.54616252 | AA144: 87.23993653 | AB144: 84.05761006 | AC144: 80.46609866 | AD144: 77.45723124 | AE144: 74.12118311 | AF144: 70.68150623
A145: LRKPPS | B145: 072216 | C145: 1 | D145: 2400 | E145: 60 | F145: 1 | G145: 1 | H145: KW | I145: 65.86537463 | J145: 63.47769326 | K145: 62.28094091 | L145: 61.76701719 | M145: 61.4927351 | N145: 62.82846285 | O145: 67.66834951 | P145: 73.28964516 | Q145: 80.65317315 | R145: 83.83056799 | S145: 93.15428342 | T145: 97.93262159 | U145: 100.1698264 | V145: 98.88064872 | W145: 96.77646355 | X145: 88.10036405 | Y145: 88.13842524 | Z145: 79.30736941 | AA145: 75.04102747 | AB145: 74.28239135 | AC145: 70.8298211 | AD145: 69.82750531 | AE145: 68.76582856 | AF145: 67.30212945
A146: LRKPPS | B146: 072316 | C146: 1 | D146: 2400 | E146: 60 | F146: 1 | G146: 1 | H146: KW | I146: 64.26380754 | J146: 63.92252658 | K146: 63.39940353 | L146: 62.46761132 | M146: 60.52127232 | N146: 59.29645054 | O146: 59.13263098 | P146: 60.70590076 | Q146: 63.01811671 | R146: 65.2171376 | S146: 74.01319631 | T146: 75.87460502 | U146: 79.20540472 | V146: 79.62496371 | W146: 82.04643317 | X146: 83.12724449 | Y146: 83.49017314 | Z146: 83.90367565 | AA146: 83.4647681 | AB146: 82.52843533 | AC146: 79.4999332 | AD146: 78.6105836 | AE146: 76.08329105 | AF146: 73.42028664
A147: LRKPPS | B147: 072416 | C147: 1 | D147: 2400 | E147: 60 | F147: 1 | G147: 1 | H147: KW | I147: 69.69614241 | J147: 68.14854046 | K147: 66.99543047 | L147: 65.49645513 | M147: 63.43560196 | N147: 62.31951046 | O147: 61.76021532 | P147: 64.12558963 | Q147: 64.79201927 | R147: 69.20219785 | S147: 73.2473094 | T147: 77.86661617 | U147: 82.22556874 | V147: 86.1477755 | W147: 87.77205347 | X147: 87.78231052 | Y147: 88.96411034 | Z147: 86.84685874 | AA147: 86.21231896 | AB147: 83.45711584 | AC147: 80.74137774 | AD147: 80.60491375 | AE147: 79.48309575 | AF147: 75.02420676
A148: LRKPPS | B148: 072516 | C148: 1 | D148: 2400 | E148: 60 | F148: 1 | G148: 1 | H148: KW | I148: 71.19967208 | J148: 70.17333345 | K148: 68.83700464 | L148: 65.92143224 | M148: 67.22709369 | N148: 68.26142171 | O148: 78.69109239 | P148: 90.93889582 | Q148: 99.74533172 | R148: 105.6106266 | S148: 112.6826311 | T148: 117.7410796 | U148: 117.7349483 | V148: 118.0425799 | W148: 119.817119 | X148: 111.7718181 | Y148: 101.1511814 | Z148: 94.71920544 | AA148: 92.33180423 | AB148: 86.19158613 | AC148: 80.60627213 | AD148: 78.66806824 | AE148: 74.10295734 | AF148: 70.16415893
A149: LRKPPS | B149: 072616 | C149: 1 | D149: 2400 | E149: 60 | F149: 1 | G149: 1 | H149: KW | I149: 65.46143587 | J149: 64.69412813 | K149: 64.33329341 | L149: 63.37258024 | M149: 63.40929423 | N149: 68.5306053 | O149: 79.23809401 | P149: 84.40664543 | Q149: 91.05772551 | R149: 99.02058979 | S149: 105.1150423 | T149: 110.5552142 | U149: 114.6793487 | V149: 116.9089446 | W149: 114.6599297 | X149: 103.411315 | Y149: 103.592079 | Z149: 97.18084145 | AA149: 93.72922469 | AB149: 92.33228691 | AC149: 84.57411577 | AD149: 77.39965526 | AE149: 70.66135697 | AF149: 69.32473038
A150: LRKPPS | B150: 072716 | C150: 1 | D150: 2400 | E150: 60 | F150: 1 | G150: 1 | H150: KW | I150: 63.96307972 | J150: 62.08711574 | K150: 62.12190707 | L150: 62.63550946 | M150: 62.22527887 | N150: 64.44443421 | O150: 76.86968442 | P150: 89.55351975 | Q150: 94.46784504 | R150: 100.0023546 | S150: 109.3315376 | T150: 111.418362 | U150: 114.6756671 | V150: 115.296942 | W150: 112.6671711 | X150: 106.8031671 | Y150: 105.0636433 | Z150: 102.0177496 | AA150: 100.5992442 | AB150: 96.66299747 | AC150: 90.0234257 | AD150: 81.59719621 | AE150: 77.41922005 | AF150: 73.81157561
A151: LRKPPS | B151: 072816 | C151: 1 | D151: 2400 | E151: 60 | F151: 1 | G151: 1 | H151: KW | I151: 69.63545671 | J151: 68.770071 | K151: 67.14732822 | L151: 66.51056947 | M151: 67.09703355 | N151: 68.09976674 | O151: 78.2439242 | P151: 84.36152196 | Q151: 93.37214479 | R151: 96.19087846 | S151: 99.72314943 | T151: 100.1390341 | U151: 100.8136303 | V151: 99.38595764 | W151: 92.59830677 | X151: 86.36700071 | Y151: 82.4344211 | Z151: 80.89257007 | AA151: 78.6885209 | AB151: 74.21088456 | AC151: 72.80104868 | AD151: 70.56178144 | AE151: 66.3167392 | AF151: 63.39194866
A152: LRKPPS | B152: 072916 | C152: 1 | D152: 2400 | E152: 60 | F152: 1 | G152: 1 | H152: KW | I152: 61.95271948 | J152: 59.67200234 | K152: 59.33080739 | L152: 61.98440297 | M152: 59.66533164 | N152: 60.92691229 | O152: 69.3901667 | P152: 82.9460951 | Q152: 88.74153077 | R152: 93.61060855 | S152: 95.54899917 | T152: 97.03710478 | U152: 97.34736292 | V152: 99.79526462 | W152: 96.40959851 | X152: 90.55400324 | Y152: 85.69660778 | Z152: 82.04662543 | AA152: 77.44582731 | AB152: 77.6056746 | AC152: 71.78055669 | AD152: 70.03772592 | AE152: 67.70912516 | AF152: 66.18523856
A153: LRKPPS | B153: 073016 | C153: 1 | D153: 2400 | E153: 60 | F153: 1 | G153: 1 | H153: KW | I153: 62.2954532 | J153: 61.20168227 | K153: 60.68322056 | L153: 60.09250504 | M153: 59.90766919 | N153: 58.56908091 | O153: 59.73331091 | P153: 59.44904994 | Q153: 59.6022882 | R153: 61.31575045 | S153: 63.81257918 | T153: 66.03747633 | U153: 68.90240566 | V153: 71.55240064 | W153: 75.91603639 | X153: 77.30415238 | Y153: 76.9846777 | Z153: 77.33922777 | AA153: 77.79479518 | AB153: 75.91383785 | AC153: 73.30839034 | AD153: 72.14882677 | AE153: 69.72664077 | AF153: 66.6357281
A154: LRKPPS | B154: 073116 | C154: 1 | D154: 2400 | E154: 60 | F154: 1 | G154: 1 | H154: KW | I154: 63.16840894 | J154: 62.45826218 | K154: 61.66287213 | L154: 60.88013775 | M154: 60.42709964 | N154: 58.6674536 | O154: 58.83410822 | P154: 59.16952626 | Q154: 60.47922968 | R154: 63.86549055 | S154: 66.36395329 | T154: 68.73624282 | U154: 70.44407402 | V154: 74.41432451 | W154: 79.49315392 | X154: 79.99090033 | Y154: 79.19370825 | Z154: 80.37664027 | AA154: 78.71939633 | AB154: 76.19881606 | AC154: 73.11203804 | AD154: 72.62323189 | AE154: 70.62933825 | AF154: 66.82006892
A155: LRKPPS | B155: 080116 | C155: 1 | D155: 2400 | E155: 60 | F155: 1 | G155: 1 | H155: KW | I155: 62.53222486 | J155: 61.89990877 | K155: 60.20829193 | L155: 60.31009912 | M155: 60.25509505 | N155: 64.68622999 | O155: 76.63836447 | P155: 86.58196472 | Q155: 96.22384829 | R155: 101.7437913 | S155: 108.3587269 | T155: 113.8250451 | U155: 116.5909071 | V155: 117.8282537 | W155: 116.089104 | X155: 104.1999704 | Y155: 96.5448238 | Z155: 90.1196381 | AA155: 83.91538695 | AB155: 78.04252605 | AC155: 78.28284687 | AD155: 76.8169584 | AE155: 70.94821047 | AF155: 66.03517385
A156: LRKPPS | B156: 080216 | C156: 1 | D156: 2400 | E156: 60 | F156: 1 | G156: 1 | H156: KW | I156: 62.31735219 | J156: 62.37880692 | K156: 60.60066574 | L156: 58.86468198 | M156: 60.24138999 | N156: 65.06241826 | O156: 79.07910555 | P156: 89.74213846 | Q156: 96.94185375 | R156: 101.9688818 | S156: 106.6141295 | T156: 111.5789077 | U156: 112.7133332 | V156: 114.0984102 | W156: 113.2557839 | X156: 103.8769519 | Y156: 99.26467361 | Z156: 95.50665483 | AA156: 91.80271037 | AB156: 90.21934841 | AC156: 85.93510167 | AD156: 79.11207813 | AE156: 73.6146021 | AF156: 69.35507361
A157: LRKPPS | B157: 080316 | C157: 1 | D157: 2400 | E157: 60 | F157: 1 | G157: 1 | H157: KW | I157: 63.14962871 | J157: 62.18254679 | K157: 61.28266214 | L157: 59.99380819 | M157: 60.67248892 | N157: 66.09896805 | O157: 82.66156198 | P157: 95.39336481 | Q157: 102.8016391 | R157: 109.2900447 | S157: 114.7999254 | T157: 121.5274581 | U157: 127.0512442 | V157: 131.2748668 | W157: 123.0956629 | X157: 117.4978612 | Y157: 111.3282443 | Z157: 106.5888661 | AA157: 96.44902529 | AB157: 95.21253632 | AC157: 90.6635962 | AD157: 85.50051785 | AE157: 79.00695003 | AF157: 73.43160408
A158: LRKPPS | B158: 080416 | C158: 1 | D158: 2400 | E158: 60 | F158: 1 | G158: 1 | H158: KW | I158: 67.69778705 | J158: 65.97923111 | K158: 64.72628393 | L158: 64.23925415 | M158: 66.66256005 | N158: 70.48978956 | O158: 83.79787951 | P158: 93.68849369 | Q158: 104.2634099 | R158: 111.7620709 | S158: 120.3477275 | T158: 127.5307049 | U158: 130.8441174 | V158: 134.9837404 | W158: 133.0255817 | X158: 123.7313239 | Y158: 115.6747847 | Z158: 110.1796957 | AA158: 101.1221477 | AB158: 95.78740651 | AC158: 91.520566 | AD158: 86.06509379 | AE158: 78.38737636 | AF158: 72.97425553
A159: LRKPPS | B159: 080516 | C159: 1 | D159: 2400 | E159: 60 | F159: 1 | G159: 1 | H159: KW | I159: 69.22103248 | J159: 67.17874828 | K159: 65.45730724 | L159: 65.42352358 | M159: 68.7071549 | N159: 72.53999685 | O159: 86.55620404 | P159: 96.65915697 | Q159: 107.8626027 | R159: 114.7177689 | S159: 119.6321456 | T159: 124.7409546 | U159: 126.8088917 | V159: 126.4533357 | W159: 124.3828405 | X159: 113.3831492 | Y159: 105.9369711 | Z159: 100.6587311 | AA159: 95.66992871 | AB159: 93.56063651 | AC159: 90.09401629 | AD159: 85.59035636 | AE159: 77.21442973 | AF159: 71.63558474
A160: LRKPPS | B160: 080616 | C160: 1 | D160: 2400 | E160: 60 | F160: 1 | G160: 1 | H160: KW | I160: 68.44358494 | J160: 66.36045621 | K160: 65.25853056 | L160: 64.3634883 | M160: 63.71927179 | N160: 65.70951389 | O160: 68.59810371 | P160: 67.48764768 | Q160: 67.99753975 | R160: 71.11201082 | S160: 74.61647843 | T160: 75.0918515 | U160: 75.78837517 | V160: 77.72558374 | W160: 78.85457494 | X160: 80.54348428 | Y160: 80.36307514 | Z160: 79.64345335 | AA160: 79.62561186 | AB160: 76.47786314 | AC160: 74.04667574 | AD160: 73.51341177 | AE160: 71.67473371 | AF160: 68.43252786
A161: LRKPPS | B161: 080716 | C161: 1 | D161: 2400 | E161: 60 | F161: 1 | G161: 1 | H161: KW | I161: 65.6158488 | J161: 64.94214742 | K161: 64.1367035 | L161: 63.02807451 | M161: 62.03685518 | N161: 60.86088708 | O161: 60.0126829 | P161: 59.16247508 | Q161: 61.12260807 | R161: 63.62474428 | S161: 67.49936492 | T161: 70.13522125 | U161: 72.12013209 | V161: 74.0722446 | W161: 77.40919435 | X161: 78.26094065 | Y161: 78.07394006 | Z161: 78.56359418 | AA161: 76.56739712 | AB161: 74.99458845 | AC161: 73.07072319 | AD161: 72.17997424 | AE161: 69.2473952 | AF161: 65.30228941
A162: LRKPPS | B162: 080816 | C162: 1 | D162: 2400 | E162: 60 | F162: 1 | G162: 1 | H162: KW | I162: 61.14682383 | J162: 60.77828224 | K162: 59.81443115 | L162: 59.14511566 | M162: 63.00983571 | N162: 69.20581833 | O162: 84.68050424 | P162: 97.54057277 | Q162: 109.0389465 | R162: 113.9765562 | S162: 121.7382154 | T162: 125.2170813 | U162: 125.1932899 | V162: 129.3533796 | W162: 129.6751945 | X162: 118.4072815 | Y162: 109.1420004 | Z162: 102.152194 | AA162: 96.75108231 | AB162: 90.48794061 | AC162: 84.66092652 | AD162: 79.34080654 | AE162: 74.16965595 | AF162: 70.81204417
A163: LRKPPS | B163: 080916 | C163: 1 | D163: 2400 | E163: 60 | F163: 1 | G163: 1 | H163: KW | I163: 66.39486304 | J163: 63.96157663 | K163: 63.58414276 | L163: 62.73842038 | M163: 65.10394497 | N163: 70.52562481 | O163: 86.35712432 | P163: 106.8971699 | Q163: 121.4698357 | R163: 133.9631855 | S163: 143.5748517 | T163: 152.6961236 | U163: 154.7523158 | V163: 157.3333516 | W163: 155.6953866 | X163: 142.5971741 | Y163: 129.1339751 | Z163: 120.5512568 | AA163: 111.1372016 | AB163: 101.8780412 | AC163: 97.58381448 | AD163: 92.27180773 | AE163: 82.6920871 | AF163: 78.23946859
A164: LRKPPS | B164: 081016 | C164: 1 | D164: 2400 | E164: 60 | F164: 1 | G164: 1 | H164: KW | I164: 73.25827908 | J164: 70.43829098 | K164: 70.04553967 | L164: 70.12659911 | M164: 71.43048857 | N164: 79.45635271 | O164: 102.1777046 | P164: 122.8299607 | Q164: 153.3860004 | R164: 160.8770048 | S164: 164.4520644 | T164: 173.4598746 | U164: 172.7102347 | V164: 167.614333 | W164: 163.2109975 | X164: 149.4053186 | Y164: 131.6279183 | Z164: 119.9510387 | AA164: 110.7569835 | AB164: 104.3075558 | AC164: 98.88885066 | AD164: 94.87434257 | AE164: 86.67987474 | AF164: 81.10832824
A165: LRKPPS | B165: 081116 | C165: 1 | D165: 2400 | E165: 60 | F165: 1 | G165: 1 | H165: KW | I165: 74.96673353 | J165: 73.20129314 | K165: 72.29171439 | L165: 71.33282983 | M165: 73.35059534 | N165: 82.65121356 | O165: 109.1511288 | P165: 133.664719 | Q165: 166.5404707 | R165: 176.7371589 | S165: 183.3285318 | T165: 191.8164193 | U165: 188.3151048 | V165: 178.4278735 | W165: 174.4515469 | X165: 153.8590166 | Y165: 137.6898918 | Z165: 127.2723543 | AA165: 120.9513988 | AB165: 113.1285498 | AC165: 105.8992192 | AD165: 100.4465035 | AE165: 91.31632238 | AF165: 82.87825588
A166: LRKPPS | B166: 081216 | C166: 1 | D166: 2400 | E166: 60 | F166: 1 | G166: 1 | H166: KW | I166: 77.2733282 | J166: 77.04241876 | K166: 74.95954733 | L166: 75.12695256 | M166: 76.59152933 | N166: 89.31650836 | O166: 114.8717872 | P166: 140.4071486 | Q166: 175.3094504 | R166: 184.2334469 | S166: 189.2266812 | T166: 194.9189513 | U166: 193.0460517 | V166: 183.1803983 | W166: 175.7915986 | X166: 155.7773492 | Y166: 136.0982387 | Z166: 125.4048855 | AA166: 122.5509208 | AB166: 119.3923253 | AC166: 114.5691791 | AD166: 107.0098638 | AE166: 95.64356889 | AF166: 89.27369765
A167: LRKPPS | B167: 081316 | C167: 1 | D167: 2400 | E167: 60 | F167: 1 | G167: 1 | H167: KW | I167: 84.59748646 | J167: 80.93200082 | K167: 78.41599388 | L167: 77.38092074 | M167: 77.68450937 | N167: 76.18911042 | O167: 76.00459872 | P167: 77.7678263 | Q167: 80.92781364 | R167: 86.64088423 | S167: 93.25959981 | T167: 95.06585913 | U167: 96.54227937 | V167: 97.2024665 | W167: 99.73621182 | X167: 98.79304859 | Y167: 99.00189284 | Z167: 97.84820411 | AA167: 96.18543398 | AB167: 91.65494312 | AC167: 85.20009392 | AD167: 83.63036528 | AE167: 81.5085917 | AF167: 78.78128627
A168: LRKPPS | B168: 081416 | C168: 1 | D168: 2400 | E168: 60 | F168: 1 | G168: 1 | H168: KW | I168: 76.72887551 | J168: 74.42369546 | K168: 73.67297258 | L168: 72.40005889 | M168: 72.10961779 | N168: 70.1530581 | O168: 69.20440286 | P168: 70.32188639 | Q168: 71.86927583 | R168: 74.93708222 | S168: 80.06919046 | T168: 82.0466879 | U168: 84.29316077 | V168: 86.27645088 | W168: 91.00057962 | X168: 94.19072727 | Y168: 92.89971112 | Z168: 91.94972042 | AA168: 89.91665966 | AB168: 86.57128958 | AC168: 83.23313925 | AD168: 83.61676389 | AE168: 81.08079827 | AF168: 78.03096552
A169: LRKPPS | B169: 081516 | C169: 1 | D169: 2400 | E169: 60 | F169: 1 | G169: 1 | H169: KW | I169: 73.66372535 | J169: 72.44312458 | K169: 71.01237722 | L169: 69.91514902 | M169: 77.10477998 | N169: 89.01662424 | O169: 115.1375927 | P169: 137.0099381 | Q169: 168.9390579 | R169: 176.3926575 | S169: 179.9041623 | T169: 187.7367008 | U169: 185.4156552 | V169: 178.6701705 | W169: 171.5947193 | X169: 144.0676519 | Y169: 125.7846397 | Z169: 114.412505 | AA169: 107.3831813 | AB169: 99.3569929 | AC169: 90.85704005 | AD169: 83.16212422 | AE169: 76.06395053 | AF169: 72.58404548
A170: LRKPPS | B170: 081616 | C170: 1 | D170: 2400 | E170: 60 | F170: 1 | G170: 1 | H170: KW | I170: 68.08968794 | J170: 66.5630616 | K170: 65.56292758 | L170: 64.58585261 | M170: 64.9898896 | N170: 78.66759828 | O170: 104.4472663 | P170: 130.7282564 | Q170: 163.3032786 | R170: 173.7499161 | S170: 181.4340179 | T170: 188.033104 | U170: 186.786556 | V170: 175.7324077 | W170: 172.2685189 | X170: 152.0710178 | Y170: 130.4723585 | Z170: 117.3832501 | AA170: 111.2006851 | AB170: 107.4949822 | AC170: 101.1942592 | AD170: 89.26207941 | AE170: 81.30988532 | AF170: 76.42712101
A171: LRKPPS | B171: 081716 | C171: 1 | D171: 2400 | E171: 60 | F171: 1 | G171: 1 | H171: KW | I171: 71.61705148 | J171: 69.9777113 | K171: 67.8755725 | L171: 66.37238368 | M171: 69.41408047 | N171: 79.7633582 | O171: 108.4994594 | P171: 133.132792 | Q171: 163.7950286 | R171: 171.4174596 | S171: 175.8388688 | T171: 181.4073513 | U171: 173.8929891 | V171: 162.689535 | W171: 157.4626574 | X171: 137.4960058 | Y171: 114.5290238 | Z171: 103.7030819 | AA171: 99.06963768 | AB171: 93.93621093 | AC171: 89.25443041 | AD171: 80.37605436 | AE171: 73.69076391 | AF171: 70.27916991
A172: LRKPPS | B172: 081816 | C172: 1 | D172: 2400 | E172: 60 | F172: 1 | G172: 1 | H172: KW | I172: 65.76514314 | J172: 64.46738974 | K172: 63.2785561 | L172: 62.7317809 | M172: 64.0438919 | N172: 76.89400871 | O172: 104.4034506 | P172: 132.1156527 | Q172: 160.8293301 | R172: 166.5904399 | S172: 168.3907073 | T172: 172.9484544 | U172: 170.6221154 | V172: 162.5074653 | W172: 159.5538021 | X172: 143.8757097 | Y172: 123.7404599 | Z172: 113.3000492 | AA172: 107.4853959 | AB172: 102.8991206 | AC172: 95.76115142 | AD172: 87.51085625 | AE172: 79.87061775 | AF172: 74.30502333
A173: LRKPPS | B173: 081916 | C173: 1 | D173: 2400 | E173: 60 | F173: 1 | G173: 1 | H173: KW | I173: 70.43653605 | J173: 68.85154139 | K173: 68.58721588 | L173: 66.71696203 | M173: 66.5995132 | N173: 79.85976571 | O173: 105.1646367 | P173: 129.1495138 | Q173: 160.1084721 | R173: 164.4159478 | S173: 169.3063515 | T173: 172.139428 | U173: 169.1176166 | V173: 158.9671257 | W173: 156.730036 | X173: 137.8098736 | Y173: 117.7601779 | Z173: 105.5656876 | AA173: 98.76727586 | AB173: 95.12468644 | AC173: 90.87732966 | AD173: 84.05274119 | AE173: 76.99870477 | AF173: 72.53808856
A174: LRKPPS | B174: 082016 | C174: 1 | D174: 2400 | E174: 60 | F174: 1 | G174: 1 | H174: KW | I174: 67.70793398 | J174: 65.6363711 | K174: 64.579622 | L174: 64.18790954 | M174: 63.80386853 | N174: 62.70231145 | O174: 61.94365286 | P174: 63.23606083 | Q174: 64.49134521 | R174: 71.32401286 | S174: 73.60288272 | T174: 77.76923166 | U174: 79.47779154 | V174: 78.34688579 | W174: 74.9059842 | X174: 75.37354207 | Y174: 76.66046082 | Z174: 78.0519577 | AA174: 75.49465423 | AB174: 73.935107 | AC174: 73.95565814 | AD174: 73.35232807 | AE174: 70.93536294 | AF174: 69.23980661
A175: LRKPPS | B175: 082116 | C175: 1 | D175: 2400 | E175: 60 | F175: 1 | G175: 1 | H175: KW | I175: 66.72934215 | J175: 65.56461744 | K175: 65.10982935 | L175: 64.92324786 | M175: 64.00698595 | N175: 63.74471515 | O175: 63.31521843 | P175: 64.78774974 | Q175: 62.76190684 | R175: 63.91833818 | S175: 63.65497831 | T175: 63.40804567 | U175: 64.92206587 | V175: 66.04684182 | W175: 68.22322107 | X175: 71.97302482 | Y175: 73.82594086 | Z175: 72.57921915 | AA175: 70.90956874 | AB175: 69.9717373 | AC175: 67.19726233 | AD175: 67.59223233 | AE175: 65.24617721 | AF175: 62.72918201
A176: LRKPPS | B176: 082216 | C176: 1 | D176: 2400 | E176: 60 | F176: 1 | G176: 1 | H176: KW | I176: 58.25459702 | J176: 57.94091365 | K176: 56.58908406 | L176: 55.16913992 | M176: 57.20688098 | N176: 67.49470845 | O176: 90.97390634 | P176: 117.604364 | Q176: 144.8105247 | R176: 152.9450024 | S176: 156.7749968 | T176: 162.0556529 | U176: 156.2566979 | V176: 147.2681797 | W176: 143.87144 | X176: 129.0906267 | Y176: 113.7652767 | Z176: 102.6145592 | AA176: 97.91213992 | AB176: 92.90825857 | AC176: 86.26847023 | AD176: 76.30936379 | AE176: 68.57854876 | AF176: 63.39548581
A177: LRKPPS | B177: 082316 | C177: 1 | D177: 2400 | E177: 60 | F177: 1 | G177: 1 | H177: KW | I177: 58.15618584 | J177: 57.16221226 | K177: 56.41880009 | L177: 55.36630419 | M177: 55.67115009 | N177: 66.43272358 | O177: 89.80850646 | P177: 113.281991 | Q177: 144.1795802 | R177: 148.3419307 | S177: 151.6811532 | T177: 161.72823 | U177: 161.0307778 | V177: 152.4716679 | W177: 150.6039543 | X177: 136.7612537 | Y177: 121.1546374 | Z177: 113.1581701 | AA177: 107.1506595 | AB177: 98.93376786 | AC177: 90.20268313 | AD177: 77.50184586 | AE177: 70.6887438 | AF177: 66.38348111
A178: LRKPPS | B178: 082416 | C178: 1 | D178: 2400 | E178: 60 | F178: 1 | G178: 1 | H178: KW | I178: 61.04981077 | J178: 58.78967527 | K178: 57.39853584 | L178: 56.31573103 | M178: 57.6504037 | N178: 67.56628573 | O178: 91.45173558 | P178: 119.094938 | Q178: 151.4400123 | R178: 157.175226 | S178: 159.1515764 | T178: 168.5733962 | U178: 167.0174064 | V178: 161.5836941 | W178: 159.5722709 | X178: 144.318179 | Y178: 127.3490178 | Z178: 114.211845 | AA178: 105.2058442 | AB178: 98.71431414 | AC178: 92.06005265 | AD178: 87.19301349 | AE178: 78.6623668 | AF178: 73.71015594
A179: LRKPPS | B179: 082516 | C179: 1 | D179: 2400 | E179: 60 | F179: 1 | G179: 1 | H179: KW | I179: 69.51390785 | J179: 68.39836069 | K179: 67.09932333 | L179: 65.44121616 | M179: 67.27969697 | N179: 76.41810635 | O179: 102.1455664 | P179: 127.9249271 | Q179: 161.756928 | R179: 170.6128536 | S179: 168.7470294 | T179: 184.2226779 | U179: 185.1424576 | V179: 177.0290808 | W179: 172.251183 | X179: 152.1722274 | Y179: 135.9022152 | Z179: 125.4432029 | AA179: 118.8736917 | AB179: 111.9165788 | AC179: 102.3123411 | AD179: 95.01363506 | AE179: 86.14149937 | AF179: 79.25904652
A180: LRKPPS | B180: 082616 | C180: 1 | D180: 2400 | E180: 60 | F180: 1 | G180: 1 | H180: KW | I180: 74.11789664 | J180: 73.55425698 | K180: 69.66938368 | L180: 67.63198573 | M180: 69.8419933 | N180: 80.03118545 | O180: 110.0859472 | P180: 133.2722321 | Q180: 159.3404173 | R180: 169.2152333 | S180: 175.5271434 | T180: 183.1538308 | U180: 181.1067514 | V180: 171.1649437 | W180: 164.3156209 | X180: 143.5832969 | Y180: 125.897413 | Z180: 115.1745063 | AA180: 112.6364545 | AB180: 109.1510425 | AC180: 101.4430711 | AD180: 94.43868601 | AE180: 85.21661591 | AF180: 77.06333592
A181: LRKPPS | B181: 082716 | C181: 1 | D181: 2400 | E181: 60 | F181: 1 | G181: 1 | H181: KW | I181: 72.32817731 | J181: 71.79741643 | K181: 68.54108272 | L181: 67.39296697 | M181: 67.2757261 | N181: 67.37715163 | O181: 65.87113693 | P181: 67.27234117 | Q181: 68.96220614 | R181: 72.56376139 | S181: 76.8237987 | T181: 81.2826347 | U181: 84.15750158 | V181: 85.81735882 | W181: 88.1589768 | X181: 89.47110062 | Y181: 89.46290022 | Z181: 89.46094583 | AA181: 89.22515207 | AB181: 86.50160788 | AC181: 85.28090748 | AD181: 81.60308424 | AE181: 79.04929064 | AF181: 74.95571058
A182: LRKPPS | B182: 082816 | C182: 1 | D182: 2400 | E182: 60 | F182: 1 | G182: 1 | H182: KW | I182: 71.82529557 | J182: 70.82656231 | K182: 70.27124876 | L182: 69.65657019 | M182: 68.17256433 | N182: 67.23284744 | O182: 67.55441889 | P182: 67.97757156 | Q182: 66.66748954 | R182: 67.12022872 | S182: 71.22479961 | T182: 75.96650206 | U182: 79.74558463 | V182: 85.68730142 | W182: 89.01979744 | X182: 85.33944584 | Y182: 83.05796596 | Z182: 78.46855601 | AA182: 76.53155628 | AB182: 74.08369896 | AC182: 73.41414125 | AD182: 72.25086148 | AE182: 71.73622984 | AF182: 69.92085594
A183: LRKPPS | B183: 082916 | C183: 1 | D183: 2400 | E183: 60 | F183: 1 | G183: 1 | H183: KW | I183: 67.52610308 | J183: 65.72003538 | K183: 64.27172289 | L183: 62.72348873 | M183: 67.34614113 | N183: 83.44764048 | O183: 109.5613269 | P183: 134.4190606 | Q183: 164.3444224 | R183: 170.622715 | S183: 173.3900574 | T183: 182.0461519 | U183: 178.8770316 | V183: 172.8436621 | W183: 169.565563 | X183: 152.332989 | Y183: 133.8066191 | Z183: 123.8055216 | AA183: 120.2719409 | AB183: 112.7949657 | AC183: 100.8690257 | AD183: 88.97220437 | AE183: 80.07115488 | AF183: 75.3881808
A184: LRKPPS | B184: 083016 | C184: 1 | D184: 2400 | E184: 60 | F184: 1 | G184: 1 | H184: KW | I184: 70.43855972 | J184: 68.56818673 | K184: 69.54635066 | L184: 64.87120194 | M184: 65.77573925 | N184: 75.92086197 | O184: 106.2741393 | P184: 131.8519965 | Q184: 162.012205 | R184: 165.8530763 | S184: 172.0522288 | T184: 180.9088021 | U184: 177.6644616 | V184: 169.2112826 | W184: 166.6721779 | X184: 150.9388901 | Y184: 133.9368033 | Z184: 125.1670139 | AA184: 119.5938252 | AB184: 113.1599856 | AC184: 96.19542786 | AD184: 86.34985955 | AE184: 79.06314924 | AF184: 72.7589861
A185: LRKPPS | B185: 083116 | C185: 1 | D185: 2400 | E185: 60 | F185: 1 | G185: 1 | H185: KW | I185: 68.00672466 | J185: 67.29888885 | K185: 64.81633755 | L185: 64.898827 | M185: 64.8847454 | N185: 75.57181492 | O185: 104.1710815 | P185: 126.2153466 | Q185: 159.6963898 | R185: 165.0896849 | S185: 169.6990196 | T185: 179.0735222 | U185: 178.5119229 | V185: 170.429476 | W185: 167.2902189 | X185: 145.9551238 | Y185: 128.1925009 | Z185: 114.3076157 | AA185: 105.0934622 | AB185: 97.36913471 | AC185: 93.36782662 | AD185: 86.17333102 | AE185: 79.73497716 | AF185: 74.0100017
A186: LRKPPS | B186: 090116 | C186: 1 | D186: 2400 | E186: 60 | F186: 1 | G186: 1 | H186: KW | I186: 69.51313703 | J186: 69.213004 | K186: 67.01793556 | L186: 66.82081608 | M186: 66.67682511 | N186: 78.02483353 | O186: 110.7463762 | P186: 134.1871574 | Q186: 161.391333 | R186: 164.9963331 | S186: 163.1793675 | T186: 166.1223759 | U186: 163.8669327 | V186: 157.4974848 | W186: 151.9217021 | X186: 133.7382641 | Y186: 115.1689375 | Z186: 104.5231813 | AA186: 97.56305194 | AB186: 91.61359531 | AC186: 88.30801675 | AD186: 78.6921859 | AE186: 71.85060468 | AF186: 65.90047519
A187: LRKPPS | B187: 090216 | C187: 1 | D187: 2400 | E187: 60 | F187: 1 | G187: 1 | H187: KW | I187: 61.05035579 | J187: 57.86355136 | K187: 57.10545747 | L187: 55.76418647 | M187: 56.10327159 | N187: 67.86773103 | O187: 91.56362157 | P187: 117.3437853 | Q187: 143.5040732 | R187: 150.1720065 | S187: 148.6899647 | T187: 155.4746636 | U187: 154.297533 | V187: 145.1911996 | W187: 138.7668329 | X187: 120.4774282 | Y187: 103.676029 | Z187: 93.61914043 | AA187: 85.99533464 | AB187: 79.13887064 | AC187: 73.98980562 | AD187: 68.14419198 | AE187: 63.79089429 | AF187: 60.06076571
A188: LRKPPS | B188: 090316 | C188: 1 | D188: 2400 | E188: 60 | F188: 1 | G188: 1 | H188: KW | I188: 55.78073048 | J188: 55.49135919 | K188: 54.3292569 | L188: 53.5687408 | M188: 53.24351693 | N188: 52.31321809 | O188: 52.01923489 | P188: 52.76397625 | Q188: 54.32253423 | R188: 56.80247999 | S188: 58.43361409 | T188: 61.0922562 | U188: 62.12197805 | V188: 64.2060741 | W188: 64.47089565 | X188: 65.33002864 | Y188: 66.6988401 | Z188: 65.8698969 | AA188: 65.66669436 | AB188: 64.09345507 | AC188: 62.49009875 | AD188: 60.28884679 | AE188: 58.07429827 | AF188: 56.20877609
A189: LRKPPS | B189: 090416 | C189: 1 | D189: 2400 | E189: 60 | F189: 1 | G189: 1 | H189: KW | I189: 55.7275268 | J189: 54.45140385 | K189: 54.1459496 | L189: 53.62734201 | M189: 51.54503127 | N189: 51.61688828 | O189: 51.1908117 | P189: 50.26121587 | Q189: 51.23709109 | R189: 54.26738958 | S189: 58.41903051 | T189: 60.86678428 | U189: 63.36820065 | V189: 65.02140757 | W189: 65.41607682 | X189: 67.29578708 | Y189: 68.05153448 | Z189: 69.87132392 | AA189: 67.53936429 | AB189: 65.71341944 | AC189: 66.35661312 | AD189: 64.8120014 | AE189: 63.13736472 | AF189: 60.53062203
A190: LRKPPS | B190: 090516 | C190: 1 | D190: 2400 | E190: 60 | F190: 1 | G190: 1 | H190: KW | I190: 56.82889061 | J190: 55.55515319 | K190: 53.81987071 | L190: 52.51459004 | M190: 52.51756158 | N190: 53.52708248 | O190: 60.11663407 | P190: 67.66024083 | Q190: 69.86422197 | R190: 70.85069333 | S190: 76.31789619 | T190: 80.39071506 | U190: 84.16008397 | V190: 87.27853886 | W190: 87.21386542 | X190: 82.89937676 | Y190: 80.26653549 | Z190: 77.12599001 | AA190: 75.5776957 | AB190: 72.37924749 | AC190: 69.73671851 | AD190: 65.95514015 | AE190: 62.89744812 | AF190: 60.27185314
A191: LRKPPS | B191: 090616 | C191: 1 | D191: 2400 | E191: 60 | F191: 1 | G191: 1 | H191: KW | I191: 56.76615436 | J191: 54.75540974 | K191: 54.89677278 | L191: 53.20407778 | M191: 55.96473346 | N191: 67.95672466 | O191: 87.38392769 | P191: 120.0283939 | Q191: 150.0062162 | R191: 158.0814275 | S191: 163.2506696 | T191: 173.7105348 | U191: 172.775669 | V191: 165.7426971 | W191: 161.446131 | X191: 143.3788423 | Y191: 124.5849284 | Z191: 111.9737507 | AA191: 104.6282683 | AB191: 98.35820647 | AC191: 91.56785044 | AD191: 84.29176302 | AE191: 76.66628484 | AF191: 70.55382971
A192: LRKPPS | B192: 090716 | C192: 1 | D192: 2400 | E192: 60 | F192: 1 | G192: 1 | H192: KW | I192: 64.71583532 | J192: 63.08065372 | K192: 63.14047866 | L192: 60.66606202 | M192: 60.9900337 | N192: 70.88091278 | O192: 97.28028834 | P192: 122.6694102 | Q192: 153.7843969 | R192: 163.207857 | S192: 165.9645434 | T192: 176.8817797 | U192: 176.8905813 | V192: 170.4523368 | W192: 165.5021128 | X192: 145.7003976 | Y192: 126.0339847 | Z192: 116.2981945 | AA192: 106.6224276 | AB192: 100.3231803 | AC192: 94.1888762 | AD192: 84.25312022 | AE192: 78.1117997 | AF192: 73.21069327
A193: LRKPPS | B193: 090816 | C193: 1 | D193: 2400 | E193: 60 | F193: 1 | G193: 1 | H193: KW | I193: 67.32394496 | J193: 65.94803693 | K193: 64.66963671 | L193: 65.59427968 | M193: 65.18093696 | N193: 75.26721898 | O193: 104.0259657 | P193: 127.9701865 | Q193: 159.6633573 | R193: 165.7871292 | S193: 173.6519361 | T193: 182.5149837 | U193: 180.5157357 | V193: 172.6555503 | W193: 170.7249648 | X193: 154.2491108 | Y193: 133.3536447 | Z193: 122.5277497 | AA193: 113.7257599 | AB193: 110.3854104 | AC193: 101.785936 | AD193: 92.14752812 | AE193: 80.90907611 | AF193: 76.29232384
A194: LRKPPS | B194: 090916 | C194: 1 | D194: 2400 | E194: 60 | F194: 1 | G194: 1 | H194: KW | I194: 69.91377733 | J194: 67.77073066 | K194: 66.26800538 | L194: 66.02959307 | M194: 65.82326348 | N194: 76.74908343 | O194: 104.9868988 | P194: 129.3870236 | Q194: 155.5431414 | R194: 162.7830305 | S194: 165.5313632 | T194: 172.4144865 | U194: 167.6486339 | V194: 162.7874063 | W194: 160.0204625 | X194: 141.8712779 | Y194: 118.0765903 | Z194: 105.1504593 | AA194: 96.02394365 | AB194: 90.38456671 | AC194: 86.05720167 | AD194: 80.12450095 | AE194: 75.05419341 | AF194: 70.99125709
A195: LRKPPS | B195: 091016 | C195: 1 | D195: 2400 | E195: 60 | F195: 1 | G195: 1 | H195: KW | I195: 67.29384175 | J195: 65.53059411 | K195: 64.82947348 | L195: 64.14676847 | M195: 62.63400625 | N195: 63.97129136 | O195: 62.82422652 | P195: 65.73454198 | Q195: 66.44075194 | R195: 71.27557978 | S195: 74.9072127 | T195: 77.74078624 | U195: 78.27396797 | V195: 79.53387741 | W195: 79.88837431 | X195: 80.25927762 | Y195: 81.93812943 | Z195: 81.24854174 | AA195: 79.63903112 | AB195: 76.41825078 | AC195: 73.24298353 | AD195: 70.63079409 | AE195: 70.38206917 | AF195: 67.64498304
A196: LRKPPS | B196: 091116 | C196: 1 | D196: 2400 | E196: 60 | F196: 1 | G196: 1 | H196: KW | I196: 65.29240681 | J196: 64.8492923 | K196: 63.97132928 | L196: 63.19441201 | M196: 62.12331823 | N196: 60.23553526 | O196: 59.80258841 | P196: 59.90766824 | Q196: 58.79900762 | R196: 59.89611965 | S196: 62.8244844 | T196: 63.55252721 | U196: 64.76651004 | V196: 66.10754445 | W196: 65.64707927 | X196: 69.30060047 | Y196: 71.03247406 | Z196: 70.66663046 | AA196: 67.80258212 | AB196: 66.15330073 | AC196: 64.45888838 | AD196: 62.98789783 | AE196: 62.46325665 | AF196: 59.06393194
A197: LRKPPS | B197: 091216 | C197: 1 | D197: 2400 | E197: 60 | F197: 1 | G197: 1 | H197: KW | I197: 56.65310812 | J197: 54.9164922 | K197: 54.43136109 | L197: 53.33026982 | M197: 55.07784032 | N197: 65.81971794 | O197: 88.4115141 | P197: 108.12641 | Q197: 138.059545 | R197: 146.7481829 | S197: 151.569168 | T197: 162.1269188 | U197: 158.6570424 | V197: 150.5516739 | W197: 147.7741853 | X197: 133.3241342 | Y197: 117.0767042 | Z197: 106.3074587 | AA197: 101.9491592 | AB197: 98.01132654 | AC197: 88.64803552 | AD197: 75.7565101 | AE197: 68.76561566 | AF197: 63.55613281
A198: LRKPPS | B198: 091316 | C198: 1 | D198: 2400 | E198: 60 | F198: 1 | G198: 1 | H198: KW | I198: 59.18097222 | J198: 57.74220412 | K198: 56.73617364 | L198: 55.97031443 | M198: 56.07793084 | N198: 68.64645222 | O198: 88.25983396 | P198: 113.9443218 | Q198: 144.4850346 | R198: 152.4329929 | S198: 157.2842168 | T198: 166.9808859 | U198: 167.8961225 | V198: 160.9874292 | W198: 160.1615422 | X198: 144.7358149 | Y198: 125.1058077 | Z198: 111.745099 | AA198: 104.2855932 | AB198: 97.49731461 | AC198: 91.42716499 | AD198: 77.16836012 | AE198: 70.11796843 | AF198: 66.57423626
A199: LRKPPS | B199: 091416 | C199: 1 | D199: 2400 | E199: 60 | F199: 1 | G199: 1 | H199: KW | I199: 62.77894144 | J199: 61.75189886 | K199: 62.00159215 | L199: 59.50524409 | M199: 59.41919182 | N199: 70.05823062 | O199: 95.1201843 | P199: 120.7831327 | Q199: 151.5208212 | R199: 158.1643694 | S199: 161.1744245 | T199: 170.6655628 | U199: 165.6051512 | V199: 156.0798148 | W199: 151.8459593 | X199: 138.9824904 | Y199: 121.2854115 | Z199: 110.2662632 | AA199: 101.4851697 | AB199: 93.77547308 | AC199: 90.2946117 | AD199: 82.03141254 | AE199: 74.21741183 | AF199: 68.67333198
A200: LRKPPS | B200: 091516 | C200: 1 | D200: 2400 | E200: 60 | F200: 1 | G200: 1 | H200: KW | I200: 63.23054643 | J200: 62.62506876 | K200: 63.73087571 | L200: 61.87996532 | M200: 61.70557378 | N200: 70.84223712 | O200: 95.55255826 | P200: 123.6774559 | Q200: 152.5107798 | R200: 155.3173376 | S200: 153.0717815 | T200: 159.9495613 | U200: 156.8473305 | V200: 151.255169 | W200: 148.9211939 | X200: 133.2698118 | Y200: 115.5979413 | Z200: 108.1558862 | AA200: 101.414298 | AB200: 96.47176792 | AC200: 93.06414818 | AD200: 81.01437506 | AE200: 72.75408017 | AF200: 66.50900461
... 166 more rows

Sheet Expanded kW
A1: Month | B1: Holiday? | C1: On or Off Peak | D1: Date/Time | E1: Class | F1: Demand | G1: Monthly Weight | H1: Expanded | J1: Load shape in local time.
A2: =MONTH(D2) -> 3 | B2: =IF(ISNA(VLOOKUP(DATE(YEAR(D2),MONTH(D2),DAY(D2)),Holidays,1,FALSE)),FALSE,TRUE) -> FALSE | C2: =IF(OR(HOUR(D2)<PkStart,HOUR(D2)>OPkStart-1,WEEKDAY(D2,2)>5,B2)=TRUE,"OFF","ON") -> OFF | D2: =TYBegin -> 2016-03-01 | E2: ='LR 8760 Loads'!A2 -> LRKPPS | F2: 59.33338165 | G2: =IF(SUMIF($A$2:$A$8761,A2,$F$2:$F$8761)=0,0,F2/SUMIF($A$2:$A$8761,A2,$F$2:$F$8761)) -> 0.001040334868 | H2: =G2*SUMIF('Manual Inputs'!$B$11:$B$22,'Expanded kW'!A2,'Manual Inputs'!$C$11:$C$22) -> 8649.886108
A3: 3 | B3: FALSE | C3: OFF | D3: =+D2+1/24 -> 2016-03-01T01:00:00 | E3: =+E2 -> LRKPPS | F3: 60.42305374 | G3: 0.001059440873 | H3: =G3*SUMIF('Manual Inputs'!$B$11:$B$22,'Expanded kW'!A3,'Manual Inputs'!$C$11:$C$22) -> 8808.743386
A4: 3 | B4: FALSE | C4: OFF | D4: =+D3+1/24 -> 2016-03-01T02:00:00 | E4: =+E3 -> LRKPPS | F4: 62.39079285 | G4: 0.001093942658 | H4: =G4*SUMIF('Manual Inputs'!$B$11:$B$22,'Expanded kW'!A4,'Manual Inputs'!$C$11:$C$22) -> 9095.609205
A5: 3 | B5: FALSE | C5: OFF | D5: 2016-03-01T03:00:00 | E5: LRKPPS | F5: 67.75102234 | G5: 0.001187927418 | H5: =G5*SUMIF('Manual Inputs'!$B$11:$B$22,'Expanded kW'!A5,'Manual Inputs'!$C$11:$C$22) -> 9877.047467
A6: 3 | B6: FALSE | C6: OFF | D6: 2016-03-01T04:00:00 | E6: LRKPPS | F6: 74.66906738 | G6: 0.001309226479 | H6: =G6*SUMIF('Manual Inputs'!$B$11:$B$22,'Expanded kW'!A6,'Manual Inputs'!$C$11:$C$22) -> 10885.59106
A7: 3 | B7: FALSE | C7: OFF | D7: 2016-03-01T05:00:00 | E7: LRKPPS | F7: 86.10676575 | G7: 0.001509771874 | H7: =G7*SUMIF('Manual Inputs'!$B$11:$B$22,'Expanded kW'!A7,'Manual Inputs'!$C$11:$C$22) -> 12553.02995
A8: 3 | B8: FALSE | C8: OFF | D8: 2016-03-01T06:00:00 | E8: LRKPPS | F8: 106.7540207 | G8: 0.001871795049 | H8: =G8*SUMIF('Manual Inputs'!$B$11:$B$22,'Expanded kW'!A8,'Manual Inputs'!$C$11:$C$22) -> 15563.07925
A9: 3 | B9: FALSE | C9: ON | D9: 2016-03-01T07:00:00 | E9: LRKPPS | F9: 123.4415207 | G9: 0.002164388993 | H9: =G9*SUMIF('Manual Inputs'!$B$11:$B$22,'Expanded kW'!A9,'Manual Inputs'!$C$11:$C$22) -> 17995.85773
A10: 3 | B10: FALSE | C10: ON | D10: 2016-03-01T08:00:00 | E10: LRKPPS | F10: 138.6842804 | G10: 0.002431651265 | H10: =G10*SUMIF('Manual Inputs'!$B$11:$B$22,'Expanded kW'!A10,'Manual Inputs'!$C$11:$C$22) -> 20218.01551
A11: 3 | B11: FALSE | C11: ON | D11: 2016-03-01T09:00:00 | E11: LRKPPS | F11: 134.7535706 | G11: 0.002362731302 | H11: =G11*SUMIF('Manual Inputs'!$B$11:$B$22,'Expanded kW'!A11,'Manual Inputs'!$C$11:$C$22) -> 19644.97902
A12: 3 | B12: FALSE | C12: ON | D12: 2016-03-01T10:00:00 | E12: LRKPPS | F12: 130.8549957 | G12: 0.002294374784 | H12: =G12*SUMIF('Manual Inputs'!$B$11:$B$22,'Expanded kW'!A12,'Manual Inputs'!$C$11:$C$22) -> 19076.62733 | J12: Total class kwh times hourly weight | N12: =G2*'Manual Inputs'!C11 -> 8649.886108
A13: 3 | B13: FALSE | C13: ON | D13: 2016-03-01T11:00:00 | E13: LRKPPS | F13: 134.9000397 | G13: 0.00236529945 | H13: =G13*SUMIF('Manual Inputs'!$B$11:$B$22,'Expanded kW'!A13,'Manual Inputs'!$C$11:$C$22) -> 19666.33195
A14: 3 | B14: FALSE | C14: ON | D14: 2016-03-01T12:00:00 | E14: LRKPPS | F14: 129.4067841 | G14: 0.002268982247 | H14: =G14*SUMIF('Manual Inputs'!$B$11:$B$22,'Expanded kW'!A14,'Manual Inputs'!$C$11:$C$22) -> 18865.50054
A15: 3 | B15: FALSE | C15: ON | D15: 2016-03-01T13:00:00 | E15: LRKPPS | F15: 116.8465729 | G15: 0.002048755028 | H15: =G15*SUMIF('Manual Inputs'!$B$11:$B$22,'Expanded kW'!A15,'Manual Inputs'!$C$11:$C$22) -> 17034.4167
A16: 3 | B16: FALSE | C16: ON | D16: 2016-03-01T14:00:00 | E16: LRKPPS | F16: 108.6608124 | G16: 0.0019052282 | H16: =G16*SUMIF('Manual Inputs'!$B$11:$B$22,'Expanded kW'!A16,'Manual Inputs'!$C$11:$C$22) -> 15841.05988
A17: 3 | B17: FALSE | C17: ON | D17: 2016-03-01T15:00:00 | E17: LRKPPS | F17: 91.93783569 | G17: 0.001612012218 | H17: =G17*SUMIF('Manual Inputs'!$B$11:$B$22,'Expanded kW'!A17,'Manual Inputs'!$C$11:$C$22) -> 13403.10944
A18: 3 | B18: FALSE | C18: ON | D18: 2016-03-01T16:00:00 | E18: LRKPPS | F18: 80.51832581 | G18: 0.001411785736 | H18: =G18*SUMIF('Manual Inputs'!$B$11:$B$22,'Expanded kW'!A18,'Manual Inputs'!$C$11:$C$22) -> 11738.32215
A19: 3 | B19: FALSE | C19: ON | D19: 2016-03-01T17:00:00 | E19: LRKPPS | F19: 74.85224152 | G19: 0.001312438203 | H19: =G19*SUMIF('Manual Inputs'!$B$11:$B$22,'Expanded kW'!A19,'Manual Inputs'!$C$11:$C$22) -> 10912.295
A20: 3 | B20: FALSE | C20: ON | D20: 2016-03-01T18:00:00 | E20: LRKPPS | F20: 73.51064301 | G20: 0.001288914991 | H20: =G20*SUMIF('Manual Inputs'!$B$11:$B$22,'Expanded kW'!A20,'Manual Inputs'!$C$11:$C$22) -> 10716.71076
A21: 3 | B21: FALSE | C21: ON | D21: 2016-03-01T19:00:00 | E21: LRKPPS | F21: 71.63672638 | G21: 0.001256058263 | H21: =G21*SUMIF('Manual Inputs'!$B$11:$B$22,'Expanded kW'!A21,'Manual Inputs'!$C$11:$C$22) -> 10443.5228
A22: 3 | B22: FALSE | C22: ON | D22: 2016-03-01T20:00:00 | E22: LRKPPS | F22: 66.95886993 | G22: 0.00117403804 | H22: =G22*SUMIF('Manual Inputs'!$B$11:$B$22,'Expanded kW'!A22,'Manual Inputs'!$C$11:$C$22) -> 9761.563942
A23: 3 | B23: FALSE | C23: OFF | D23: 2016-03-01T21:00:00 | E23: LRKPPS | F23: 64.48732758 | G23: 0.00113070271 | H23: =G23*SUMIF('Manual Inputs'!$B$11:$B$22,'Expanded kW'!A23,'Manual Inputs'!$C$11:$C$22) -> 9401.251428
A24: 3 | B24: FALSE | C24: OFF | D24: 2016-03-01T22:00:00 | E24: LRKPPS | F24: 62.62844849 | G24: 0.001098109646 | H24: =G24*SUMIF('Manual Inputs'!$B$11:$B$22,'Expanded kW'!A24,'Manual Inputs'!$C$11:$C$22) -> 9130.255709
A25: 3 | B25: FALSE | C25: OFF | D25: 2016-03-01T23:00:00 | E25: LRKPPS | F25: 60.19100952 | G25: 0.001055372275 | H25: =G25*SUMIF('Manual Inputs'!$B$11:$B$22,'Expanded kW'!A25,'Manual Inputs'!$C$11:$C$22) -> 8774.91494
A26: 3 | B26: FALSE | C26: OFF | D26: 2016-03-02 | E26: LRKPPS | F26: 59.50343323 | G26: 0.001043316505 | H26: =G26*SUMIF('Manual Inputs'!$B$11:$B$22,'Expanded kW'!A26,'Manual Inputs'!$C$11:$C$22) -> 8674.676989
A27: 3 | B27: FALSE | C27: OFF | D27: 2016-03-02T01:00:00 | E27: LRKPPS | F27: 60.85850906 | G27: 0.001067076024 | H27: =G27*SUMIF('Manual Inputs'!$B$11:$B$22,'Expanded kW'!A27,'Manual Inputs'!$C$11:$C$22) -> 8872.226013
A28: 3 | B28: FALSE | C28: OFF | D28: 2016-03-02T02:00:00 | E28: LRKPPS | F28: 61.21289062 | G28: 0.001073289651 | H28: =G28*SUMIF('Manual Inputs'!$B$11:$B$22,'Expanded kW'!A28,'Manual Inputs'!$C$11:$C$22) -> 8923.889344
A29: 3 | B29: FALSE | C29: OFF | D29: 2016-03-02T03:00:00 | E29: LRKPPS | F29: 65.99102783 | G29: 0.001157068169 | H29: =G29*SUMIF('Manual Inputs'!$B$11:$B$22,'Expanded kW'!A29,'Manual Inputs'!$C$11:$C$22) -> 9620.467585
A30: 3 | B30: FALSE | C30: OFF | D30: 2016-03-02T04:00:00 | E30: LRKPPS | F30: 71.95571136 | G30: 0.001261651256 | H30: =G30*SUMIF('Manual Inputs'!$B$11:$B$22,'Expanded kW'!A30,'Manual Inputs'!$C$11:$C$22) -> 10490.02586
A31: 3 | B31: FALSE | C31: OFF | D31: 2016-03-02T05:00:00 | E31: LRKPPS | F31: 81.19235229 | G31: 0.001423603927 | H31: =G31*SUMIF('Manual Inputs'!$B$11:$B$22,'Expanded kW'!A31,'Manual Inputs'!$C$11:$C$22) -> 11836.58475
A32: 3 | B32: FALSE | C32: OFF | D32: 2016-03-02T06:00:00 | E32: LRKPPS | F32: 103.5607834 | G32: 0.001815805722 | H32: =G32*SUMIF('Manual Inputs'!$B$11:$B$22,'Expanded kW'!A32,'Manual Inputs'!$C$11:$C$22) -> 15097.55481
A33: 3 | B33: FALSE | C33: ON | D33: 2016-03-02T07:00:00 | E33: LRKPPS | F33: 123.2875366 | G33: 0.002161689079 | H33: =G33*SUMIF('Manual Inputs'!$B$11:$B$22,'Expanded kW'!A33,'Manual Inputs'!$C$11:$C$22) -> 17973.40925
A34: 3 | B34: FALSE | C34: ON | D34: 2016-03-02T08:00:00 | E34: LRKPPS | F34: 147.5001831 | G34: 0.00258622683 | H34: =G34*SUMIF('Manual Inputs'!$B$11:$B$22,'Expanded kW'!A34,'Manual Inputs'!$C$11:$C$22) -> 21503.23729
A35: 3 | B35: FALSE | C35: ON | D35: 2016-03-02T09:00:00 | E35: LRKPPS | F35: 149.0557709 | G35: 0.00261350207 | H35: =G35*SUMIF('Manual Inputs'!$B$11:$B$22,'Expanded kW'!A35,'Manual Inputs'!$C$11:$C$22) -> 21730.01784
A36: 3 | B36: FALSE | C36: ON | D36: 2016-03-02T10:00:00 | E36: LRKPPS | F36: 142.8968353 | G36: 0.002505513022 | H36: =G36*SUMIF('Manual Inputs'!$B$11:$B$22,'Expanded kW'!A36,'Manual Inputs'!$C$11:$C$22) -> 20832.14063
A37: 3 | B37: FALSE | C37: ON | D37: 2016-03-02T11:00:00 | E37: LRKPPS | F37: 146.9987946 | G37: 0.002577435624 | H37: =G37*SUMIF('Manual Inputs'!$B$11:$B$22,'Expanded kW'!A37,'Manual Inputs'!$C$11:$C$22) -> 21430.14262
A38: 3 | B38: FALSE | C38: ON | D38: 2016-03-02T12:00:00 | E38: LRKPPS | F38: 138.3996277 | G38: 0.002426660244 | H38: =G38*SUMIF('Manual Inputs'!$B$11:$B$22,'Expanded kW'!A38,'Manual Inputs'!$C$11:$C$22) -> 20176.51756
A39: 3 | B39: FALSE | C39: ON | D39: 2016-03-02T13:00:00 | E39: LRKPPS | F39: 126.7060394 | G39: 0.002221628149 | H39: =G39*SUMIF('Manual Inputs'!$B$11:$B$22,'Expanded kW'!A39,'Manual Inputs'!$C$11:$C$22) -> 18471.77389
A40: 3 | B40: FALSE | C40: ON | D40: 2016-03-02T14:00:00 | E40: LRKPPS | F40: 121.6417007 | G40: 0.002132831455 | H40: =G40*SUMIF('Manual Inputs'!$B$11:$B$22,'Expanded kW'!A40,'Manual Inputs'!$C$11:$C$22) -> 17733.47192
A41: 3 | B41: FALSE | C41: ON | D41: 2016-03-02T15:00:00 | E41: LRKPPS | F41: 102.7971191 | G41: 0.001802415848 | H41: =G41*SUMIF('Manual Inputs'!$B$11:$B$22,'Expanded kW'!A41,'Manual Inputs'!$C$11:$C$22) -> 14986.22442
A42: 3 | B42: FALSE | C42: ON | D42: 2016-03-02T16:00:00 | E42: LRKPPS | F42: 88.19696045 | G42: 0.001546420761 | H42: =G42*SUMIF('Manual Inputs'!$B$11:$B$22,'Expanded kW'!A42,'Manual Inputs'!$C$11:$C$22) -> 12857.74789
A43: 3 | B43: FALSE | C43: ON | D43: 2016-03-02T17:00:00 | E43: LRKPPS | F43: 82.20611572 | G43: 0.001441378971 | H43: =G43*SUMIF('Manual Inputs'!$B$11:$B$22,'Expanded kW'!A43,'Manual Inputs'!$C$11:$C$22) -> 11984.37572
A44: 3 | B44: FALSE | C44: ON | D44: 2016-03-02T18:00:00 | E44: LRKPPS | F44: 80.83125305 | G44: 0.001417272514 | H44: =G44*SUMIF('Manual Inputs'!$B$11:$B$22,'Expanded kW'!A44,'Manual Inputs'!$C$11:$C$22) -> 11783.94208
A45: 3 | B45: FALSE | C45: ON | D45: 2016-03-02T19:00:00 | E45: LRKPPS | F45: 84.34008789 | G45: 0.00147879544 | H45: =G45*SUMIF('Manual Inputs'!$B$11:$B$22,'Expanded kW'!A45,'Manual Inputs'!$C$11:$C$22) -> 12295.47574
A46: 3 | B46: FALSE | C46: ON | D46: 2016-03-02T20:00:00 | E46: LRKPPS | F46: 81.80570984 | G46: 0.001434358366 | H46: =G46*SUMIF('Manual Inputs'!$B$11:$B$22,'Expanded kW'!A46,'Manual Inputs'!$C$11:$C$22) -> 11926.00276
A47: 3 | B47: FALSE | C47: OFF | D47: 2016-03-02T21:00:00 | E47: LRKPPS | F47: 78.61612701 | G47: 0.001378433116 | H47: =G47*SUMIF('Manual Inputs'!$B$11:$B$22,'Expanded kW'!A47,'Manual Inputs'!$C$11:$C$22) -> 11461.01109
A48: 3 | B48: FALSE | C48: OFF | D48: 2016-03-02T22:00:00 | E48: LRKPPS | F48: 75.60823059 | G48: 0.001325693504 | H48: =G48*SUMIF('Manual Inputs'!$B$11:$B$22,'Expanded kW'!A48,'Manual Inputs'!$C$11:$C$22) -> 11022.50648
A49: 3 | B49: FALSE | C49: OFF | D49: 2016-03-02T23:00:00 | E49: LRKPPS | F49: 74.66664886 | G49: 0.001309184074 | H49: =G49*SUMIF('Manual Inputs'!$B$11:$B$22,'Expanded kW'!A49,'Manual Inputs'!$C$11:$C$22) -> 10885.23847
A50: 3 | B50: FALSE | C50: OFF | D50: 2016-03-03 | E50: LRKPPS | F50: 75.09029388 | G50: 0.001316612147 | H50: =G50*SUMIF('Manual Inputs'!$B$11:$B$22,'Expanded kW'!A50,'Manual Inputs'!$C$11:$C$22) -> 10946.99934
A51: 3 | B51: FALSE | C51: OFF | D51: 2016-03-03T01:00:00 | E51: LRKPPS | F51: 75.79103088 | G51: 0.001328898673 | H51: =G51*SUMIF('Manual Inputs'!$B$11:$B$22,'Expanded kW'!A51,'Manual Inputs'!$C$11:$C$22) -> 11049.15592
A52: 3 | B52: FALSE | C52: OFF | D52: 2016-03-03T02:00:00 | E52: LRKPPS | F52: 76.1989975 | G52: 0.001336051845 | H52: =G52*SUMIF('Manual Inputs'!$B$11:$B$22,'Expanded kW'!A52,'Manual Inputs'!$C$11:$C$22) -> 11108.63112
A53: 3 | B53: FALSE | C53: OFF | D53: 2016-03-03T03:00:00 | E53: LRKPPS | F53: 81.68043518 | G53: 0.001432161835 | H53: =G53*SUMIF('Manual Inputs'!$B$11:$B$22,'Expanded kW'!A53,'Manual Inputs'!$C$11:$C$22) -> 11907.73966
A54: 3 | B54: FALSE | C54: OFF | D54: 2016-03-03T04:00:00 | E54: LRKPPS | F54: 90.16036224 | G54: 0.001580846497 | H54: =G54*SUMIF('Manual Inputs'!$B$11:$B$22,'Expanded kW'!A54,'Manual Inputs'!$C$11:$C$22) -> 13143.9814
A55: 3 | B55: FALSE | C55: OFF | D55: 2016-03-03T05:00:00 | E55: LRKPPS | F55: 115.7557526 | G55: 0.002029628891 | H55: =G55*SUMIF('Manual Inputs'!$B$11:$B$22,'Expanded kW'!A55,'Manual Inputs'!$C$11:$C$22) -> 16875.39203
A56: 3 | B56: FALSE | C56: OFF | D56: 2016-03-03T06:00:00 | E56: LRKPPS | F56: 124.3649826 | G56: 0.002180580715 | H56: =G56*SUMIF('Manual Inputs'!$B$11:$B$22,'Expanded kW'!A56,'Manual Inputs'!$C$11:$C$22) -> 18130.48415
A57: 3 | B57: FALSE | C57: ON | D57: 2016-03-03T07:00:00 | E57: LRKPPS | F57: 142.441925 | G57: 0.002497536752 | H57: =G57*SUMIF('Manual Inputs'!$B$11:$B$22,'Expanded kW'!A57,'Manual Inputs'!$C$11:$C$22) -> 20765.82178
A58: 3 | B58: FALSE | C58: ON | D58: 2016-03-03T08:00:00 | E58: LRKPPS | F58: 164.9191284 | G58: 0.00289164573 | H58: =G58*SUMIF('Manual Inputs'!$B$11:$B$22,'Expanded kW'!A58,'Manual Inputs'!$C$11:$C$22) -> 24042.64915
A59: 3 | B59: FALSE | C59: ON | D59: 2016-03-03T09:00:00 | E59: LRKPPS | F59: 159.5559235 | G59: 0.002797608799 | H59: =G59*SUMIF('Manual Inputs'!$B$11:$B$22,'Expanded kW'!A59,'Manual Inputs'!$C$11:$C$22) -> 23260.77711
A60: 3 | B60: FALSE | C60: ON | D60: 2016-03-03T10:00:00 | E60: LRKPPS | F60: 151.7218781 | G60: 0.002660248845 | H60: =G60*SUMIF('Manual Inputs'!$B$11:$B$22,'Expanded kW'!A60,'Manual Inputs'!$C$11:$C$22) -> 22118.69489
A61: 3 | B61: FALSE | C61: ON | D61: 2016-03-03T11:00:00 | E61: LRKPPS | F61: 154.6975403 | G61: 0.002712423272 | H61: =G61*SUMIF('Manual Inputs'!$B$11:$B$22,'Expanded kW'!A61,'Manual Inputs'!$C$11:$C$22) -> 22552.50025
A62: 3 | B62: FALSE | C62: ON | D62: 2016-03-03T12:00:00 | E62: LRKPPS | F62: 146.6642456 | G62: 0.002571569736 | H62: =G62*SUMIF('Manual Inputs'!$B$11:$B$22,'Expanded kW'!A62,'Manual Inputs'!$C$11:$C$22) -> 21381.37058
A63: 3 | B63: FALSE | C63: ON | D63: 2016-03-03T13:00:00 | E63: LRKPPS | F63: 131.2188416 | G63: 0.002300754355 | H63: =G63*SUMIF('Manual Inputs'!$B$11:$B$22,'Expanded kW'!A63,'Manual Inputs'!$C$11:$C$22) -> 19129.6704
A64: 3 | B64: FALSE | C64: ON | D64: 2016-03-03T14:00:00 | E64: LRKPPS | F64: 121.1360016 | G64: 0.002123964668 | H64: =G64*SUMIF('Manual Inputs'!$B$11:$B$22,'Expanded kW'!A64,'Manual Inputs'!$C$11:$C$22) -> 17659.74883
A65: 3 | B65: FALSE | C65: ON | D65: 2016-03-03T15:00:00 | E65: LRKPPS | F65: 104.2376175 | G65: 0.001827673142 | H65: =G65*SUMIF('Manual Inputs'!$B$11:$B$22,'Expanded kW'!A65,'Manual Inputs'!$C$11:$C$22) -> 15196.22672
A66: =MONTH(D66) -> 3 | B66: =IF(ISNA(VLOOKUP(DATE(YEAR(D66),MONTH(D66),DAY(D66)),Holidays,1,FALSE)),FALSE,TRUE) -> FALSE | C66: =IF(OR(HOUR(D66)<PkStart,HOUR(D66)>OPkStart-1,WEEKDAY(D66,2)>5,B66)=TRUE,"OFF","ON") -> ON | D66: 2016-03-03T16:00:00 | E66: LRKPPS | F66: 93.75975037 | G66: =IF(SUMIF($A$2:$A$8761,A66,$F$2:$F$8761)=0,0,F66/SUMIF($A$2:$A$8761,A66,$F$2:$F$8761)) -> 0.001643957159 | H66: =G66*SUMIF('Manual Inputs'!$B$11:$B$22,'Expanded kW'!A66,'Manual Inputs'!$C$11:$C$22) -> 13668.71632
A67: 3 | B67: FALSE | C67: ON | D67: 2016-03-03T17:00:00 | E67: LRKPPS | F67: 102.2718201 | G67: 0.001793205401 | H67: =G67*SUMIF('Manual Inputs'!$B$11:$B$22,'Expanded kW'!A67,'Manual Inputs'!$C$11:$C$22) -> 14909.64397
A68: 3 | B68: FALSE | C68: ON | D68: =+D67+1/24 -> 2016-03-03T18:00:00 | E68: =+E67 -> LRKPPS | F68: 89.54683685 | G68: 0.001570089115 | H68: =G68*SUMIF('Manual Inputs'!$B$11:$B$22,'Expanded kW'!A68,'Manual Inputs'!$C$11:$C$22) -> 13054.53892
A69: 3 | B69: FALSE | C69: ON | D69: 2016-03-03T19:00:00 | E69: LRKPPS | F69: 90.07474518 | G69: 0.001579345312 | H69: =G69*SUMIF('Manual Inputs'!$B$11:$B$22,'Expanded kW'!A69,'Manual Inputs'!$C$11:$C$22) -> 13131.49976
A70: 3 | B70: FALSE | C70: ON | D70: 2016-03-03T20:00:00 | E70: LRKPPS | F70: 82.59197998 | G70: 0.001448144606 | H70: =G70*SUMIF('Manual Inputs'!$B$11:$B$22,'Expanded kW'!A70,'Manual Inputs'!$C$11:$C$22) -> 12040.62874
A71: 3 | B71: FALSE | C71: OFF | D71: 2016-03-03T21:00:00 | E71: LRKPPS | F71: 81.05625916 | G71: 0.001421217708 | H71: =G71*SUMIF('Manual Inputs'!$B$11:$B$22,'Expanded kW'!A71,'Manual Inputs'!$C$11:$C$22) -> 11816.74448
A72: 3 | B72: FALSE | C72: OFF | D72: 2016-03-03T22:00:00 | E72: LRKPPS | F72: 79.15960693 | G72: 0.00138796234 | H72: =G72*SUMIF('Manual Inputs'!$B$11:$B$22,'Expanded kW'!A72,'Manual Inputs'!$C$11:$C$22) -> 11540.24202
A73: 3 | B73: FALSE | C73: OFF | D73: 2016-03-03T23:00:00 | E73: LRKPPS | F73: 75.06080627 | G73: 0.001316095119 | H73: =G73*SUMIF('Manual Inputs'!$B$11:$B$22,'Expanded kW'!A73,'Manual Inputs'!$C$11:$C$22) -> 10942.70051
A74: 3 | B74: FALSE | C74: OFF | D74: 2016-03-04 | E74: LRKPPS | F74: 74.79042816 | G74: 0.001311354385 | H74: =G74*SUMIF('Manual Inputs'!$B$11:$B$22,'Expanded kW'!A74,'Manual Inputs'!$C$11:$C$22) -> 10903.28357
A75: 3 | B75: FALSE | C75: OFF | D75: 2016-03-04T01:00:00 | E75: LRKPPS | F75: 73.85464478 | G75: 0.001294946622 | H75: =G75*SUMIF('Manual Inputs'!$B$11:$B$22,'Expanded kW'!A75,'Manual Inputs'!$C$11:$C$22) -> 10766.86088
A76: 3 | B76: FALSE | C76: OFF | D76: 2016-03-04T02:00:00 | E76: LRKPPS | F76: 74.71188354 | G76: 0.001309977206 | H76: =G76*SUMIF('Manual Inputs'!$B$11:$B$22,'Expanded kW'!A76,'Manual Inputs'!$C$11:$C$22) -> 10891.83299
A77: 3 | B77: FALSE | C77: OFF | D77: 2016-03-04T03:00:00 | E77: LRKPPS | F77: 79.10748291 | G77: 0.001387048412 | H77: =G77*SUMIF('Manual Inputs'!$B$11:$B$22,'Expanded kW'!A77,'Manual Inputs'!$C$11:$C$22) -> 11532.64315
A78: 3 | B78: FALSE | C78: OFF | D78: 2016-03-04T04:00:00 | E78: LRKPPS | F78: 85.83827209 | G78: 0.001505064181 | H78: =G78*SUMIF('Manual Inputs'!$B$11:$B$22,'Expanded kW'!A78,'Manual Inputs'!$C$11:$C$22) -> 12513.88774
A79: 3 | B79: FALSE | C79: OFF | D79: 2016-03-04T05:00:00 | E79: LRKPPS | F79: 86.02469635 | G79: 0.001508332892 | H79: =G79*SUMIF('Manual Inputs'!$B$11:$B$22,'Expanded kW'!A79,'Manual Inputs'!$C$11:$C$22) -> 12541.06551
A80: 3 | B80: FALSE | C80: OFF | D80: 2016-03-04T06:00:00 | E80: LRKPPS | F80: 106.0915909 | G80: 0.001860180191 | H80: =G80*SUMIF('Manual Inputs'!$B$11:$B$22,'Expanded kW'!A80,'Manual Inputs'!$C$11:$C$22) -> 15466.50726
A81: 3 | B81: FALSE | C81: ON | D81: 2016-03-04T07:00:00 | E81: LRKPPS | F81: 117.6127548 | G81: 0.002062189047 | H81: =G81*SUMIF('Manual Inputs'!$B$11:$B$22,'Expanded kW'!A81,'Manual Inputs'!$C$11:$C$22) -> 17146.11414
A82: 3 | B82: FALSE | C82: ON | D82: 2016-03-04T08:00:00 | E82: LRKPPS | F82: 126.7987366 | G82: 0.002223253474 | H82: =G82*SUMIF('Manual Inputs'!$B$11:$B$22,'Expanded kW'!A82,'Manual Inputs'!$C$11:$C$22) -> 18485.2877
A83: 3 | B83: FALSE | C83: ON | D83: 2016-03-04T09:00:00 | E83: LRKPPS | F83: 128.2454681 | G83: 0.00224862006 | H83: =G83*SUMIF('Manual Inputs'!$B$11:$B$22,'Expanded kW'!A83,'Manual Inputs'!$C$11:$C$22) -> 18696.19871
A84: 3 | B84: FALSE | C84: ON | D84: 2016-03-04T10:00:00 | E84: LRKPPS | F84: 124.2099075 | G84: 0.002177861672 | H84: =G84*SUMIF('Manual Inputs'!$B$11:$B$22,'Expanded kW'!A84,'Manual Inputs'!$C$11:$C$22) -> 18107.87661
A85: 3 | B85: FALSE | C85: ON | D85: 2016-03-04T11:00:00 | E85: LRKPPS | F85: 129.1914978 | G85: 0.002265207478 | H85: =G85*SUMIF('Manual Inputs'!$B$11:$B$22,'Expanded kW'!A85,'Manual Inputs'!$C$11:$C$22) -> 18834.11515
A86: 3 | B86: FALSE | C86: ON | D86: 2016-03-04T12:00:00 | E86: LRKPPS | F86: 125.4699249 | G86: 0.002199954464 | H86: =G86*SUMIF('Manual Inputs'!$B$11:$B$22,'Expanded kW'!A86,'Manual Inputs'!$C$11:$C$22) -> 18291.56759
A87: 3 | B87: FALSE | C87: ON | D87: 2016-03-04T13:00:00 | E87: LRKPPS | F87: 109.4368896 | G87: 0.001918835721 | H87: =G87*SUMIF('Manual Inputs'!$B$11:$B$22,'Expanded kW'!A87,'Manual Inputs'!$C$11:$C$22) -> 15954.1999
A88: 3 | B88: FALSE | C88: ON | D88: 2016-03-04T14:00:00 | E88: LRKPPS | F88: 104.5802917 | G88: 0.001833681496 | H88: =G88*SUMIF('Manual Inputs'!$B$11:$B$22,'Expanded kW'!A88,'Manual Inputs'!$C$11:$C$22) -> 15246.18331
A89: 3 | B89: FALSE | C89: ON | D89: 2016-03-04T15:00:00 | E89: LRKPPS | F89: 93.4740448 | G89: 0.001638947678 | H89: =G89*SUMIF('Manual Inputs'!$B$11:$B$22,'Expanded kW'!A89,'Manual Inputs'!$C$11:$C$22) -> 13627.06488
A90: 3 | B90: FALSE | C90: ON | D90: 2016-03-04T16:00:00 | E90: LRKPPS | F90: 83.98983765 | G90: 0.00147265425 | H90: =G90*SUMIF('Manual Inputs'!$B$11:$B$22,'Expanded kW'!A90,'Manual Inputs'!$C$11:$C$22) -> 12244.41469
A91: 3 | B91: FALSE | C91: ON | D91: 2016-03-04T17:00:00 | E91: LRKPPS | F91: 82.89456177 | G91: 0.00145344999 | H91: =G91*SUMIF('Manual Inputs'!$B$11:$B$22,'Expanded kW'!A91,'Manual Inputs'!$C$11:$C$22) -> 12084.74047
A92: 3 | B92: FALSE | C92: ON | D92: 2016-03-04T18:00:00 | E92: LRKPPS | F92: 78.82537079 | G92: 0.001382101937 | H92: =G92*SUMIF('Manual Inputs'!$B$11:$B$22,'Expanded kW'!A92,'Manual Inputs'!$C$11:$C$22) -> 11491.51558
A93: 3 | B93: FALSE | C93: ON | D93: 2016-03-04T19:00:00 | E93: LRKPPS | F93: 79.49171448 | G93: 0.001393785421 | H93: =G93*SUMIF('Manual Inputs'!$B$11:$B$22,'Expanded kW'!A93,'Manual Inputs'!$C$11:$C$22) -> 11588.65815
A94: 3 | B94: FALSE | C94: ON | D94: 2016-03-04T20:00:00 | E94: LRKPPS | F94: 77.54542542 | G94: 0.001359659734 | H94: =G94*SUMIF('Manual Inputs'!$B$11:$B$22,'Expanded kW'!A94,'Manual Inputs'!$C$11:$C$22) -> 11304.91941
A95: 3 | B95: FALSE | C95: OFF | D95: 2016-03-04T21:00:00 | E95: LRKPPS | F95: 74.096138 | G95: 0.001299180896 | H95: =G95*SUMIF('Manual Inputs'!$B$11:$B$22,'Expanded kW'!A95,'Manual Inputs'!$C$11:$C$22) -> 10802.06685
A96: 3 | B96: FALSE | C96: OFF | D96: 2016-03-04T22:00:00 | E96: LRKPPS | F96: 73.67262268 | G96: 0.001291755098 | H96: =G96*SUMIF('Manual Inputs'!$B$11:$B$22,'Expanded kW'!A96,'Manual Inputs'!$C$11:$C$22) -> 10740.32489
A97: 3 | B97: FALSE | C97: OFF | D97: 2016-03-04T23:00:00 | E97: LRKPPS | F97: 73.05402374 | G97: 0.001280908757 | H97: =G97*SUMIF('Manual Inputs'!$B$11:$B$22,'Expanded kW'!A97,'Manual Inputs'!$C$11:$C$22) -> 10650.14276
A98: 3 | B98: FALSE | C98: OFF | D98: 2016-03-05 | E98: LRKPPS | F98: 72.17980957 | G98: 0.001265580531 | H98: =G98*SUMIF('Manual Inputs'!$B$11:$B$22,'Expanded kW'!A98,'Manual Inputs'!$C$11:$C$22) -> 10522.6959
A99: 3 | B99: FALSE | C99: OFF | D99: 2016-03-05T01:00:00 | E99: LRKPPS | F99: 73.38067627 | G99: 0.001286636191 | H99: =G99*SUMIF('Manual Inputs'!$B$11:$B$22,'Expanded kW'!A99,'Manual Inputs'!$C$11:$C$22) -> 10697.76363
A100: 3 | B100: FALSE | C100: OFF | D100: 2016-03-05T02:00:00 | E100: LRKPPS | F100: 73.59886932 | G100: 0.001290461927 | H100: =G100*SUMIF('Manual Inputs'!$B$11:$B$22,'Expanded kW'!A100,'Manual Inputs'!$C$11:$C$22) -> 10729.57279
A101: 3 | B101: FALSE | C101: OFF | D101: 2016-03-05T03:00:00 | E101: LRKPPS | F101: 73.46546173 | G101: 0.001288122796 | H101: =G101*SUMIF('Manual Inputs'!$B$11:$B$22,'Expanded kW'!A101,'Manual Inputs'!$C$11:$C$22) -> 10710.12403
A102: 3 | B102: FALSE | C102: OFF | D102: 2016-03-05T04:00:00 | E102: LRKPPS | F102: 73.47545624 | G102: 0.001288298036 | H102: =G102*SUMIF('Manual Inputs'!$B$11:$B$22,'Expanded kW'!A102,'Manual Inputs'!$C$11:$C$22) -> 10711.58108
A103: 3 | B103: FALSE | C103: OFF | D103: 2016-03-05T05:00:00 | E103: LRKPPS | F103: 73.40166473 | G103: 0.001287004197 | H103: =G103*SUMIF('Manual Inputs'!$B$11:$B$22,'Expanded kW'!A103,'Manual Inputs'!$C$11:$C$22) -> 10700.82342
A104: 3 | B104: FALSE | C104: OFF | D104: 2016-03-05T06:00:00 | E104: LRKPPS | F104: 74.38789368 | G104: 0.001304296459 | H104: =G104*SUMIF('Manual Inputs'!$B$11:$B$22,'Expanded kW'!A104,'Manual Inputs'!$C$11:$C$22) -> 10844.60029
A105: 3 | B105: FALSE | C105: OFF | D105: 2016-03-05T07:00:00 | E105: LRKPPS | F105: 75.13031006 | G105: 0.001317313779 | H105: =G105*SUMIF('Manual Inputs'!$B$11:$B$22,'Expanded kW'!A105,'Manual Inputs'!$C$11:$C$22) -> 10952.83308
A106: 3 | B106: FALSE | C106: OFF | D106: 2016-03-05T08:00:00 | E106: LRKPPS | F106: 75.88479614 | G106: 0.001330542726 | H106: =G106*SUMIF('Manual Inputs'!$B$11:$B$22,'Expanded kW'!A106,'Manual Inputs'!$C$11:$C$22) -> 11062.82544
A107: 3 | B107: FALSE | C107: OFF | D107: 2016-03-05T09:00:00 | E107: LRKPPS | F107: 75.50498199 | G107: 0.001323883172 | H107: =G107*SUMIF('Manual Inputs'!$B$11:$B$22,'Expanded kW'!A107,'Manual Inputs'!$C$11:$C$22) -> 11007.45443
A108: 3 | B108: FALSE | C108: OFF | D108: 2016-03-05T10:00:00 | E108: LRKPPS | F108: 72.3897934 | G108: 0.001269262329 | H108: =G108*SUMIF('Manual Inputs'!$B$11:$B$22,'Expanded kW'!A108,'Manual Inputs'!$C$11:$C$22) -> 10553.30829
A109: 3 | B109: FALSE | C109: OFF | D109: 2016-03-05T11:00:00 | E109: LRKPPS | F109: 70.08626556 | G109: 0.001228872918 | H109: =G109*SUMIF('Manual Inputs'!$B$11:$B$22,'Expanded kW'!A109,'Manual Inputs'!$C$11:$C$22) -> 10217.48968
A110: 3 | B110: FALSE | C110: OFF | D110: 2016-03-05T12:00:00 | E110: LRKPPS | F110: 68.44029236 | G110: 0.001200012886 | H110: =G110*SUMIF('Manual Inputs'!$B$11:$B$22,'Expanded kW'!A110,'Manual Inputs'!$C$11:$C$22) -> 9977.532337
A111: 3 | B111: FALSE | C111: OFF | D111: 2016-03-05T13:00:00 | E111: LRKPPS | F111: 70.01811218 | G111: 0.001227677936 | H111: =G111*SUMIF('Manual Inputs'!$B$11:$B$22,'Expanded kW'!A111,'Manual Inputs'!$C$11:$C$22) -> 10207.55398
A112: 3 | B112: FALSE | C112: OFF | D112: 2016-03-05T14:00:00 | E112: LRKPPS | F112: 69.26441193 | G112: 0.001214462767 | H112: =G112*SUMIF('Manual Inputs'!$B$11:$B$22,'Expanded kW'!A112,'Manual Inputs'!$C$11:$C$22) -> 10097.67618
A113: 3 | B113: FALSE | C113: OFF | D113: 2016-03-05T15:00:00 | E113: LRKPPS | F113: 67.31925964 | G113: 0.001180357012 | H113: =G113*SUMIF('Manual Inputs'!$B$11:$B$22,'Expanded kW'!A113,'Manual Inputs'!$C$11:$C$22) -> 9814.103168
A114: 3 | B114: FALSE | C114: OFF | D114: 2016-03-05T16:00:00 | E114: LRKPPS | F114: 67.70013428 | G114: 0.001187035161 | H114: =G114*SUMIF('Manual Inputs'!$B$11:$B$22,'Expanded kW'!A114,'Manual Inputs'!$C$11:$C$22) -> 9869.628778
A115: 3 | B115: FALSE | C115: OFF | D115: 2016-03-05T17:00:00 | E115: LRKPPS | F115: 69.4543457 | G115: 0.001217793012 | H115: =G115*SUMIF('Manual Inputs'!$B$11:$B$22,'Expanded kW'!A115,'Manual Inputs'!$C$11:$C$22) -> 10125.36558
A116: 3 | B116: FALSE | C116: OFF | D116: 2016-03-05T18:00:00 | E116: LRKPPS | F116: 70.61457825 | G116: 0.001238136204 | H116: =G116*SUMIF('Manual Inputs'!$B$11:$B$22,'Expanded kW'!A116,'Manual Inputs'!$C$11:$C$22) -> 10294.50947
A117: 3 | B117: FALSE | C117: OFF | D117: 2016-03-05T19:00:00 | E117: LRKPPS | F117: 73.75499725 | G117: 0.00129319943 | H117: =G117*SUMIF('Manual Inputs'!$B$11:$B$22,'Expanded kW'!A117,'Manual Inputs'!$C$11:$C$22) -> 10752.33382
A118: 3 | B118: FALSE | C118: OFF | D118: 2016-03-05T20:00:00 | E118: LRKPPS | F118: 71.64877319 | G118: 0.001256269488 | H118: =G118*SUMIF('Manual Inputs'!$B$11:$B$22,'Expanded kW'!A118,'Manual Inputs'!$C$11:$C$22) -> 10445.27904
A119: 3 | B119: FALSE | C119: OFF | D119: 2016-03-05T21:00:00 | E119: LRKPPS | F119: 71.78459167 | G119: 0.001258650892 | H119: =G119*SUMIF('Manual Inputs'!$B$11:$B$22,'Expanded kW'!A119,'Manual Inputs'!$C$11:$C$22) -> 10465.07927
A120: 3 | B120: FALSE | C120: OFF | D120: 2016-03-05T22:00:00 | E120: LRKPPS | F120: 71.62136078 | G120: 0.001255788847 | H120: =G120*SUMIF('Manual Inputs'!$B$11:$B$22,'Expanded kW'!A120,'Manual Inputs'!$C$11:$C$22) -> 10441.28274
A121: 3 | B121: FALSE | C121: OFF | D121: 2016-03-05T23:00:00 | E121: LRKPPS | F121: 69.1183548 | G121: 0.001211901842 | H121: =G121*SUMIF('Manual Inputs'!$B$11:$B$22,'Expanded kW'!A121,'Manual Inputs'!$C$11:$C$22) -> 10076.38332
A122: 3 | B122: FALSE | C122: OFF | D122: 2016-03-06 | E122: LRKPPS | F122: 70.96813965 | G122: 0.001244335451 | H122: =G122*SUMIF('Manual Inputs'!$B$11:$B$22,'Expanded kW'!A122,'Manual Inputs'!$C$11:$C$22) -> 10346.05324
A123: 3 | B123: FALSE | C123: OFF | D123: 2016-03-06T01:00:00 | E123: LRKPPS | F123: 69.63757324 | G123: 0.001221005673 | H123: =G123*SUMIF('Manual Inputs'!$B$11:$B$22,'Expanded kW'!A123,'Manual Inputs'!$C$11:$C$22) -> 10152.07731
A124: 3 | B124: FALSE | C124: OFF | D124: 2016-03-06T02:00:00 | E124: LRKPPS | F124: 67.71021271 | G124: 0.001187211874 | H124: =G124*SUMIF('Manual Inputs'!$B$11:$B$22,'Expanded kW'!A124,'Manual Inputs'!$C$11:$C$22) -> 9871.098056
A125: 3 | B125: FALSE | C125: OFF | D125: 2016-03-06T03:00:00 | E125: LRKPPS | F125: 70.52733612 | G125: 0.001236606525 | H125: =G125*SUMIF('Manual Inputs'!$B$11:$B$22,'Expanded kW'!A125,'Manual Inputs'!$C$11:$C$22) -> 10281.79092
A126: 3 | B126: FALSE | C126: OFF | D126: 2016-03-06T04:00:00 | E126: LRKPPS | F126: 69.61632538 | G126: 0.001220633119 | H126: =G126*SUMIF('Manual Inputs'!$B$11:$B$22,'Expanded kW'!A126,'Manual Inputs'!$C$11:$C$22) -> 10148.9797
A127: 3 | B127: FALSE | C127: OFF | D127: 2016-03-06T05:00:00 | E127: LRKPPS | F127: 70.85678101 | G127: 0.00124238292 | H127: =G127*SUMIF('Manual Inputs'!$B$11:$B$22,'Expanded kW'!A127,'Manual Inputs'!$C$11:$C$22) -> 10329.81887
A128: 3 | B128: FALSE | C128: OFF | D128: 2016-03-06T06:00:00 | E128: LRKPPS | F128: 71.55770111 | G128: 0.001254672656 | H128: =G128*SUMIF('Manual Inputs'!$B$11:$B$22,'Expanded kW'!A128,'Manual Inputs'!$C$11:$C$22) -> 10432.00215
A129: 3 | B129: FALSE | C129: OFF | D129: 2016-03-06T07:00:00 | E129: LRKPPS | F129: 72.4031601 | G129: 0.001269496697 | H129: =G129*SUMIF('Manual Inputs'!$B$11:$B$22,'Expanded kW'!A129,'Manual Inputs'!$C$11:$C$22) -> 10555.25694
A130: =MONTH(D130) -> 3 | B130: =IF(ISNA(VLOOKUP(DATE(YEAR(D130),MONTH(D130),DAY(D130)),Holidays,1,FALSE)),FALSE,TRUE) -> FALSE | C130: =IF(OR(HOUR(D130)<PkStart,HOUR(D130)>OPkStart-1,WEEKDAY(D130,2)>5,B130)=TRUE,"OFF","ON") -> OFF | D130: 2016-03-06T08:00:00 | E130: LRKPPS | F130: 71.4589386 | G130: =IF(SUMIF($A$2:$A$8761,A130,$F$2:$F$8761)=0,0,F130/SUMIF($A$2:$A$8761,A130,$F$2:$F$8761)) -> 0.001252940982 | H130: =G130*SUMIF('Manual Inputs'!$B$11:$B$22,'Expanded kW'!A130,'Manual Inputs'!$C$11:$C$22) -> 10417.60411
A131: 3 | B131: FALSE | C131: OFF | D131: 2016-03-06T09:00:00 | E131: LRKPPS | F131: 70.11987305 | G131: 0.001229462182 | H131: =G131*SUMIF('Manual Inputs'!$B$11:$B$22,'Expanded kW'!A131,'Manual Inputs'!$C$11:$C$22) -> 10222.38913
A132: 3 | B132: FALSE | C132: OFF | D132: =+D131+1/24 -> 2016-03-06T10:00:00 | E132: =+E131 -> LRKPPS | F132: 66.4799118 | G132: 0.001165640123 | H132: =G132*SUMIF('Manual Inputs'!$B$11:$B$22,'Expanded kW'!A132,'Manual Inputs'!$C$11:$C$22) -> 9691.73928
A133: 3 | B133: FALSE | C133: OFF | D133: 2016-03-06T11:00:00 | E133: LRKPPS | F133: 65.65991211 | G133: 0.001151262478 | H133: =G133*SUMIF('Manual Inputs'!$B$11:$B$22,'Expanded kW'!A133,'Manual Inputs'!$C$11:$C$22) -> 9572.196053
A134: 3 | B134: FALSE | C134: OFF | D134: 2016-03-06T12:00:00 | E134: LRKPPS | F134: 62.7812233 | G134: 0.001100788356 | H134: =G134*SUMIF('Manual Inputs'!$B$11:$B$22,'Expanded kW'!A134,'Manual Inputs'!$C$11:$C$22) -> 9152.527905
A135: 3 | B135: FALSE | C135: OFF | D135: 2016-03-06T13:00:00 | E135: LRKPPS | F135: 60.11457443 | G135: 0.001054032083 | H135: =G135*SUMIF('Manual Inputs'!$B$11:$B$22,'Expanded kW'!A135,'Manual Inputs'!$C$11:$C$22) -> 8763.771891
A136: 3 | B136: FALSE | C136: OFF | D136: 2016-03-06T14:00:00 | E136: LRKPPS | F136: 58.36797333 | G136: 0.001023407669 | H136: =G136*SUMIF('Manual Inputs'!$B$11:$B$22,'Expanded kW'!A136,'Manual Inputs'!$C$11:$C$22) -> 8509.144559
A137: 3 | B137: FALSE | C137: OFF | D137: 2016-03-06T15:00:00 | E137: LRKPPS | F137: 58.79152298 | G137: 0.00103083407 | H137: =G137*SUMIF('Manual Inputs'!$B$11:$B$22,'Expanded kW'!A137,'Manual Inputs'!$C$11:$C$22) -> 8570.891524
A138: 3 | B138: FALSE | C138: OFF | D138: 2016-03-06T16:00:00 | E138: LRKPPS | F138: 58.98662949 | G138: 0.001034255013 | H138: =G138*SUMIF('Manual Inputs'!$B$11:$B$22,'Expanded kW'!A138,'Manual Inputs'!$C$11:$C$22) -> 8599.335025
A139: 3 | B139: FALSE | C139: OFF | D139: 2016-03-06T17:00:00 | E139: LRKPPS | F139: 59.04582977 | G139: 0.001035293014 | H139: =G139*SUMIF('Manual Inputs'!$B$11:$B$22,'Expanded kW'!A139,'Manual Inputs'!$C$11:$C$22) -> 8607.965508
A140: 3 | B140: FALSE | C140: OFF | D140: 2016-03-06T18:00:00 | E140: LRKPPS | F140: 60.13842392 | G140: 0.001054450253 | H140: =G140*SUMIF('Manual Inputs'!$B$11:$B$22,'Expanded kW'!A140,'Manual Inputs'!$C$11:$C$22) -> 8767.248776
A141: 3 | B141: FALSE | C141: OFF | D141: 2016-03-06T19:00:00 | E141: LRKPPS | F141: 64.91894531 | G141: 0.001138270574 | H141: =G141*SUMIF('Manual Inputs'!$B$11:$B$22,'Expanded kW'!A141,'Manual Inputs'!$C$11:$C$22) -> 9464.174594
A142: 3 | B142: FALSE | C142: OFF | D142: 2016-03-06T20:00:00 | E142: LRKPPS | F142: 66.82466125 | G142: 0.001171684863 | H142: =G142*SUMIF('Manual Inputs'!$B$11:$B$22,'Expanded kW'!A142,'Manual Inputs'!$C$11:$C$22) -> 9741.998399
A143: 3 | B143: FALSE | C143: OFF | D143: 2016-03-06T21:00:00 | E143: LRKPPS | F143: 65.48111725 | G143: 0.001148127539 | H143: =G143*SUMIF('Manual Inputs'!$B$11:$B$22,'Expanded kW'!A143,'Manual Inputs'!$C$11:$C$22) -> 9546.130537
A144: 3 | B144: FALSE | C144: OFF | D144: 2016-03-06T22:00:00 | E144: LRKPPS | F144: 67.8266983 | G144: 0.0011892543 | H144: =G144*SUMIF('Manual Inputs'!$B$11:$B$22,'Expanded kW'!A144,'Manual Inputs'!$C$11:$C$22) -> 9888.079848
A145: 3 | B145: FALSE | C145: OFF | D145: 2016-03-06T23:00:00 | E145: LRKPPS | F145: 68.21552277 | G145: 0.001196071839 | H145: =G145*SUMIF('Manual Inputs'!$B$11:$B$22,'Expanded kW'!A145,'Manual Inputs'!$C$11:$C$22) -> 9944.76442
A146: 3 | B146: FALSE | C146: OFF | D146: 2016-03-07 | E146: LRKPPS | F146: 69.1414566 | G146: 0.001212306903 | H146: =G146*SUMIF('Manual Inputs'!$B$11:$B$22,'Expanded kW'!A146,'Manual Inputs'!$C$11:$C$22) -> 10079.7512
A147: 3 | B147: FALSE | C147: OFF | D147: 2016-03-07T01:00:00 | E147: LRKPPS | F147: 73.10716248 | G147: 0.001281840477 | H147: =G147*SUMIF('Manual Inputs'!$B$11:$B$22,'Expanded kW'!A147,'Manual Inputs'!$C$11:$C$22) -> 10657.88956
A148: 3 | B148: FALSE | C148: OFF | D148: 2016-03-07T02:00:00 | E148: LRKPPS | F148: 73.83760071 | G148: 0.001294647776 | H148: =G148*SUMIF('Manual Inputs'!$B$11:$B$22,'Expanded kW'!A148,'Manual Inputs'!$C$11:$C$22) -> 10764.37612
A149: 3 | B149: FALSE | C149: OFF | D149: 2016-03-07T03:00:00 | E149: LRKPPS | F149: 80.50499725 | G149: 0.001411552037 | H149: =G149*SUMIF('Manual Inputs'!$B$11:$B$22,'Expanded kW'!A149,'Manual Inputs'!$C$11:$C$22) -> 11736.37905
A150: 3 | B150: FALSE | C150: OFF | D150: 2016-03-07T04:00:00 | E150: LRKPPS | F150: 93.7278595 | G150: 0.001643397993 | H150: =G150*SUMIF('Manual Inputs'!$B$11:$B$22,'Expanded kW'!A150,'Manual Inputs'!$C$11:$C$22) -> 13664.06713
A151: 3 | B151: FALSE | C151: OFF | D151: 2016-03-07T05:00:00 | E151: LRKPPS | F151: 112.1740723 | G151: 0.001966828713 | H151: =G151*SUMIF('Manual Inputs'!$B$11:$B$22,'Expanded kW'!A151,'Manual Inputs'!$C$11:$C$22) -> 16353.23864
A152: 3 | B152: FALSE | C152: OFF | D152: 2016-03-07T06:00:00 | E152: LRKPPS | F152: 116.3109894 | G152: 0.002039364257 | H152: =G152*SUMIF('Manual Inputs'!$B$11:$B$22,'Expanded kW'!A152,'Manual Inputs'!$C$11:$C$22) -> 16956.33694
A153: 3 | B153: FALSE | C153: ON | D153: 2016-03-07T07:00:00 | E153: LRKPPS | F153: 134.9827118 | G153: 0.002366749 | H153: =G153*SUMIF('Manual Inputs'!$B$11:$B$22,'Expanded kW'!A153,'Manual Inputs'!$C$11:$C$22) -> 19678.38426
A154: 3 | B154: FALSE | C154: ON | D154: 2016-03-07T08:00:00 | E154: LRKPPS | F154: 151.8840027 | G154: 0.002663091493 | H154: =G154*SUMIF('Manual Inputs'!$B$11:$B$22,'Expanded kW'!A154,'Manual Inputs'!$C$11:$C$22) -> 22142.33014
A155: 3 | B155: FALSE | C155: ON | D155: 2016-03-07T09:00:00 | E155: LRKPPS | F155: 144.025177 | G155: 0.002525297048 | H155: =G155*SUMIF('Manual Inputs'!$B$11:$B$22,'Expanded kW'!A155,'Manual Inputs'!$C$11:$C$22) -> 20996.63534
A156: 3 | B156: FALSE | C156: ON | D156: 2016-03-07T10:00:00 | E156: LRKPPS | F156: 139.256485 | G156: 0.00244168414 | H156: =G156*SUMIF('Manual Inputs'!$B$11:$B$22,'Expanded kW'!A156,'Manual Inputs'!$C$11:$C$22) -> 20301.43406
A157: 3 | B157: FALSE | C157: ON | D157: 2016-03-07T11:00:00 | E157: LRKPPS | F157: 139.382843 | G157: 0.002443899666 | H157: =G157*SUMIF('Manual Inputs'!$B$11:$B$22,'Expanded kW'!A157,'Manual Inputs'!$C$11:$C$22) -> 20319.8551
A158: 3 | B158: FALSE | C158: ON | D158: 2016-03-07T12:00:00 | E158: LRKPPS | F158: 128.8634186 | G158: 0.002259455029 | H158: =G158*SUMIF('Manual Inputs'!$B$11:$B$22,'Expanded kW'!A158,'Manual Inputs'!$C$11:$C$22) -> 18786.28629
A159: 3 | B159: FALSE | C159: ON | D159: 2016-03-07T13:00:00 | E159: LRKPPS | F159: 118.5173111 | G159: 0.002078049283 | H159: =G159*SUMIF('Manual Inputs'!$B$11:$B$22,'Expanded kW'!A159,'Manual Inputs'!$C$11:$C$22) -> 17277.9844
A160: 3 | B160: FALSE | C160: ON | D160: 2016-03-07T14:00:00 | E160: LRKPPS | F160: 111.3868942 | G160: 0.001953026554 | H160: =G160*SUMIF('Manual Inputs'!$B$11:$B$22,'Expanded kW'!A160,'Manual Inputs'!$C$11:$C$22) -> 16238.4803
A161: 3 | B161: FALSE | C161: ON | D161: 2016-03-07T15:00:00 | E161: LRKPPS | F161: 95.11200714 | G161: 0.00166766725 | H161: =G161*SUMIF('Manual Inputs'!$B$11:$B$22,'Expanded kW'!A161,'Manual Inputs'!$C$11:$C$22) -> 13865.85437
A162: 3 | B162: FALSE | C162: ON | D162: 2016-03-07T16:00:00 | E162: LRKPPS | F162: 79.91786194 | G162: 0.001401257371 | H162: =G162*SUMIF('Manual Inputs'!$B$11:$B$22,'Expanded kW'!A162,'Manual Inputs'!$C$11:$C$22) -> 11650.78383
A163: 3 | B163: FALSE | C163: ON | D163: 2016-03-07T17:00:00 | E163: LRKPPS | F163: 74.05141449 | G163: 0.001298396727 | H163: =G163*SUMIF('Manual Inputs'!$B$11:$B$22,'Expanded kW'!A163,'Manual Inputs'!$C$11:$C$22) -> 10795.54685
A164: 3 | B164: FALSE | C164: ON | D164: 2016-03-07T18:00:00 | E164: LRKPPS | F164: 73.62478638 | G164: 0.001290916349 | H164: =G164*SUMIF('Manual Inputs'!$B$11:$B$22,'Expanded kW'!A164,'Manual Inputs'!$C$11:$C$22) -> 10733.35109
A165: 3 | B165: FALSE | C165: ON | D165: 2016-03-07T19:00:00 | E165: LRKPPS | F165: 72.50232697 | G165: 0.001271235461 | H165: =G165*SUMIF('Manual Inputs'!$B$11:$B$22,'Expanded kW'!A165,'Manual Inputs'!$C$11:$C$22) -> 10569.71393
A166: 3 | B166: FALSE | C166: ON | D166: 2016-03-07T20:00:00 | E166: LRKPPS | F166: 70.1529541 | G166: 0.001230042216 | H166: =G166*SUMIF('Manual Inputs'!$B$11:$B$22,'Expanded kW'!A166,'Manual Inputs'!$C$11:$C$22) -> 10227.21184
A167: 3 | B167: FALSE | C167: OFF | D167: 2016-03-07T21:00:00 | E167: LRKPPS | F167: 64.50518799 | G167: 0.00113101587 | H167: =G167*SUMIF('Manual Inputs'!$B$11:$B$22,'Expanded kW'!A167,'Manual Inputs'!$C$11:$C$22) -> 9403.855199
A168: 3 | B168: FALSE | C168: OFF | D168: 2016-03-07T22:00:00 | E168: LRKPPS | F168: 61.39117432 | G168: 0.001076415627 | H168: =G168*SUMIF('Manual Inputs'!$B$11:$B$22,'Expanded kW'!A168,'Manual Inputs'!$C$11:$C$22) -> 8949.880339
A169: 3 | B169: FALSE | C169: OFF | D169: 2016-03-07T23:00:00 | E169: LRKPPS | F169: 60.58433151 | G169: 0.001062268672 | H169: =G169*SUMIF('Manual Inputs'!$B$11:$B$22,'Expanded kW'!A169,'Manual Inputs'!$C$11:$C$22) -> 8832.255182
A170: 3 | B170: FALSE | C170: OFF | D170: 2016-03-08 | E170: LRKPPS | F170: 59.60108566 | G170: 0.001045028715 | H170: =G170*SUMIF('Manual Inputs'!$B$11:$B$22,'Expanded kW'!A170,'Manual Inputs'!$C$11:$C$22) -> 8688.913198
A171: 3 | B171: FALSE | C171: OFF | D171: 2016-03-08T01:00:00 | E171: LRKPPS | F171: 59.79639053 | G171: 0.001048453136 | H171: =G171*SUMIF('Manual Inputs'!$B$11:$B$22,'Expanded kW'!A171,'Manual Inputs'!$C$11:$C$22) -> 8717.385617
A172: 3 | B172: FALSE | C172: OFF | D172: 2016-03-08T02:00:00 | E172: LRKPPS | F172: 60.22951126 | G172: 0.001056047353 | H172: =G172*SUMIF('Manual Inputs'!$B$11:$B$22,'Expanded kW'!A172,'Manual Inputs'!$C$11:$C$22) -> 8780.527896
A173: 3 | B173: FALSE | C173: OFF | D173: 2016-03-08T03:00:00 | E173: LRKPPS | F173: 60.66440201 | G173: 0.001063672606 | H173: =G173*SUMIF('Manual Inputs'!$B$11:$B$22,'Expanded kW'!A173,'Manual Inputs'!$C$11:$C$22) -> 8843.928217
A174: 3 | B174: FALSE | C174: OFF | D174: 2016-03-08T04:00:00 | E174: LRKPPS | F174: 67.8117218 | G174: 0.001188991706 | H174: =G174*SUMIF('Manual Inputs'!$B$11:$B$22,'Expanded kW'!A174,'Manual Inputs'!$C$11:$C$22) -> 9885.896507
A175: 3 | B175: FALSE | C175: OFF | D175: 2016-03-08T05:00:00 | E175: LRKPPS | F175: 80.87880707 | G175: 0.001418106313 | H175: =G175*SUMIF('Manual Inputs'!$B$11:$B$22,'Expanded kW'!A175,'Manual Inputs'!$C$11:$C$22) -> 11790.87472
A176: 3 | B176: FALSE | C176: OFF | D176: 2016-03-08T06:00:00 | E176: LRKPPS | F176: 95.80297089 | G176: 0.001679782414 | H176: =G176*SUMIF('Manual Inputs'!$B$11:$B$22,'Expanded kW'!A176,'Manual Inputs'!$C$11:$C$22) -> 13966.58616
A177: 3 | B177: FALSE | C177: ON | D177: 2016-03-08T07:00:00 | E177: LRKPPS | F177: 115.9728622 | G177: 0.002033435631 | H177: =G177*SUMIF('Manual Inputs'!$B$11:$B$22,'Expanded kW'!A177,'Manual Inputs'!$C$11:$C$22) -> 16907.04326
A178: 3 | B178: FALSE | C178: ON | D178: 2016-03-08T08:00:00 | E178: LRKPPS | F178: 136.5907288 | G178: 0.002394943518 | H178: =G178*SUMIF('Manual Inputs'!$B$11:$B$22,'Expanded kW'!A178,'Manual Inputs'!$C$11:$C$22) -> 19912.80818
A179: 3 | B179: FALSE | C179: ON | D179: 2016-03-08T09:00:00 | E179: LRKPPS | F179: 130.8887939 | G179: 0.002294967393 | H179: =G179*SUMIF('Manual Inputs'!$B$11:$B$22,'Expanded kW'!A179,'Manual Inputs'!$C$11:$C$22) -> 19081.55458
A180: 3 | B180: FALSE | C180: ON | D180: 2016-03-08T10:00:00 | E180: LRKPPS | F180: 122.788002 | G180: 0.00215293038 | H180: =G180*SUMIF('Manual Inputs'!$B$11:$B$22,'Expanded kW'!A180,'Manual Inputs'!$C$11:$C$22) -> 17900.58485
A181: 3 | B181: FALSE | C181: ON | D181: 2016-03-08T11:00:00 | E181: LRKPPS | F181: 125.0568466 | G181: 0.002192711664 | H181: =G181*SUMIF('Manual Inputs'!$B$11:$B$22,'Expanded kW'!A181,'Manual Inputs'!$C$11:$C$22) -> 18231.34718
A182: 3 | B182: FALSE | C182: ON | D182: 2016-03-08T12:00:00 | E182: LRKPPS | F182: 121.5079193 | G182: 0.002130485769 | H182: =G182*SUMIF('Manual Inputs'!$B$11:$B$22,'Expanded kW'!A182,'Manual Inputs'!$C$11:$C$22) -> 17713.96866
A183: 3 | B183: FALSE | C183: ON | D183: 2016-03-08T13:00:00 | E183: LRKPPS | F183: 110.450325 | G183: 0.001936605012 | H183: =G183*SUMIF('Manual Inputs'!$B$11:$B$22,'Expanded kW'!A183,'Manual Inputs'!$C$11:$C$22) -> 16101.94304
A184: 3 | B184: FALSE | C184: ON | D184: 2016-03-08T14:00:00 | E184: LRKPPS | F184: 106.3996811 | G184: 0.001865582158 | H184: =G184*SUMIF('Manual Inputs'!$B$11:$B$22,'Expanded kW'!A184,'Manual Inputs'!$C$11:$C$22) -> 15511.42203
A185: 3 | B185: FALSE | C185: ON | D185: 2016-03-08T15:00:00 | E185: LRKPPS | F185: 92.67115021 | G185: 0.001624869949 | H185: =G185*SUMIF('Manual Inputs'!$B$11:$B$22,'Expanded kW'!A185,'Manual Inputs'!$C$11:$C$22) -> 13510.01532
A186: 3 | B186: FALSE | C186: ON | D186: 2016-03-08T16:00:00 | E186: LRKPPS | F186: 80.21755219 | G186: 0.001406512055 | H186: =G186*SUMIF('Manual Inputs'!$B$11:$B$22,'Expanded kW'!A186,'Manual Inputs'!$C$11:$C$22) -> 11694.47402
A187: 3 | B187: FALSE | C187: ON | D187: 2016-03-08T17:00:00 | E187: LRKPPS | F187: 72.73161316 | G187: 0.001275255701 | H187: =G187*SUMIF('Manual Inputs'!$B$11:$B$22,'Expanded kW'!A187,'Manual Inputs'!$C$11:$C$22) -> 10603.1403
A188: 3 | B188: FALSE | C188: ON | D188: 2016-03-08T18:00:00 | E188: LRKPPS | F188: 69.01578522 | G188: 0.001210103416 | H188: =G188*SUMIF('Manual Inputs'!$B$11:$B$22,'Expanded kW'!A188,'Manual Inputs'!$C$11:$C$22) -> 10061.43026
A189: 3 | B189: FALSE | C189: ON | D189: 2016-03-08T19:00:00 | E189: LRKPPS | F189: 67.01616669 | G189: 0.001175042666 | H189: =G189*SUMIF('Manual Inputs'!$B$11:$B$22,'Expanded kW'!A189,'Manual Inputs'!$C$11:$C$22) -> 9769.916919
A190: 3 | B190: FALSE | C190: ON | D190: 2016-03-08T20:00:00 | E190: LRKPPS | F190: 61.79144669 | G190: 0.001083433891 | H190: =G190*SUMIF('Manual Inputs'!$B$11:$B$22,'Expanded kW'!A190,'Manual Inputs'!$C$11:$C$22) -> 9008.233838
A191: 3 | B191: FALSE | C191: OFF | D191: 2016-03-08T21:00:00 | E191: LRKPPS | F191: 58.60706711 | G191: 0.001027599873 | H191: =G191*SUMIF('Manual Inputs'!$B$11:$B$22,'Expanded kW'!A191,'Manual Inputs'!$C$11:$C$22) -> 8544.000721
A192: 3 | B192: FALSE | C192: OFF | D192: 2016-03-08T22:00:00 | E192: LRKPPS | F192: 57.32776642 | G192: 0.001005168973 | H192: =G192*SUMIF('Manual Inputs'!$B$11:$B$22,'Expanded kW'!A192,'Manual Inputs'!$C$11:$C$22) -> 8357.498537
A193: 3 | B193: FALSE | C193: OFF | D193: 2016-03-08T23:00:00 | E193: LRKPPS | F193: 54.32621002 | G193: 0.0009525405255 | H193: =G193*SUMIF('Manual Inputs'!$B$11:$B$22,'Expanded kW'!A193,'Manual Inputs'!$C$11:$C$22) -> 7919.918203
A194: =MONTH(D194) -> 3 | B194: =IF(ISNA(VLOOKUP(DATE(YEAR(D194),MONTH(D194),DAY(D194)),Holidays,1,FALSE)),FALSE,TRUE) -> FALSE | C194: =IF(OR(HOUR(D194)<PkStart,HOUR(D194)>OPkStart-1,WEEKDAY(D194,2)>5,B194)=TRUE,"OFF","ON") -> OFF | D194: 2016-03-09 | E194: LRKPPS | F194: 53.37582016 | G194: =IF(SUMIF($A$2:$A$8761,A194,$F$2:$F$8761)=0,0,F194/SUMIF($A$2:$A$8761,A194,$F$2:$F$8761)) -> 0.0009358766563 | H194: =G194*SUMIF('Manual Inputs'!$B$11:$B$22,'Expanded kW'!A194,'Manual Inputs'!$C$11:$C$22) -> 7781.366112
A195: 3 | B195: FALSE | C195: OFF | D195: 2016-03-09T01:00:00 | E195: LRKPPS | F195: 53.55310822 | G195: 0.0009389851754 | H195: =G195*SUMIF('Manual Inputs'!$B$11:$B$22,'Expanded kW'!A195,'Manual Inputs'!$C$11:$C$22) -> 7807.211959
A196: 3 | B196: FALSE | C196: OFF | D196: =+D195+1/24 -> 2016-03-09T02:00:00 | E196: =+E195 -> LRKPPS | F196: 53.60630035 | G196: 0.0009399178314 | H196: =G196*SUMIF('Manual Inputs'!$B$11:$B$22,'Expanded kW'!A196,'Manual Inputs'!$C$11:$C$22) -> 7814.966547
A197: 3 | B197: FALSE | C197: OFF | D197: 2016-03-09T03:00:00 | E197: LRKPPS | F197: 57.69247437 | G197: 0.00101156366 | H197: =G197*SUMIF('Manual Inputs'!$B$11:$B$22,'Expanded kW'!A197,'Manual Inputs'!$C$11:$C$22) -> 8410.667295
A198: 3 | B198: FALSE | C198: OFF | D198: 2016-03-09T04:00:00 | E198: LRKPPS | F198: 56.79879761 | G198: 0.0009958941826 | H198: =G198*SUMIF('Manual Inputs'!$B$11:$B$22,'Expanded kW'!A198,'Manual Inputs'!$C$11:$C$22) -> 8280.383095
A199: 3 | B199: FALSE | C199: OFF | D199: 2016-03-09T05:00:00 | E199: LRKPPS | F199: 68.65656281 | G199: 0.001203804911 | H199: =G199*SUMIF('Manual Inputs'!$B$11:$B$22,'Expanded kW'!A199,'Manual Inputs'!$C$11:$C$22) -> 10009.06121
A200: 3 | B200: FALSE | C200: OFF | D200: 2016-03-09T06:00:00 | E200: LRKPPS | F200: 88.35314941 | G200: 0.001549159335 | H200: =G200*SUMIF('Manual Inputs'!$B$11:$B$22,'Expanded kW'!A200,'Manual Inputs'!$C$11:$C$22) -> 12880.51782
... 8561 more rows

Sheet Monthly Data
A1: ='Manual Inputs'!D1 -> Kentucky Power Co.
A2: =+'Manual Inputs'!D2 -> Kentucky
A3: Monthly Summary of Sample Data
A4: =CustClass & " Customers" -> Public School Service - Secondary Customers
A5: ="For the Test Year Ended " & TEXT(+DATE(YEAR(ReportYr)+1,MONTH(ReportYr),DAY(ReportYr))-1,"Mmmm d, yyyy") -> For the Test Year Ended February 28, 2017
A6: ="Based on Sample Period Ended " & TEXT(+DATE(YEAR(TYBegin)+1,MONTH(TYBegin),DAY(TYBegin))-1,"Mmmm d, yyyy") -> Based on Sample Period Ended February 28, 2017 | I6: Secondary
C8: ON | E8: OFF
C9: NCP | H9: SNCP | N9: Energy
A10: Year | B10: Month | C10: On-Peak | D10: LF | E10: Off-Peak | F10: LF | H10: On-Peak | I10: LF | J10: Off-Peak | K10: LF | M10: CP | N10: On-Peak | O10: Off-Peak | P10: Total
A11: =+'Manual Inputs'!A11 -> 2016 | B11: =+'Manual Inputs'!B11 -> 3 | C11: =MAX(IF('Expanded kW'!$A$2:$A$8785=$B11,IF('Expanded kW'!$C$2:$C$8785=C$8,'Expanded kW'!$F$2:$F$8785,0),0)) -> 164.9191284 | D11: =IF(C11=0,0,$P11/C11/COUNTIF('Expanded kW'!$A$2:$A$8785,'Monthly Data'!$B11)) -> 0.4648169751 | E11: =MAX(IF('Expanded kW'!$A$2:$A$8785=$B11,IF('Expanded kW'!$C$2:$C$8785=E$8,'Expanded kW'!$F$2:$F$8785,0),0)) -> 124.3649826 | F11: =IF(E11=0,0,$P11/E11/COUNTIF('Expanded kW'!$A$2:$A$8785,'Monthly Data'!$B11)) -> 0.6163890253 | H11: =+'LR Monthly'!G2 -> 203.2594247 | I11: =IF(H11=0,0,$P11/H11/COUNTIF('Expanded kW'!$A$2:$A$8785,'Monthly Data'!$B11)) -> 0.3771397588 | J11: =+'LR Monthly'!H2 -> 159.0670164 | K11: =IF(J11=0,0,$P11/J11/COUNTIF('Expanded kW'!$A$2:$A$8785,'Monthly Data'!$B11)) -> 0.4819176983 | M11: =VLOOKUP('Manual Inputs'!E27,'Expanded kW'!$D$2:$F$8785,3) -> 142.441925 | N11: =SUMIFS('Expanded kW'!$F$2:$F$8785,'Expanded kW'!$A$2:$A$8785,$B11,'Expanded kW'!$C$2:$C$8785,C$8) -> 32357.43766 | O11: =SUMIFS('Expanded kW'!$F$2:$F$8785,'Expanded kW'!$A$2:$A$8785,$B11,'Expanded kW'!$C$2:$C$8785,E$8) -> 24675.52688 | P11: =SUM(N11:O11) -> 57032.96455 | S11: =H11/C11 -> 1.232479377
A12: =+'Manual Inputs'!A12 -> 2016 | B12: =+'Manual Inputs'!B12 -> 4 | C12: =MAX(IF('Expanded kW'!$A$2:$A$8785=$B12,IF('Expanded kW'!$C$2:$C$8785=C$8,'Expanded kW'!$F$2:$F$8785,0),0)) -> 145.0505981 | D12: =IF(C12=0,0,$P12/C12/COUNTIF('Expanded kW'!$A$2:$A$8785,'Monthly Data'!$B12)) -> 0.475936342 | E12: =MAX(IF('Expanded kW'!$A$2:$A$8785=$B12,IF('Expanded kW'!$C$2:$C$8785=E$8,'Expanded kW'!$F$2:$F$8785,0),0)) -> 90.54120636 | F12: =IF(E12=0,0,$P12/E12/COUNTIF('Expanded kW'!$A$2:$A$8785,'Monthly Data'!$B12)) -> 0.7624688675 | H12: =+'LR Monthly'!G3 -> 179.128564 | I12: =IF(H12=0,0,$P12/H12/COUNTIF('Expanded kW'!$A$2:$A$8785,'Monthly Data'!$B12)) -> 0.3853927566 | J12: =+'LR Monthly'!H3 -> 120.6235424 | K12: =IF(J12=0,0,$P12/J12/COUNTIF('Expanded kW'!$A$2:$A$8785,'Monthly Data'!$B12)) -> 0.5723165621 | M12: =VLOOKUP('Manual Inputs'!E28,'Expanded kW'!$D$2:$F$8785,3) -> 61.96787643 | N12: =SUMIFS('Expanded kW'!$F$2:$F$8785,'Expanded kW'!$A$2:$A$8785,$B12,'Expanded kW'!$C$2:$C$8785,C$8) -> 27586.74067 | O12: =SUMIFS('Expanded kW'!$F$2:$F$8785,'Expanded kW'!$A$2:$A$8785,$B12,'Expanded kW'!$C$2:$C$8785,E$8) -> 22118.3521 | P12: =SUM(N12:O12) -> 49705.09278 | S12: =H12/C12 -> 1.234938472
A13: =+'Manual Inputs'!A13 -> 2016 | B13: =+'Manual Inputs'!B13 -> 5 | C13: =MAX(IF('Expanded kW'!$A$2:$A$8785=$B13,IF('Expanded kW'!$C$2:$C$8785=C$8,'Expanded kW'!$F$2:$F$8785,0),0)) -> 154.0451355 | D13: =IF(C13=0,0,$P13/C13/COUNTIF('Expanded kW'!$A$2:$A$8785,'Monthly Data'!$B13)) -> 0.4686053934 | E13: =MAX(IF('Expanded kW'!$A$2:$A$8785=$B13,IF('Expanded kW'!$C$2:$C$8785=E$8,'Expanded kW'!$F$2:$F$8785,0),0)) -> 84.06509399 | F13: =IF(E13=0,0,$P13/E13/COUNTIF('Expanded kW'!$A$2:$A$8785,'Monthly Data'!$B13)) -> 0.8586962541 | H13: =+'LR Monthly'!G4 -> 172.1934505 | I13: =IF(H13=0,0,$P13/H13/COUNTIF('Expanded kW'!$A$2:$A$8785,'Monthly Data'!$B13)) -> 0.4192167652 | J13: =+'LR Monthly'!H4 -> 115.4709647 | K13: =IF(J13=0,0,$P13/J13/COUNTIF('Expanded kW'!$A$2:$A$8785,'Monthly Data'!$B13)) -> 0.6251474691 | M13: =VLOOKUP('Manual Inputs'!E29,'Expanded kW'!$D$2:$F$8785,3) -> 85.20996857 | N13: =SUMIFS('Expanded kW'!$F$2:$F$8785,'Expanded kW'!$A$2:$A$8785,$B13,'Expanded kW'!$C$2:$C$8785,C$8) -> 29994.41391 | O13: =SUMIFS('Expanded kW'!$F$2:$F$8785,'Expanded kW'!$A$2:$A$8785,$B13,'Expanded kW'!$C$2:$C$8785,E$8) -> 23712.25379 | P13: 53706.6677 | S13: 1.117811672
A14: =+'Manual Inputs'!A14 -> 2016 | B14: =+'Manual Inputs'!B14 -> 6 | C14: =MAX(IF('Expanded kW'!$A$2:$A$8785=$B14,IF('Expanded kW'!$C$2:$C$8785=C$8,'Expanded kW'!$F$2:$F$8785,0),0)) -> 101.3573227 | D14: =IF(C14=0,0,$P14/C14/COUNTIF('Expanded kW'!$A$2:$A$8785,'Monthly Data'!$B14)) -> 0.6512906067 | E14: =MAX(IF('Expanded kW'!$A$2:$A$8785=$B14,IF('Expanded kW'!$C$2:$C$8785=E$8,'Expanded kW'!$F$2:$F$8785,0),0)) -> 77.04660034 | F14: =IF(E14=0,0,$P14/E14/COUNTIF('Expanded kW'!$A$2:$A$8785,'Monthly Data'!$B14)) -> 0.8567940947 | H14: =+'LR Monthly'!G5 -> 121.1954203 | I14: =IF(H14=0,0,$P14/H14/COUNTIF('Expanded kW'!$A$2:$A$8785,'Monthly Data'!$B14)) -> 0.5446828932 | J14: =+'LR Monthly'!H5 -> 98.10711717 | K14: =IF(J14=0,0,$P14/J14/COUNTIF('Expanded kW'!$A$2:$A$8785,'Monthly Data'!$B14)) -> 0.6728673117 | M14: =VLOOKUP('Manual Inputs'!E30,'Expanded kW'!$D$2:$F$8785,3) -> 95.77858734 | N14: =SUMIFS('Expanded kW'!$F$2:$F$8785,'Expanded kW'!$A$2:$A$8785,$B14,'Expanded kW'!$C$2:$C$8785,C$8) -> 23471.76799 | O14: =SUMIFS('Expanded kW'!$F$2:$F$8785,'Expanded kW'!$A$2:$A$8785,$B14,'Expanded kW'!$C$2:$C$8785,E$8) -> 24057.64398 | P14: 47529.41198 | S14: 1.195724365
A15: =+'Manual Inputs'!A15 -> 2016 | B15: =+'Manual Inputs'!B15 -> 7 | C15: =MAX(IF('Expanded kW'!$A$2:$A$8785=$B15,IF('Expanded kW'!$C$2:$C$8785=C$8,'Expanded kW'!$F$2:$F$8785,0),0)) -> 119.8171158 | D15: =IF(C15=0,0,$P15/C15/COUNTIF('Expanded kW'!$A$2:$A$8785,'Monthly Data'!$B15)) -> 0.6008648085 | E15: =MAX(IF('Expanded kW'!$A$2:$A$8785=$B15,IF('Expanded kW'!$C$2:$C$8785=E$8,'Expanded kW'!$F$2:$F$8785,0),0)) -> 88.96411133 | F15: =IF(E15=0,0,$P15/E15/COUNTIF('Expanded kW'!$A$2:$A$8785,'Monthly Data'!$B15)) -> 0.8092464169 | H15: =+'LR Monthly'!G6 -> 138.4163308 | I15: =IF(H15=0,0,$P15/H15/COUNTIF('Expanded kW'!$A$2:$A$8785,'Monthly Data'!$B15)) -> 0.5201256811 | J15: =+'LR Monthly'!H6 -> 114.1882395 | K15: =IF(J15=0,0,$P15/J15/COUNTIF('Expanded kW'!$A$2:$A$8785,'Monthly Data'!$B15)) -> 0.6304842658 | M15: =VLOOKUP('Manual Inputs'!E31,'Expanded kW'!$D$2:$F$8785,3) -> 119.8171158 | N15: =SUMIFS('Expanded kW'!$F$2:$F$8785,'Expanded kW'!$A$2:$A$8785,$B15,'Expanded kW'!$C$2:$C$8785,C$8) -> 24910.15376 | O15: =SUMIFS('Expanded kW'!$F$2:$F$8785,'Expanded kW'!$A$2:$A$8785,$B15,'Expanded kW'!$C$2:$C$8785,E$8) -> 28653.29916 | P15: 53563.45292 | S15: 1.155230034
A16: =+'Manual Inputs'!A16 -> 2016 | B16: =+'Manual Inputs'!B16 -> 8 | C16: =MAX(IF('Expanded kW'!$A$2:$A$8785=$B16,IF('Expanded kW'!$C$2:$C$8785=C$8,'Expanded kW'!$F$2:$F$8785,0),0)) -> 194.9189453 | D16: =IF(C16=0,0,$P16/C16/COUNTIF('Expanded kW'!$A$2:$A$8785,'Monthly Data'!$B16)) -> 0.5139347484 | E16: =MAX(IF('Expanded kW'!$A$2:$A$8785=$B16,IF('Expanded kW'!$C$2:$C$8785=E$8,'Expanded kW'!$F$2:$F$8785,0),0)) -> 115.1375961 | F16: =IF(E16=0,0,$P16/E16/COUNTIF('Expanded kW'!$A$2:$A$8785,'Monthly Data'!$B16)) -> 0.8700513341 | H16: =+'LR Monthly'!G7 -> 210.2148527 | I16: =IF(H16=0,0,$P16/H16/COUNTIF('Expanded kW'!$A$2:$A$8785,'Monthly Data'!$B16)) -> 0.4765392065 | J16: =+'LR Monthly'!H7 -> 137.0173519 | K16: =IF(J16=0,0,$P16/J16/COUNTIF('Expanded kW'!$A$2:$A$8785,'Monthly Data'!$B16)) -> 0.7311162981 | M16: =VLOOKUP('Manual Inputs'!E32,'Expanded kW'!$D$2:$F$8785,3) -> 129.1339722 | N16: =SUMIFS('Expanded kW'!$F$2:$F$8785,'Expanded kW'!$A$2:$A$8785,$B16,'Expanded kW'!$C$2:$C$8785,C$8) -> 43116.47341 | O16: =SUMIFS('Expanded kW'!$F$2:$F$8785,'Expanded kW'!$A$2:$A$8785,$B16,'Expanded kW'!$C$2:$C$8785,E$8) -> 31414.18721 | P16: 74530.66063 | S16: 1.078473169
A17: =+'Manual Inputs'!A17 -> 2016 | B17: =+'Manual Inputs'!B17 -> 9 | C17: =MAX(IF('Expanded kW'!$A$2:$A$8785=$B17,IF('Expanded kW'!$C$2:$C$8785=C$8,'Expanded kW'!$F$2:$F$8785,0),0)) -> 182.5149841 | D17: =IF(C17=0,0,$P17/C17/COUNTIF('Expanded kW'!$A$2:$A$8785,'Monthly Data'!$B17)) -> 0.5009888305 | E17: =MAX(IF('Expanded kW'!$A$2:$A$8785=$B17,IF('Expanded kW'!$C$2:$C$8785=E$8,'Expanded kW'!$F$2:$F$8785,0),0)) -> 110.746376 | F17: =IF(E17=0,0,$P17/E17/COUNTIF('Expanded kW'!$A$2:$A$8785,'Monthly Data'!$B17)) -> 0.8256520143 | H17: =+'LR Monthly'!G8 -> 197.8189463 | I17: =IF(H17=0,0,$P17/H17/COUNTIF('Expanded kW'!$A$2:$A$8785,'Monthly Data'!$B17)) -> 0.4622305909 | J17: =+'LR Monthly'!H8 -> 123.8532503 | K17: =IF(J17=0,0,$P17/J17/COUNTIF('Expanded kW'!$A$2:$A$8785,'Monthly Data'!$B17)) -> 0.738276696 | M17: =VLOOKUP('Manual Inputs'!E33,'Expanded kW'!$D$2:$F$8785,3) -> 133.3536377 | N17: =SUMIFS('Expanded kW'!$F$2:$F$8785,'Expanded kW'!$A$2:$A$8785,$B17,'Expanded kW'!$C$2:$C$8785,C$8) -> 39012.95084 | O17: =SUMIFS('Expanded kW'!$F$2:$F$8785,'Expanded kW'!$A$2:$A$8785,$B17,'Expanded kW'!$C$2:$C$8785,E$8) -> 26822.38645 | P17: 65835.33728 | S17: 1.083850443
A18: =+'Manual Inputs'!A18 -> 2016 | B18: =+'Manual Inputs'!B18 -> 10 | C18: =MAX(IF('Expanded kW'!$A$2:$A$8785=$B18,IF('Expanded kW'!$C$2:$C$8785=C$8,'Expanded kW'!$F$2:$F$8785,0),0)) -> 159.0595398 | D18: =IF(C18=0,0,$P18/C18/COUNTIF('Expanded kW'!$A$2:$A$8785,'Monthly Data'!$B18)) -> 0.4477933185 | E18: =MAX(IF('Expanded kW'!$A$2:$A$8785=$B18,IF('Expanded kW'!$C$2:$C$8785=E$8,'Expanded kW'!$F$2:$F$8785,0),0)) -> 86.80269623 | F18: =IF(E18=0,0,$P18/E18/COUNTIF('Expanded kW'!$A$2:$A$8785,'Monthly Data'!$B18)) -> 0.8205482349 | H18: =+'LR Monthly'!G9 -> 179.0305978 | I18: =IF(H18=0,0,$P18/H18/COUNTIF('Expanded kW'!$A$2:$A$8785,'Monthly Data'!$B18)) -> 0.3978414865 | J18: =+'LR Monthly'!H9 -> 108.4151096 | K18: =IF(J18=0,0,$P18/J18/COUNTIF('Expanded kW'!$A$2:$A$8785,'Monthly Data'!$B18)) -> 0.6569729942 | M18: =VLOOKUP('Manual Inputs'!E34,'Expanded kW'!$D$2:$F$8785,3) -> 112.3128433 | N18: =SUMIFS('Expanded kW'!$F$2:$F$8785,'Expanded kW'!$A$2:$A$8785,$B18,'Expanded kW'!$C$2:$C$8785,C$8) -> 30053.26018 | O18: =SUMIFS('Expanded kW'!$F$2:$F$8785,'Expanded kW'!$A$2:$A$8785,$B18,'Expanded kW'!$C$2:$C$8785,E$8) -> 22938.73441 | P18: 52991.99458 | S18: 1.125557122
A19: =+'Manual Inputs'!A19 -> 2016 | B19: =+'Manual Inputs'!B19 -> 11 | C19: =MAX(IF('Expanded kW'!$A$2:$A$8785=$B19,IF('Expanded kW'!$C$2:$C$8785=C$8,'Expanded kW'!$F$2:$F$8785,0),0)) -> 163.375061 | D19: =IF(C19=0,0,$P19/C19/COUNTIF('Expanded kW'!$A$2:$A$8785,'Monthly Data'!$B19)) -> 0.4586530936 | E19: =MAX(IF('Expanded kW'!$A$2:$A$8785=$B19,IF('Expanded kW'!$C$2:$C$8785=E$8,'Expanded kW'!$F$2:$F$8785,0),0)) -> 120.2830048 | F19: =IF(E19=0,0,$P19/E19/COUNTIF('Expanded kW'!$A$2:$A$8785,'Monthly Data'!$B19)) -> 0.6229681185 | H19: =+'LR Monthly'!G10 -> 211.9217912 | I19: =IF(H19=0,0,$P19/H19/COUNTIF('Expanded kW'!$A$2:$A$8785,'Monthly Data'!$B19)) -> 0.3535855219 | J19: =+'LR Monthly'!H10 -> 153.9051549 | K19: =IF(J19=0,0,$P19/J19/COUNTIF('Expanded kW'!$A$2:$A$8785,'Monthly Data'!$B19)) -> 0.4868743819 | M19: =VLOOKUP('Manual Inputs'!E35,'Expanded kW'!$D$2:$F$8785,3) -> 133.0491333 | N19: =SUMIFS('Expanded kW'!$F$2:$F$8785,'Expanded kW'!$A$2:$A$8785,$B19,'Expanded kW'!$C$2:$C$8785,C$8) -> 29793.67395 | O19: =SUMIFS('Expanded kW'!$F$2:$F$8785,'Expanded kW'!$A$2:$A$8785,$B19,'Expanded kW'!$C$2:$C$8785,E$8) -> 24157.70961 | P19: 53951.38356
A20: =+'Manual Inputs'!A20 -> 2016 | B20: =+'Manual Inputs'!B20 -> 12 | C20: =MAX(IF('Expanded kW'!$A$2:$A$8785=$B20,IF('Expanded kW'!$C$2:$C$8785=C$8,'Expanded kW'!$F$2:$F$8785,0),0)) -> 177.3794098 | D20: =IF(C20=0,0,$P20/C20/COUNTIF('Expanded kW'!$A$2:$A$8785,'Monthly Data'!$B20)) -> 0.4712084485 | E20: =MAX(IF('Expanded kW'!$A$2:$A$8785=$B20,IF('Expanded kW'!$C$2:$C$8785=E$8,'Expanded kW'!$F$2:$F$8785,0),0)) -> 137.7319183 | F20: =IF(E20=0,0,$P20/E20/COUNTIF('Expanded kW'!$A$2:$A$8785,'Monthly Data'!$B20)) -> 0.606850449 | H20: =+'LR Monthly'!G11 -> 214.3250193 | I20: =IF(H20=0,0,$P20/H20/COUNTIF('Expanded kW'!$A$2:$A$8785,'Monthly Data'!$B20)) -> 0.3899809586 | J20: =+'LR Monthly'!H11 -> 167.7912172 | K20: =IF(J20=0,0,$P20/J20/COUNTIF('Expanded kW'!$A$2:$A$8785,'Monthly Data'!$B20)) -> 0.498134991 | M20: =VLOOKUP('Manual Inputs'!E36,'Expanded kW'!$D$2:$F$8785,3) -> 156.0491638 | N20: =SUMIFS('Expanded kW'!$F$2:$F$8785,'Expanded kW'!$A$2:$A$8785,$B20,'Expanded kW'!$C$2:$C$8785,C$8) -> 30428.87022 | O20: =SUMIFS('Expanded kW'!$F$2:$F$8785,'Expanded kW'!$A$2:$A$8785,$B20,'Expanded kW'!$C$2:$C$8785,E$8) -> 31756.64108 | P20: 62185.5113
A21: =+'Manual Inputs'!A21 -> 2017 | B21: =+'Manual Inputs'!B21 -> 1 | C21: =MAX(IF('Expanded kW'!$A$2:$A$8785=$B21,IF('Expanded kW'!$C$2:$C$8785=C$8,'Expanded kW'!$F$2:$F$8785,0),0)) -> 168.6596375 | D21: =IF(C21=0,0,$P21/C21/COUNTIF('Expanded kW'!$A$2:$A$8785,'Monthly Data'!$B21)) -> 0.5028873394 | E21: =MAX(IF('Expanded kW'!$A$2:$A$8785=$B21,IF('Expanded kW'!$C$2:$C$8785=E$8,'Expanded kW'!$F$2:$F$8785,0),0)) -> 141.672348 | F21: =IF(E21=0,0,$P21/E21/COUNTIF('Expanded kW'!$A$2:$A$8785,'Monthly Data'!$B21)) -> 0.5986827883 | H21: =+'LR Monthly'!G12 -> 211.1290396 | I21: =IF(H21=0,0,$P21/H21/COUNTIF('Expanded kW'!$A$2:$A$8785,'Monthly Data'!$B21)) -> 0.4017296555 | J21: =+'LR Monthly'!H12 -> 172.728055 | K21: =IF(J21=0,0,$P21/J21/COUNTIF('Expanded kW'!$A$2:$A$8785,'Monthly Data'!$B21)) -> 0.4910423864 | M21: =VLOOKUP('Manual Inputs'!E37,'Expanded kW'!$D$2:$F$8785,3) -> 156.8515015 | N21: =SUMIFS('Expanded kW'!$F$2:$F$8785,'Expanded kW'!$A$2:$A$8785,$B21,'Expanded kW'!$C$2:$C$8785,C$8) -> 32078.4901 | O21: =SUMIFS('Expanded kW'!$F$2:$F$8785,'Expanded kW'!$A$2:$A$8785,$B21,'Expanded kW'!$C$2:$C$8785,E$8) -> 31025.20638 | P21: 63103.69648
A22: =+'Manual Inputs'!A22 -> 2017 | B22: =+'Manual Inputs'!B22 -> 2 | C22: =MAX(IF('Expanded kW'!$A$2:$A$8785=$B22,IF('Expanded kW'!$C$2:$C$8785=C$8,'Expanded kW'!$F$2:$F$8785,0),0)) -> 164.8529968 | D22: =IF(C22=0,0,$P22/C22/COUNTIF('Expanded kW'!$A$2:$A$8785,'Monthly Data'!$B22)) -> 0.4918206986 | E22: =MAX(IF('Expanded kW'!$A$2:$A$8785=$B22,IF('Expanded kW'!$C$2:$C$8785=E$8,'Expanded kW'!$F$2:$F$8785,0),0)) -> 125.8553238 | F22: =IF(E22=0,0,$P22/E22/COUNTIF('Expanded kW'!$A$2:$A$8785,'Monthly Data'!$B22)) -> 0.6442168168 | H22: =+'LR Monthly'!G13 -> 199.1643644 | I22: =IF(H22=0,0,$P22/H22/COUNTIF('Expanded kW'!$A$2:$A$8785,'Monthly Data'!$B22)) -> 0.407091481 | J22: =+'LR Monthly'!H13 -> 162.0913393 | K22: =IF(J22=0,0,$P22/J22/COUNTIF('Expanded kW'!$A$2:$A$8785,'Monthly Data'!$B22)) -> 0.5002001736 | M22: =VLOOKUP('Manual Inputs'!E38,'Expanded kW'!$D$2:$F$8785,3) -> 100.0688171 | N22: =SUMIFS('Expanded kW'!$F$2:$F$8785,'Expanded kW'!$A$2:$A$8785,$B22,'Expanded kW'!$C$2:$C$8785,C$8) -> 29522.21273 | O22: =SUMIFS('Expanded kW'!$F$2:$F$8785,'Expanded kW'!$A$2:$A$8785,$B22,'Expanded kW'!$C$2:$C$8785,E$8) -> 24962.28127 | P22: 54484.494
A24: NOTE: The data above is not expanded but instead is the output from Load Research data.

Sheet Summary
A1: ='Manual Inputs'!D1 -> Kentucky Power Co.
A2: =+'Manual Inputs'!D2 -> Kentucky
A3: Annual Summary of Sample Data
A4: =CustClass & " Customers" -> Public School Service - Secondary Customers
A5: =+'Monthly Data'!A5 -> For the Test Year Ended February 28, 2017
A6: =+'Monthly Data'!A6 -> Based on Sample Period Ended February 28, 2017
A8: On-Peak SNCP | B8: =+'Manual Inputs'!H11 -> 264.3744826
A9: Off-Peak SNCP | B9: =+'Manual Inputs'!I11 -> 210.0277432
A10: Total SNCP | B10: =+'Manual Inputs'!G11 -> 267.8420126
A12: On-Peak Energy | B12: =SUMIF('Expanded kW'!C2:C8785,"ON",'Expanded kW'!F2:F8785) -> 372326.4454 | C12: =+B12/$B$14 -> 0.5406843896 | E12: Off-Peak SNCP LF | F12: =+B$14/B8/(TYDays*24) -> 0.2973421054
A13: Off-Peak Energy | B13: =SUMIF('Expanded kW'!C2:C8785,"OFF",'Expanded kW'!F2:F8785) -> 316294.2223 | C13: =+B13/$B$14 -> 0.4593156104 | E13: On-Peak SNCP LF | F13: =+B$14/B9/(TYDays*24) -> 0.3742822927
A14: Total Energy | B14: =SUM('Expanded kW'!F2:F8785) -> 688620.6677 | E14: Total SNCP LF | F14: =+B$14/B10/(TYDays*24) -> 0.293492662
A16: NOTE: The data above is not expanded but instead is the output from Load Research data.

Sheet Peaks
A1: ='Manual Inputs'!D1 -> Kentucky Power Co.
A2: =+'Manual Inputs'!D2 -> Kentucky
A3: Peak and Off-Peak Statistics (kW)
A4: =CustClass & " Customers" -> Public School Service - Secondary Customers
A5: =+'Monthly Data'!A5 -> For the Test Year Ended February 28, 2017
A6: =+'Monthly Data'!A6 -> Based on Sample Period Ended February 28, 2017
A9: Year | B9: Month | C9: Total Sample | D9: Total Expanded | F9: Customers | G9: Coincident Peak | H9: NCP Peak | I9: NCP Off-Peak | J9: NCP Total | K9: SNCP Peak | L9: SNCP Off-Peak | M9: SNCP Total
A10: =+'Manual Inputs'!A11 -> 2016 | B10: =+'Manual Inputs'!B11 -> 3 | C10: =SUMIF('Expanded kW'!$A$2:$A$8785,B10,'Expanded kW'!$F$2:$F$8785) -> 57032.96455 | D10: =SUMIF('Expanded kW'!$A$2:$A$8785,B10,'Expanded kW'!$H$2:$H$8785) -> 8314521 | F10: =+'Manual Inputs'!D11 -> 161 | G10: =ROUND(VLOOKUP('Manual Inputs'!E27,'Expanded kW'!$D$2:$H$8785,5),0) -> 20766 | H10: =IF(C10=0,0,ROUND(+$D10/C10*'Monthly Data'!C11,0)) -> 24043 | I10: =IF(C10=0,0,ROUND(+$D10/C10*'Monthly Data'!E11,0)) -> 18130 | J10: =MAX(H10:I10) -> 24043 | K10: =IF($C10=0,0,+$D10/$C10*'LR Monthly'!G2) -> 29632.06925 | L10: =IF($C10=0,0,+$D10/$C10*'LR Monthly'!H2) -> 23189.50205 | M10: =IF($C10=0,0,+$D10/$C10*'LR Monthly'!F2) -> 30200.04631 | O10: =MAX('LR 8760 Loads'!I2:AD32) -> 164.9191273
A11: =+'Manual Inputs'!A12 -> 2016 | B11: =+'Manual Inputs'!B12 -> 4 | C11: =SUMIF('Expanded kW'!$A$2:$A$8785,B11,'Expanded kW'!$F$2:$F$8785) -> 49705.09278 | D11: =SUMIF('Expanded kW'!$A$2:$A$8785,B11,'Expanded kW'!$H$2:$H$8785) -> 8854833 | F11: =+'Manual Inputs'!D12 -> 161 | G11: =ROUND(VLOOKUP('Manual Inputs'!E28,'Expanded kW'!$D$2:$H$8785,5),0) -> 11039 | H11: =IF(C11=0,0,ROUND(+$D11/C11*'Monthly Data'!C12,0)) -> 25840 | I11: =IF(C11=0,0,ROUND(+$D11/C11*'Monthly Data'!E12,0)) -> 16130 | J11: =MAX(H11:I11) -> 25840 | K11: =IF($C11=0,0,+$D11/$C11*'LR Monthly'!G3) -> 31911.28778 | L11: =IF($C11=0,0,+$D11/$C11*'LR Monthly'!H3) -> 21488.77034 | M11: =IF($C11=0,0,+$D11/$C11*'LR Monthly'!F3) -> 32108.99427
A12: =+'Manual Inputs'!A13 -> 2016 | B12: =+'Manual Inputs'!B13 -> 5 | C12: =SUMIF('Expanded kW'!$A$2:$A$8785,B12,'Expanded kW'!$F$2:$F$8785) -> 53706.6677 | D12: =SUMIF('Expanded kW'!$A$2:$A$8785,B12,'Expanded kW'!$H$2:$H$8785) -> 9483509 | F12: =+'Manual Inputs'!D13 -> 161 | G12: =ROUND(VLOOKUP('Manual Inputs'!E29,'Expanded kW'!$D$2:$H$8785,5),0) -> 15046 | H12: =IF(C12=0,0,ROUND(+$D12/C12*'Monthly Data'!C13,0)) -> 27201 | I12: =IF(C12=0,0,ROUND(+$D12/C12*'Monthly Data'!E13,0)) -> 14844 | J12: 27201 | K12: =IF($C12=0,0,+$D12/$C12*'LR Monthly'!G4) -> 30405.87338 | L12: =IF($C12=0,0,+$D12/$C12*'LR Monthly'!H4) -> 20389.83202 | M12: =IF($C12=0,0,+$D12/$C12*'LR Monthly'!F4) -> 30497.03593
A13: =+'Manual Inputs'!A14 -> 2016 | B13: =+'Manual Inputs'!B14 -> 6 | C13: =SUMIF('Expanded kW'!$A$2:$A$8785,B13,'Expanded kW'!$F$2:$F$8785) -> 47529.41198 | D13: =SUMIF('Expanded kW'!$A$2:$A$8785,B13,'Expanded kW'!$H$2:$H$8785) -> 7995092 | F13: =+'Manual Inputs'!D14 -> 161 | G13: =ROUND(VLOOKUP('Manual Inputs'!E30,'Expanded kW'!$D$2:$H$8785,5),0) -> 16111 | H13: =IF(C13=0,0,ROUND(+$D13/C13*'Monthly Data'!C14,0)) -> 17050 | I13: =IF(C13=0,0,ROUND(+$D13/C13*'Monthly Data'!E14,0)) -> 12960 | J13: 17050 | K13: =IF($C13=0,0,+$D13/$C13*'LR Monthly'!G5) -> 20386.71415 | L13: =IF($C13=0,0,+$D13/$C13*'LR Monthly'!H5) -> 16502.94828 | M13: =IF($C13=0,0,+$D13/$C13*'LR Monthly'!F5) -> 20412.95459
A14: =+'Manual Inputs'!A15 -> 2016 | B14: =+'Manual Inputs'!B15 -> 7 | C14: =SUMIF('Expanded kW'!$A$2:$A$8785,B14,'Expanded kW'!$F$2:$F$8785) -> 53563.45292 | D14: =SUMIF('Expanded kW'!$A$2:$A$8785,B14,'Expanded kW'!$H$2:$H$8785) -> 7511715 | F14: =+'Manual Inputs'!D15 -> 161 | G14: =ROUND(VLOOKUP('Manual Inputs'!E31,'Expanded kW'!$D$2:$H$8785,5),0) -> 16803 | H14: =IF(C14=0,0,ROUND(+$D14/C14*'Monthly Data'!C15,0)) -> 16803 | I14: =IF(C14=0,0,ROUND(+$D14/C14*'Monthly Data'!E15,0)) -> 12476 | J14: 16803 | K14: =IF($C14=0,0,+$D14/$C14*'LR Monthly'!G6) -> 19411.44515 | L14: =IF($C14=0,0,+$D14/$C14*'LR Monthly'!H6) -> 16013.70831 | M14: =IF($C14=0,0,+$D14/$C14*'LR Monthly'!F6) -> 19411.44515
A15: =+'Manual Inputs'!A16 -> 2016 | B15: =+'Manual Inputs'!B16 -> 8 | C15: =SUMIF('Expanded kW'!$A$2:$A$8785,B15,'Expanded kW'!$F$2:$F$8785) -> 74530.66063 | D15: =SUMIF('Expanded kW'!$A$2:$A$8785,B15,'Expanded kW'!$H$2:$H$8785) -> 10189183 | F15: =+'Manual Inputs'!D16 -> 161 | G15: =ROUND(VLOOKUP('Manual Inputs'!E32,'Expanded kW'!$D$2:$H$8785,5),0) -> 17654 | H15: =IF(C15=0,0,ROUND(+$D15/C15*'Monthly Data'!C16,0)) -> 26648 | I15: =IF(C15=0,0,ROUND(+$D15/C15*'Monthly Data'!E16,0)) -> 15741 | J15: 26648 | K15: =IF($C15=0,0,+$D15/$C15*'LR Monthly'!G7) -> 28738.74437 | L15: =IF($C15=0,0,+$D15/$C15*'LR Monthly'!H7) -> 18731.81938 | M15: =IF($C15=0,0,+$D15/$C15*'LR Monthly'!F7) -> 28738.74437
A16: =+'Manual Inputs'!A17 -> 2016 | B16: =+'Manual Inputs'!B17 -> 9 | C16: =SUMIF('Expanded kW'!$A$2:$A$8785,B16,'Expanded kW'!$F$2:$F$8785) -> 65835.33728 | D16: =SUMIF('Expanded kW'!$A$2:$A$8785,B16,'Expanded kW'!$H$2:$H$8785) -> 11720326 | F16: =+'Manual Inputs'!D17 -> 161 | G16: =ROUND(VLOOKUP('Manual Inputs'!E33,'Expanded kW'!$D$2:$H$8785,5),0) -> 23740 | H16: =IF(C16=0,0,ROUND(+$D16/C16*'Monthly Data'!C17,0)) -> 32492 | I16: =IF(C16=0,0,ROUND(+$D16/C16*'Monthly Data'!E17,0)) -> 19716 | J16: 32492 | K16: =IF($C16=0,0,+$D16/$C16*'LR Monthly'!G8) -> 35216.68811 | L16: =IF($C16=0,0,+$D16/$C16*'LR Monthly'!H8) -> 22048.95623 | M16: =IF($C16=0,0,+$D16/$C16*'LR Monthly'!F8) -> 35216.68811
A17: =+'Manual Inputs'!A18 -> 2016 | B17: =+'Manual Inputs'!B18 -> 10 | C17: =SUMIF('Expanded kW'!$A$2:$A$8785,B17,'Expanded kW'!$F$2:$F$8785) -> 52991.99458 | D17: =SUMIF('Expanded kW'!$A$2:$A$8785,B17,'Expanded kW'!$H$2:$H$8785) -> 9280101 | F17: =+'Manual Inputs'!D18 -> 161 | G17: =ROUND(VLOOKUP('Manual Inputs'!E34,'Expanded kW'!$D$2:$H$8785,5),0) -> 19669 | H17: =IF(C17=0,0,ROUND(+$D17/C17*'Monthly Data'!C18,0)) -> 27855 | I17: =IF(C17=0,0,ROUND(+$D17/C17*'Monthly Data'!E18,0)) -> 15201 | J17: 27855 | K17: =IF($C17=0,0,+$D17/$C17*'LR Monthly'!G9) -> 31352.3211 | L17: =IF($C17=0,0,+$D17/$C17*'LR Monthly'!H9) -> 18985.94637 | M17: =IF($C17=0,0,+$D17/$C17*'LR Monthly'!F9) -> 31352.3211
A18: =+'Manual Inputs'!A19 -> 2016 | B18: =+'Manual Inputs'!B19 -> 11 | C18: =SUMIF('Expanded kW'!$A$2:$A$8785,B18,'Expanded kW'!$F$2:$F$8785) -> 53951.38356 | D18: =SUMIF('Expanded kW'!$A$2:$A$8785,B18,'Expanded kW'!$H$2:$H$8785) -> 9871720 | F18: =+'Manual Inputs'!D19 -> 161 | G18: =ROUND(VLOOKUP('Manual Inputs'!E35,'Expanded kW'!$D$2:$H$8785,5),0) -> 24345 | H18: =IF(C18=0,0,ROUND(+$D18/C18*'Monthly Data'!C19,0)) -> 29893 | I18: =IF(C18=0,0,ROUND(+$D18/C18*'Monthly Data'!E19,0)) -> 22009 | J18: 29893 | K18: =IF($C18=0,0,+$D18/$C18*'LR Monthly'!G10) -> 38776.2546 | L18: =IF($C18=0,0,+$D18/$C18*'LR Monthly'!H10) -> 28160.69757 | M18: =IF($C18=0,0,+$D18/$C18*'LR Monthly'!F10) -> 39272.08815
A19: =+'Manual Inputs'!A20 -> 2016 | B19: =+'Manual Inputs'!B20 -> 12 | C19: =SUMIF('Expanded kW'!$A$2:$A$8785,B19,'Expanded kW'!$F$2:$F$8785) -> 62185.5113 | D19: =SUMIF('Expanded kW'!$A$2:$A$8785,B19,'Expanded kW'!$H$2:$H$8785) -> 9000199 | F19: =+'Manual Inputs'!D20 -> 161 | G19: =ROUND(VLOOKUP('Manual Inputs'!E36,'Expanded kW'!$D$2:$H$8785,5),0) -> 22585 | H19: =IF(C19=0,0,ROUND(+$D19/C19*'Monthly Data'!C20,0)) -> 25672 | I19: =IF(C19=0,0,ROUND(+$D19/C19*'Monthly Data'!E20,0)) -> 19934 | J19: 25672 | K19: =IF($C19=0,0,+$D19/$C19*'LR Monthly'!G11) -> 31019.57006 | L19: =IF($C19=0,0,+$D19/$C19*'LR Monthly'!H11) -> 24284.66557 | M19: =IF($C19=0,0,+$D19/$C19*'LR Monthly'!F11) -> 31421.33944
A20: =+'Manual Inputs'!A21 -> 2017 | B20: =+'Manual Inputs'!B21 -> 1 | C20: =SUMIF('Expanded kW'!$A$2:$A$8785,B20,'Expanded kW'!$F$2:$F$8785) -> 63103.69648 | D20: =SUMIF('Expanded kW'!$A$2:$A$8785,B20,'Expanded kW'!$H$2:$H$8785) -> 8383684 | F20: =+'Manual Inputs'!D21 -> 161 | G20: =ROUND(VLOOKUP('Manual Inputs'!E37,'Expanded kW'!$D$2:$H$8785,5),0) -> 20839 | H20: =IF(C20=0,0,ROUND(+$D20/C20*'Monthly Data'!C21,0)) -> 22407 | I20: =IF(C20=0,0,ROUND(+$D20/C20*'Monthly Data'!E21,0)) -> 18822 | J20: 22407 | K20: =IF($C20=0,0,+$D20/$C20*'LR Monthly'!G12) -> 28049.69043 | L20: =IF($C20=0,0,+$D20/$C20*'LR Monthly'!H12) -> 22947.90182 | M20: =IF($C20=0,0,+$D20/$C20*'LR Monthly'!F12) -> 28765.61951
A21: =+'Manual Inputs'!A22 -> 2017 | B21: =+'Manual Inputs'!B22 -> 2 | C21: =SUMIF('Expanded kW'!$A$2:$A$8785,B21,'Expanded kW'!$F$2:$F$8785) -> 54484.494 | D21: =SUMIF('Expanded kW'!$A$2:$A$8785,B21,'Expanded kW'!$H$2:$H$8785) -> 9107377 | F21: =+'Manual Inputs'!D22 -> 161 | G21: =ROUND(VLOOKUP('Manual Inputs'!E38,'Expanded kW'!$D$2:$H$8785,5),0) -> 16727 | H21: =IF(C21=0,0,ROUND(+$D21/C21*'Monthly Data'!C22,0)) -> 27556 | I21: =IF(C21=0,0,ROUND(+$D21/C21*'Monthly Data'!E22,0)) -> 21037 | J21: 27556 | K21: =IF($C21=0,0,+$D21/$C21*'LR Monthly'!G13) -> 33291.39758 | L21: =IF($C21=0,0,+$D21/$C21*'LR Monthly'!H13) -> 27094.44151 | M21: =IF($C21=0,0,+$D21/$C21*'LR Monthly'!F13) -> 35380.10865
A23: Total | C23: =SUM(C10:C21) -> 688620.6677 | D23: =SUM(D10:D21) -> 109712260 | F23: =SUM(F10:F21) -> 1932 | G23: 225324 | H23: 303460 | I23: 207000 | J23: 303460 | K23: 358192.056 | L23: 259839.1894 | M23: 362777.3856
A24: Average | C24: =+C23/12 -> 57385.05564 | D24: =+D23/12 -> 9142688.333 | F24: =+F23/12 -> 161 | G24: 18777 | H24: 25288.33333 | I24: 17250 | J24: 25288.33333 | K24: 29849.338 | L24: 21653.26579 | M24: 30231.4488
A25: Maximum | C25: =MAX(C10:C21) -> 74530.66063 | D25: =MAX(D10:D21) -> 11720326 | G25: =MAX(G10:G21) -> 24345 | H25: 32492 | I25: 22009 | J25: 32492 | K25: 38776.2546 | L25: 28160.69757 | M25: 39272.08815
A27: Annual SNCP | K27: =MAX(+Summary!B8*Peaks!D23/Peaks!C23,K25) -> 42120.60911 | L27: =MAX(+Summary!B9*Peaks!D23/Peaks!C23,L25) -> 33461.99069 | M27: =MAX(+Summary!B10*Peaks!D23/Peaks!C23,M25) -> 42673.06211

Sheet Load Factors
A1: ='Manual Inputs'!D1 -> Kentucky Power Co.
A2: =+'Manual Inputs'!D2 -> Kentucky
A3: Load Factor Report
A4: =CustClass & " Customers" -> Public School Service - Secondary Customers
A5: =+'Monthly Data'!A5 -> For the Test Year Ended February 28, 2017
A6: =+'Monthly Data'!A6 -> Based on Sample Period Ended February 28, 2017
D8: NCP | H8: SNCP
A9: Year | B9: Month | C9: Coincidence Ratio | D9: Peak LF | E9: Off-Peak LF | F9: Total LF | H9: Peak LF | I9: Off-Peak LF | J9: Total LF
A10: =+'Manual Inputs'!A11 -> 2016 | B10: =+'Manual Inputs'!B11 -> 3 | C10: =IF(Peaks!J10=0,0,+Peaks!G10/Peaks!J10) -> 0.863702533 | D10: =IF(Peaks!H10=0,0,Peaks!$D10/Peaks!H10/COUNTIF('Expanded kW'!$A$2:$A$8785,'Load Factors'!$B10)) -> 0.4648101922 | E10: =IF(Peaks!I10=0,0,Peaks!$D10/Peaks!I10/COUNTIF('Expanded kW'!$A$2:$A$8785,'Load Factors'!$B10)) -> 0.6164054855 | F10: =IF(Peaks!J10=0,0,Peaks!$D10/Peaks!J10/COUNTIF('Expanded kW'!$A$2:$A$8785,'Load Factors'!$B10)) -> 0.4648101922 | H10: =IF(Peaks!K10=0,0,Peaks!$D10/Peaks!K10/COUNTIF('Expanded kW'!$A$2:$A$8785,'Load Factors'!$B10)) -> 0.3771397588 | I10: =IF(Peaks!L10=0,0,Peaks!$D10/Peaks!L10/COUNTIF('Expanded kW'!$A$2:$A$8785,'Load Factors'!$B10)) -> 0.4819176983 | J10: =IF(Peaks!M10=0,0,Peaks!$D10/Peaks!M10/COUNTIF('Expanded kW'!$A$2:$A$8785,'Load Factors'!$B10)) -> 0.3700468316
A11: =+'Manual Inputs'!A12 -> 2016 | B11: =+'Manual Inputs'!B12 -> 4 | C11: =IF(Peaks!J11=0,0,+Peaks!G11/Peaks!J11) -> 0.4272058824 | D11: =IF(Peaks!H11=0,0,Peaks!$D11/Peaks!H11/COUNTIF('Expanded kW'!$A$2:$A$8785,'Load Factors'!$B11)) -> 0.4759434662 | E11: =IF(Peaks!I11=0,0,Peaks!$D11/Peaks!I11/COUNTIF('Expanded kW'!$A$2:$A$8785,'Load Factors'!$B11)) -> 0.7624537611 | F11: =IF(Peaks!J11=0,0,Peaks!$D11/Peaks!J11/COUNTIF('Expanded kW'!$A$2:$A$8785,'Load Factors'!$B11)) -> 0.4759434662 | H11: =IF(Peaks!K11=0,0,Peaks!$D11/Peaks!K11/COUNTIF('Expanded kW'!$A$2:$A$8785,'Load Factors'!$B11)) -> 0.3853927566 | I11: =IF(Peaks!L11=0,0,Peaks!$D11/Peaks!L11/COUNTIF('Expanded kW'!$A$2:$A$8785,'Load Factors'!$B11)) -> 0.5723165621 | J11: =IF(Peaks!M11=0,0,Peaks!$D11/Peaks!M11/COUNTIF('Expanded kW'!$A$2:$A$8785,'Load Factors'!$B11)) -> 0.3830197565
A12: =+'Manual Inputs'!A13 -> 2016 | B12: =+'Manual Inputs'!B13 -> 5 | C12: =IF(Peaks!J12=0,0,+Peaks!G12/Peaks!J12) -> 0.5531414286 | D12: =IF(Peaks!H12=0,0,Peaks!$D12/Peaks!H12/COUNTIF('Expanded kW'!$A$2:$A$8785,'Load Factors'!$B12)) -> 0.4686096791 | E12: =IF(Peaks!I12=0,0,Peaks!$D12/Peaks!I12/COUNTIF('Expanded kW'!$A$2:$A$8785,'Load Factors'!$B12)) -> 0.8587073485 | F12: =IF(Peaks!J12=0,0,Peaks!$D12/Peaks!J12/COUNTIF('Expanded kW'!$A$2:$A$8785,'Load Factors'!$B12)) -> 0.4686096791 | H12: =IF(Peaks!K12=0,0,Peaks!$D12/Peaks!K12/COUNTIF('Expanded kW'!$A$2:$A$8785,'Load Factors'!$B12)) -> 0.4192167652 | I12: =IF(Peaks!L12=0,0,Peaks!$D12/Peaks!L12/COUNTIF('Expanded kW'!$A$2:$A$8785,'Load Factors'!$B12)) -> 0.6251474691 | J12: =IF(Peaks!M12=0,0,Peaks!$D12/Peaks!M12/COUNTIF('Expanded kW'!$A$2:$A$8785,'Load Factors'!$B12)) -> 0.4179636313
A13: =+'Manual Inputs'!A14 -> 2016 | B13: =+'Manual Inputs'!B14 -> 6 | C13: =IF(Peaks!J13=0,0,+Peaks!G13/Peaks!J13) -> 0.9449266862 | D13: =IF(Peaks!H13=0,0,Peaks!$D13/Peaks!H13/COUNTIF('Expanded kW'!$A$2:$A$8785,'Load Factors'!$B13)) -> 0.6512782665 | E13: =IF(Peaks!I13=0,0,Peaks!$D13/Peaks!I13/COUNTIF('Expanded kW'!$A$2:$A$8785,'Load Factors'!$B13)) -> 0.8568128429 | F13: =IF(Peaks!J13=0,0,Peaks!$D13/Peaks!J13/COUNTIF('Expanded kW'!$A$2:$A$8785,'Load Factors'!$B13)) -> 0.6512782665 | H13: =IF(Peaks!K13=0,0,Peaks!$D13/Peaks!K13/COUNTIF('Expanded kW'!$A$2:$A$8785,'Load Factors'!$B13)) -> 0.5446828932 | I13: =IF(Peaks!L13=0,0,Peaks!$D13/Peaks!L13/COUNTIF('Expanded kW'!$A$2:$A$8785,'Load Factors'!$B13)) -> 0.6728673117 | J13: =IF(Peaks!M13=0,0,Peaks!$D13/Peaks!M13/COUNTIF('Expanded kW'!$A$2:$A$8785,'Load Factors'!$B13)) -> 0.5439827143
A14: =+'Manual Inputs'!A15 -> 2016 | B14: =+'Manual Inputs'!B15 -> 7 | C14: =IF(Peaks!J14=0,0,+Peaks!G14/Peaks!J14) -> 1 | D14: =IF(Peaks!H14=0,0,Peaks!$D14/Peaks!H14/COUNTIF('Expanded kW'!$A$2:$A$8785,'Load Factors'!$B14)) -> 0.6008683645 | E14: =IF(Peaks!I14=0,0,Peaks!$D14/Peaks!I14/COUNTIF('Expanded kW'!$A$2:$A$8785,'Load Factors'!$B14)) -> 0.8092650793 | F14: =IF(Peaks!J14=0,0,Peaks!$D14/Peaks!J14/COUNTIF('Expanded kW'!$A$2:$A$8785,'Load Factors'!$B14)) -> 0.6008683645 | H14: =IF(Peaks!K14=0,0,Peaks!$D14/Peaks!K14/COUNTIF('Expanded kW'!$A$2:$A$8785,'Load Factors'!$B14)) -> 0.5201256811 | I14: =IF(Peaks!L14=0,0,Peaks!$D14/Peaks!L14/COUNTIF('Expanded kW'!$A$2:$A$8785,'Load Factors'!$B14)) -> 0.6304842658 | J14: =IF(Peaks!M14=0,0,Peaks!$D14/Peaks!M14/COUNTIF('Expanded kW'!$A$2:$A$8785,'Load Factors'!$B14)) -> 0.5201256811
A15: =+'Manual Inputs'!A16 -> 2016 | B15: =+'Manual Inputs'!B16 -> 8 | C15: =IF(Peaks!J15=0,0,+Peaks!G15/Peaks!J15) -> 0.6624887421 | D15: =IF(Peaks!H15=0,0,Peaks!$D15/Peaks!H15/COUNTIF('Expanded kW'!$A$2:$A$8785,'Load Factors'!$B15)) -> 0.5139274407 | E15: =IF(Peaks!I15=0,0,Peaks!$D15/Peaks!I15/COUNTIF('Expanded kW'!$A$2:$A$8785,'Load Factors'!$B15)) -> 0.8700297593 | F15: =IF(Peaks!J15=0,0,Peaks!$D15/Peaks!J15/COUNTIF('Expanded kW'!$A$2:$A$8785,'Load Factors'!$B15)) -> 0.5139274407 | H15: =IF(Peaks!K15=0,0,Peaks!$D15/Peaks!K15/COUNTIF('Expanded kW'!$A$2:$A$8785,'Load Factors'!$B15)) -> 0.4765392065 | I15: =IF(Peaks!L15=0,0,Peaks!$D15/Peaks!L15/COUNTIF('Expanded kW'!$A$2:$A$8785,'Load Factors'!$B15)) -> 0.7311162981 | J15: =IF(Peaks!M15=0,0,Peaks!$D15/Peaks!M15/COUNTIF('Expanded kW'!$A$2:$A$8785,'Load Factors'!$B15)) -> 0.4765392065
A16: =+'Manual Inputs'!A17 -> 2016 | B16: =+'Manual Inputs'!B17 -> 9 | C16: =IF(Peaks!J16=0,0,+Peaks!G16/Peaks!J16) -> 0.7306413886 | D16: =IF(Peaks!H16=0,0,Peaks!$D16/Peaks!H16/COUNTIF('Expanded kW'!$A$2:$A$8785,'Load Factors'!$B16)) -> 0.5009919536 | E16: =IF(Peaks!I16=0,0,Peaks!$D16/Peaks!I16/COUNTIF('Expanded kW'!$A$2:$A$8785,'Load Factors'!$B16)) -> 0.8256355526 | F16: =IF(Peaks!J16=0,0,Peaks!$D16/Peaks!J16/COUNTIF('Expanded kW'!$A$2:$A$8785,'Load Factors'!$B16)) -> 0.5009919536 | H16: =IF(Peaks!K16=0,0,Peaks!$D16/Peaks!K16/COUNTIF('Expanded kW'!$A$2:$A$8785,'Load Factors'!$B16)) -> 0.4622305909 | I16: =IF(Peaks!L16=0,0,Peaks!$D16/Peaks!L16/COUNTIF('Expanded kW'!$A$2:$A$8785,'Load Factors'!$B16)) -> 0.738276696 | J16: =IF(Peaks!M16=0,0,Peaks!$D16/Peaks!M16/COUNTIF('Expanded kW'!$A$2:$A$8785,'Load Factors'!$B16)) -> 0.4622305909
A17: =+'Manual Inputs'!A18 -> 2016 | B17: =+'Manual Inputs'!B18 -> 10 | C17: =IF(Peaks!J17=0,0,+Peaks!G17/Peaks!J17) -> 0.7061209837 | D17: =IF(Peaks!H17=0,0,Peaks!$D17/Peaks!H17/COUNTIF('Expanded kW'!$A$2:$A$8785,'Load Factors'!$B17)) -> 0.4477922826 | E17: =IF(Peaks!I17=0,0,Peaks!$D17/Peaks!I17/COUNTIF('Expanded kW'!$A$2:$A$8785,'Load Factors'!$B17)) -> 0.820554834 | F17: =IF(Peaks!J17=0,0,Peaks!$D17/Peaks!J17/COUNTIF('Expanded kW'!$A$2:$A$8785,'Load Factors'!$B17)) -> 0.4477922826 | H17: =IF(Peaks!K17=0,0,Peaks!$D17/Peaks!K17/COUNTIF('Expanded kW'!$A$2:$A$8785,'Load Factors'!$B17)) -> 0.3978414865 | I17: =IF(Peaks!L17=0,0,Peaks!$D17/Peaks!L17/COUNTIF('Expanded kW'!$A$2:$A$8785,'Load Factors'!$B17)) -> 0.6569729942 | J17: =IF(Peaks!M17=0,0,Peaks!$D17/Peaks!M17/COUNTIF('Expanded kW'!$A$2:$A$8785,'Load Factors'!$B17)) -> 0.3978414865
A18: =+'Manual Inputs'!A19 -> 2016 | B18: =+'Manual Inputs'!B19 -> 11 | C18: =IF(Peaks!J18=0,0,+Peaks!G18/Peaks!J18) -> 0.8144047101 | D18: =IF(Peaks!H18=0,0,Peaks!$D18/Peaks!H18/COUNTIF('Expanded kW'!$A$2:$A$8785,'Load Factors'!$B18)) -> 0.4586599613 | E18: =IF(Peaks!I18=0,0,Peaks!$D18/Peaks!I18/COUNTIF('Expanded kW'!$A$2:$A$8785,'Load Factors'!$B18)) -> 0.6229597993 | F18: =IF(Peaks!J18=0,0,Peaks!$D18/Peaks!J18/COUNTIF('Expanded kW'!$A$2:$A$8785,'Load Factors'!$B18)) -> 0.4586599613 | H18: =IF(Peaks!K18=0,0,Peaks!$D18/Peaks!K18/COUNTIF('Expanded kW'!$A$2:$A$8785,'Load Factors'!$B18)) -> 0.3535855219 | I18: =IF(Peaks!L18=0,0,Peaks!$D18/Peaks!L18/COUNTIF('Expanded kW'!$A$2:$A$8785,'Load Factors'!$B18)) -> 0.4868743819 | J18: =IF(Peaks!M18=0,0,Peaks!$D18/Peaks!M18/COUNTIF('Expanded kW'!$A$2:$A$8785,'Load Factors'!$B18)) -> 0.3491212937
A19: =+'Manual Inputs'!A20 -> 2016 | B19: =+'Manual Inputs'!B20 -> 12 | C19: =IF(Peaks!J19=0,0,+Peaks!G19/Peaks!J19) -> 0.8797522593 | D19: =IF(Peaks!H19=0,0,Peaks!$D19/Peaks!H19/COUNTIF('Expanded kW'!$A$2:$A$8785,'Load Factors'!$B19)) -> 0.4712153968 | E19: =IF(Peaks!I19=0,0,Peaks!$D19/Peaks!I19/COUNTIF('Expanded kW'!$A$2:$A$8785,'Load Factors'!$B19)) -> 0.6068547039 | F19: =IF(Peaks!J19=0,0,Peaks!$D19/Peaks!J19/COUNTIF('Expanded kW'!$A$2:$A$8785,'Load Factors'!$B19)) -> 0.4712153968 | H19: =IF(Peaks!K19=0,0,Peaks!$D19/Peaks!K19/COUNTIF('Expanded kW'!$A$2:$A$8785,'Load Factors'!$B19)) -> 0.3899809586 | I19: =IF(Peaks!L19=0,0,Peaks!$D19/Peaks!L19/COUNTIF('Expanded kW'!$A$2:$A$8785,'Load Factors'!$B19)) -> 0.498134991 | J19: =IF(Peaks!M19=0,0,Peaks!$D19/Peaks!M19/COUNTIF('Expanded kW'!$A$2:$A$8785,'Load Factors'!$B19)) -> 0.3849944618
A20: =+'Manual Inputs'!A21 -> 2017 | B20: =+'Manual Inputs'!B21 -> 1 | C20: =IF(Peaks!J20=0,0,+Peaks!G20/Peaks!J20) -> 0.9300218682 | D20: =IF(Peaks!H20=0,0,Peaks!$D20/Peaks!H20/COUNTIF('Expanded kW'!$A$2:$A$8785,'Load Factors'!$B20)) -> 0.5028960804 | E20: =IF(Peaks!I20=0,0,Peaks!$D20/Peaks!I20/COUNTIF('Expanded kW'!$A$2:$A$8785,'Load Factors'!$B20)) -> 0.598681993 | F20: =IF(Peaks!J20=0,0,Peaks!$D20/Peaks!J20/COUNTIF('Expanded kW'!$A$2:$A$8785,'Load Factors'!$B20)) -> 0.5028960804 | H20: =IF(Peaks!K20=0,0,Peaks!$D20/Peaks!K20/COUNTIF('Expanded kW'!$A$2:$A$8785,'Load Factors'!$B20)) -> 0.4017296555 | I20: =IF(Peaks!L20=0,0,Peaks!$D20/Peaks!L20/COUNTIF('Expanded kW'!$A$2:$A$8785,'Load Factors'!$B20)) -> 0.4910423864 | J20: =IF(Peaks!M20=0,0,Peaks!$D20/Peaks!M20/COUNTIF('Expanded kW'!$A$2:$A$8785,'Load Factors'!$B20)) -> 0.3917312634
A21: =+'Manual Inputs'!A22 -> 2017 | B21: =+'Manual Inputs'!B22 -> 2 | C21: =IF(Peaks!J21=0,0,+Peaks!G21/Peaks!J21) -> 0.6070184352 | D21: =IF(Peaks!H21=0,0,Peaks!$D21/Peaks!H21/COUNTIF('Expanded kW'!$A$2:$A$8785,'Load Factors'!$B21)) -> 0.4918219025 | E21: =IF(Peaks!I21=0,0,Peaks!$D21/Peaks!I21/COUNTIF('Expanded kW'!$A$2:$A$8785,'Load Factors'!$B21)) -> 0.6442289464 | F21: =IF(Peaks!J21=0,0,Peaks!$D21/Peaks!J21/COUNTIF('Expanded kW'!$A$2:$A$8785,'Load Factors'!$B21)) -> 0.4918219025 | H21: =IF(Peaks!K21=0,0,Peaks!$D21/Peaks!K21/COUNTIF('Expanded kW'!$A$2:$A$8785,'Load Factors'!$B21)) -> 0.407091481 | I21: =IF(Peaks!L21=0,0,Peaks!$D21/Peaks!L21/COUNTIF('Expanded kW'!$A$2:$A$8785,'Load Factors'!$B21)) -> 0.5002001736 | J21: =IF(Peaks!M21=0,0,Peaks!$D21/Peaks!M21/COUNTIF('Expanded kW'!$A$2:$A$8785,'Load Factors'!$B21)) -> 0.383058302
A23: Average | C23: =AVERAGE(Peaks!G10:G21)/AVERAGE(Peaks!J10:J21) -> 0.7425163119 | D23: =+Peaks!$D24/Peaks!H24/(TYDays*24/12) -> 0.4952572567 | E23: =+Peaks!$D24/Peaks!I24/(TYDays*24/12) -> 0.7260423533 | F23: =+Peaks!$D24/Peaks!J24/(TYDays*24/12) -> 0.4952572567 | H23: =+Peaks!$D24/Peaks!K24/(TYDays*24/12) -> 0.4195815195 | I23: =+Peaks!$D24/Peaks!L24/(TYDays*24/12) -> 0.5783991531 | J23: =+Peaks!$D24/Peaks!M24/(TYDays*24/12) -> 0.4142782133

Sheet On,Off Peak kWh
A1: ='Manual Inputs'!D1 -> Kentucky Power Co.
A2: =+'Manual Inputs'!D2 -> Kentucky
A3: On and Off Peak Energy Summary
A4: =CustClass & " Customers" -> Public School Service - Secondary Customers
A5: =+'Monthly Data'!A5 -> For the Test Year Ended February 28, 2017
A6: =+'Monthly Data'!A6 -> Based on Sample Period Ended February 28, 2017
C10: TY kWh | E10: kWh Peak | F10: % Peak | H10: kWh Off-Peak | I10: % Off-Peak
A11: =+'Manual Inputs'!A11 -> 2016 | B11: =+'Manual Inputs'!B11 -> 3 | C11: =SUMIF('Expanded kW'!$A$2:$A$8785,B11,'Expanded kW'!$H$2:$H$8785) -> 8314521 | E11: =SUMIFS('Expanded kW'!$H$2:$H$8785,'Expanded kW'!$A$2:$A$8785,$B11,'Expanded kW'!$C$2:$C$8785,"ON") -> 4717212.179 | F11: =IF(C11=0,0,+E11/C11) -> 0.5673462343 | H11: =SUMIFS('Expanded kW'!$H$2:$H$8785,'Expanded kW'!$A$2:$A$8785,$B11,'Expanded kW'!$C$2:$C$8785,"OFF") -> 3597308.821 | I11: =IF(C11=0,0,+H11/C11) -> 0.4326537657
A12: =+'Manual Inputs'!A12 -> 2016 | B12: =+'Manual Inputs'!B12 -> 4 | C12: =SUMIF('Expanded kW'!$A$2:$A$8785,B12,'Expanded kW'!$H$2:$H$8785) -> 8854833 | E12: =SUMIFS('Expanded kW'!$H$2:$H$8785,'Expanded kW'!$A$2:$A$8785,$B12,'Expanded kW'!$C$2:$C$8785,"ON") -> 4914506.1 | F12: =IF(C12=0,0,+E12/C12) -> 0.5550083328 | H12: =SUMIFS('Expanded kW'!$H$2:$H$8785,'Expanded kW'!$A$2:$A$8785,$B12,'Expanded kW'!$C$2:$C$8785,"OFF") -> 3940326.9 | I12: =IF(C12=0,0,+H12/C12) -> 0.4449916672
A13: =+'Manual Inputs'!A13 -> 2016 | B13: =+'Manual Inputs'!B13 -> 5 | C13: =SUMIF('Expanded kW'!$A$2:$A$8785,B13,'Expanded kW'!$H$2:$H$8785) -> 9483509 | E13: =SUMIFS('Expanded kW'!$H$2:$H$8785,'Expanded kW'!$A$2:$A$8785,$B13,'Expanded kW'!$C$2:$C$8785,"ON") -> 5296405.575 | F13: 0.558485849 | H13: =SUMIFS('Expanded kW'!$H$2:$H$8785,'Expanded kW'!$A$2:$A$8785,$B13,'Expanded kW'!$C$2:$C$8785,"OFF") -> 4187103.425 | I13: 0.441514151
A14: =+'Manual Inputs'!A14 -> 2016 | B14: =+'Manual Inputs'!B14 -> 6 | C14: =SUMIF('Expanded kW'!$A$2:$A$8785,B14,'Expanded kW'!$H$2:$H$8785) -> 7995092 | E14: =SUMIFS('Expanded kW'!$H$2:$H$8785,'Expanded kW'!$A$2:$A$8785,$B14,'Expanded kW'!$C$2:$C$8785,"ON") -> 3948269.855 | F14: 0.4938367006 | H14: =SUMIFS('Expanded kW'!$H$2:$H$8785,'Expanded kW'!$A$2:$A$8785,$B14,'Expanded kW'!$C$2:$C$8785,"OFF") -> 4046822.145 | I14: 0.5061632994
A15: =+'Manual Inputs'!A15 -> 2016 | B15: =+'Manual Inputs'!B15 -> 7 | C15: =SUMIF('Expanded kW'!$A$2:$A$8785,B15,'Expanded kW'!$H$2:$H$8785) -> 7511715 | E15: =SUMIFS('Expanded kW'!$H$2:$H$8785,'Expanded kW'!$A$2:$A$8785,$B15,'Expanded kW'!$C$2:$C$8785,"ON") -> 3493388.97 | F15: 0.4650587742 | H15: =SUMIFS('Expanded kW'!$H$2:$H$8785,'Expanded kW'!$A$2:$A$8785,$B15,'Expanded kW'!$C$2:$C$8785,"OFF") -> 4018326.03 | I15: 0.5349412258
A16: =+'Manual Inputs'!A16 -> 2016 | B16: =+'Manual Inputs'!B16 -> 8 | C16: =SUMIF('Expanded kW'!$A$2:$A$8785,B16,'Expanded kW'!$H$2:$H$8785) -> 10189183 | E16: =SUMIFS('Expanded kW'!$H$2:$H$8785,'Expanded kW'!$A$2:$A$8785,$B16,'Expanded kW'!$C$2:$C$8785,"ON") -> 5894508.84 | F16: 0.578506524 | H16: =SUMIFS('Expanded kW'!$H$2:$H$8785,'Expanded kW'!$A$2:$A$8785,$B16,'Expanded kW'!$C$2:$C$8785,"OFF") -> 4294674.16 | I16: 0.421493476
A17: =+'Manual Inputs'!A17 -> 2016 | B17: =+'Manual Inputs'!B17 -> 9 | C17: =SUMIF('Expanded kW'!$A$2:$A$8785,B17,'Expanded kW'!$H$2:$H$8785) -> 11720326 | E17: =SUMIFS('Expanded kW'!$H$2:$H$8785,'Expanded kW'!$A$2:$A$8785,$B17,'Expanded kW'!$C$2:$C$8785,"ON") -> 6945274.694 | F17: 0.5925837467 | H17: =SUMIFS('Expanded kW'!$H$2:$H$8785,'Expanded kW'!$A$2:$A$8785,$B17,'Expanded kW'!$C$2:$C$8785,"OFF") -> 4775051.306 | I17: 0.4074162533
A18: =+'Manual Inputs'!A18 -> 2016 | B18: =+'Manual Inputs'!B18 -> 10 | C18: =SUMIF('Expanded kW'!$A$2:$A$8785,B18,'Expanded kW'!$H$2:$H$8785) -> 9280101 | E18: =SUMIFS('Expanded kW'!$H$2:$H$8785,'Expanded kW'!$A$2:$A$8785,$B18,'Expanded kW'!$C$2:$C$8785,"ON") -> 5263007.97 | F18: 0.5671283071 | H18: =SUMIFS('Expanded kW'!$H$2:$H$8785,'Expanded kW'!$A$2:$A$8785,$B18,'Expanded kW'!$C$2:$C$8785,"OFF") -> 4017093.03 | I18: 0.4328716929
A19: =+'Manual Inputs'!A19 -> 2016 | B19: =+'Manual Inputs'!B19 -> 11 | C19: =SUMIF('Expanded kW'!$A$2:$A$8785,B19,'Expanded kW'!$H$2:$H$8785) -> 9871720 | E19: =SUMIFS('Expanded kW'!$H$2:$H$8785,'Expanded kW'!$A$2:$A$8785,$B19,'Expanded kW'!$C$2:$C$8785,"ON") -> 5451478.491 | F19: 0.5522318796 | H19: =SUMIFS('Expanded kW'!$H$2:$H$8785,'Expanded kW'!$A$2:$A$8785,$B19,'Expanded kW'!$C$2:$C$8785,"OFF") -> 4420241.509 | I19: 0.4477681204
A20: =+'Manual Inputs'!A20 -> 2016 | B20: =+'Manual Inputs'!B20 -> 12 | C20: =SUMIF('Expanded kW'!$A$2:$A$8785,B20,'Expanded kW'!$H$2:$H$8785) -> 9000199 | E20: =SUMIFS('Expanded kW'!$H$2:$H$8785,'Expanded kW'!$A$2:$A$8785,$B20,'Expanded kW'!$C$2:$C$8785,"ON") -> 4404014.402 | F20: 0.489324114 | H20: =SUMIFS('Expanded kW'!$H$2:$H$8785,'Expanded kW'!$A$2:$A$8785,$B20,'Expanded kW'!$C$2:$C$8785,"OFF") -> 4596184.598 | I20: 0.510675886
A21: =+'Manual Inputs'!A21 -> 2017 | B21: =+'Manual Inputs'!B21 -> 1 | C21: =SUMIF('Expanded kW'!$A$2:$A$8785,B21,'Expanded kW'!$H$2:$H$8785) -> 8383684 | E21: =SUMIFS('Expanded kW'!$H$2:$H$8785,'Expanded kW'!$A$2:$A$8785,$B21,'Expanded kW'!$C$2:$C$8785,"ON") -> 4261809.359 | F21: 0.5083456579 | H21: =SUMIFS('Expanded kW'!$H$2:$H$8785,'Expanded kW'!$A$2:$A$8785,$B21,'Expanded kW'!$C$2:$C$8785,"OFF") -> 4121874.641 | I21: 0.4916543421
A22: =+'Manual Inputs'!A22 -> 2017 | B22: =+'Manual Inputs'!B22 -> 2 | C22: =SUMIF('Expanded kW'!$A$2:$A$8785,B22,'Expanded kW'!$H$2:$H$8785) -> 9107377 | E22: =SUMIFS('Expanded kW'!$H$2:$H$8785,'Expanded kW'!$A$2:$A$8785,$B22,'Expanded kW'!$C$2:$C$8785,"ON") -> 4934797.067 | F22: 0.5418461394 | H22: =SUMIFS('Expanded kW'!$H$2:$H$8785,'Expanded kW'!$A$2:$A$8785,$B22,'Expanded kW'!$C$2:$C$8785,"OFF") -> 4172579.933 | I22: 0.4581538606
A24: 12-Month Total | C24: =SUM(C11:C22) -> 109712260 | E24: =SUM(E11:E22) -> 59524673.5 | F24: 0.5425526145 | H24: =SUM(H11:H22) -> 50187586.5 | I24: 0.4574473855
